Workbook

Sheet Parametros (hidden)
A1: DEPENDENCIA | B1: Regional | D1: CONCEPTO | E1: M | F1: SI | G1: N/A | H1: INICIAL | I1: MACROREGIONES | J1: OPERADOR | K1: COMISION | L1: DESCUENTO
A2: N/A | B2: N/A | D2: ALIMENTACIÓN | E2: F | F2: NO | H2: MODIFICACIÓN | I2: M1: SDG, Btá, Cun, Met, Guav, Cas, Boy | J2: CARLOS ALBERTO PINZON MOLINA | K2: 0.078 | L2: 0.398229
A3: Dirección Administrativa | B3: Amazonas | D3: ALQUILER TÉCNICA / OTROS | I3: M2: Cau,VdC, Nar, Tol, Hui, Caq, Put, Vau | J3: UT EVENTOS & ICBF 2025 | K3: 0.078 | L3: 0.47338311
A4: Dirección de Abastecimiento | B4: Antioquia | D4: CONECTIVIDAD | E4: NACIONAL | F4: HONORARIOS | I4: M3: Ant, Cal, Qui, Ris, Cho, Cór, Guai | J4: MAGIN COMUNICACIONES SAS | K4: 0.078 | L4: 0.409146185
A5: Dirección de Contratación | B5: Arauca | D5: EMERGENCIA Y CONTINGENGENCIA | E5: EXTRANJERO | F5: OTROS | I5: M4: Atl, Bol, Guaj, Mag, Suc, SAnd | J5: CONSULTORÍA ESTRATÉGICA INTEGRAL S.A.S. | K5: 0.078 | L5: 0.2640000285
A6: Dirección de Familias y Comunidades | B6: Atlántico | D6: ENERGÌA | F6: N/A | I6: M5: Cés, Ara, Vic, Ama, NdS, San | J6: QUINTA GENERACION SAS | K6: 0.078 | L6: 0.2569072604
A7: Dirección de Gestión Humana | B7: Bogotá | D7: ILUMINACIÓN
A8: Dirección de Información y Tecnología | B8: Bolívar | D8: MATERIALES Y OTROS | E8: AHORROS | F8: IVA
A9: Dirección de Adolescencia y Juventud | B9: Boyacá | D9: MENAJE | E9: CORRIENTE | F9: IPC
A10: Dirección de Infancia | B10: Caldas | D10: MOBILIARIO | F10: N/A
A11: Dirección de Nutrición | B11: Caquetá | D11: PERSONAL
A12: Dirección de Planeación y Control de Gestión | B12: Casanare | D12: REGISTRO
A13: Dirección de Primera Infancia | B13: Cauca | D13: SALONES Y ALOJAMIENTO
A14: Dirección de Protección | B14: Cesar | D14: SONIDO
A15: Dirección de Servicio y Atención | B15: Chocó | D15: TRADUCCIÓN
A16: Dirección Financiera | B16: Córdoba | D16: TRANSPORTE
A17: Dirección General | B17: Cundinamarca | D17: VIDEO
A18: Dirección SNBF | B18: Guainía | D18: VIRTUAL / HIBRIDO
A19: Oficina Aseguramiento a la Calidad | B19: Guaviare | D19: OTROS
A20: Oficina Asesora de Comunicaciones | B20: Huila
A21: Oficina Asesora Jurídica | B21: La Guajira
A22: Oficina Cooperación y Convenios | B22: Magdalena
A23: Oficina de Control Interno | B23: Meta
A24: Oficina de Control Interno Disciplinario | B24: Nariño
A25: Oficina Gestión Regional | B25: Norte de Santander
A26: Secretaria General | B26: Putumayo
A27: Subdirección General | B27: Quindío
A28: =+"Regional "&B3 -> Regional Amazonas | B28: Risaralda
A29: =+"Regional "&B4 -> Regional Antioquia | B29: San Andrés
A30: Regional Arauca | B30: Santander
A31: Regional Atlántico | B31: Sucre
A32: Regional Bogotá | B32: Tolima
A33: Regional Bolívar | B33: Valle del Cauca
A34: Regional Boyacá | B34: Vaupés
A35: Regional Caldas | B35: Vichada
A36: Regional Caquetá
A37: Regional Casanare
A38: Regional Cauca
A39: Regional Cesar
A40: Regional Chocó
A41: Regional Córdoba
A42: Regional Cundinamarca
A43: Regional Guainía
A44: Regional Guaviare
A45: Regional Huila
A46: Regional La Guajira
A47: Regional Magdalena
A48: Regional Meta
A49: Regional Nariño
A50: Regional Norte de Santander
A51: Regional Putumayo
A52: Regional Quindío
A53: Regional Risaralda
A54: Regional San Andrés
A55: Regional Santander
A56: Regional Sucre
A57: Regional Tolima
A58: Regional Valle del Cauca
A59: Regional Vaupés
A60: Regional Vichada

Sheet Tarifario (hidden)
A1: TARIFARIO - DESCRIPCION DE ITEMS | K1: M1 ANTES IVA | L1: M2 ANTES IVA | M1: M3 ANTES IVA | N1: M4 ANTES IVA | O1: M5 ANTES IVA
A2: ITEM | B2: CONCEPTO | C2: BIEN O SERVICIO REQUERIDO | D2: DESCRIPCION | E2: UNIDAD DE MEDIDA | F2: Tarifa IVA | G2: Precio Techo unitario antes de IVA | H2: Precio unitario IVA Incluido | K2: 0.398229 | L2: 0.47338311 | M2: 0.409146185 | N2: 0.2640000285 | O2: 0.2569072604
A3: 1 | B3: ALIMENTACIÓN | C3: Minuta Patron Tipo A - MES CANTIDADES:1 - 500 | D3: Alimentación reforzada tipo refrigerio lista para consumo para niños niñas y adolescentes minuta patrón SOMOS FAMILIA, SOMOS COMUNIDAD Niñas y niños de 6 a 11 meses 30 dias (ver anexo 5) Incluye transporte (distribución en sitio de realización del evento o actividad) | E3: UNIDAD | F3: 0.19 | G3: 1337 | H3: 1591 | K3: =+ROUND(($G3*(1-K$2)),0) -> 805 | L3: =+ROUND(($G3*(1-L$2)),0) -> 704 | M3: =+ROUND(($G3*(1-M$2)),0) -> 790 | N3: =+ROUND(($G3*(1-N$2)),0) -> 984 | O3: =+ROUND(($G3*(1-O$2)),0) -> 994
A4: 2 | B4: ALIMENTACIÓN | C4: Minuta Patron Tipo A - MES CANTIDADES:501-5000 | D4: Alimentación reforzada tipo refrigerio lista para consumo para niños niñas y adolescentes minuta patrón SOMOS FAMILIA, SOMOS COMUNIDAD Niñas y niños de 6 a 11 meses 30 dias (ver anexo 5) Incluye transporte (distribución en sitio de realización del evento o actividad) | E4: UNIDAD | F4: 0.19 | G4: 1310 | H4: 1559 | K4: =+ROUND(($G4*(1-K$2)),0) -> 788 | L4: =+ROUND(($G4*(1-L$2)),0) -> 690 | M4: =+ROUND(($G4*(1-M$2)),0) -> 774 | N4: =+ROUND(($G4*(1-N$2)),0) -> 964 | O4: 973
A5: 3 | B5: ALIMENTACIÓN | C5: Minuta Patron Tipo A - MES CANTIDADES: 5001-10.000 | D5: Alimentación reforzada tipo refrigerio lista para consumo para niños niñas y adolescentes minuta patrón SOMOS FAMILIA, SOMOS COMUNIDAD Niñas y niños de 6 a 11 meses 30 dias (ver anexo 5) Incluye transporte (distribución en sitio de realización del evento o actividad) | E5: UNIDAD | F5: 0.19 | G5: 1277 | H5: 1520 | K5: 768 | L5: 672 | M5: 755 | N5: 940 | O5: 949
A6: 4 | B6: ALIMENTACIÓN | C6: Minuta Patron Tipo A - MES CANTIDADES: más de 10.000 | D6: Alimentación reforzada tipo refrigerio lista para consumo para niños niñas y adolescentes minuta patrón SOMOS FAMILIA, SOMOS COMUNIDAD Niñas y niños de 6 a 11 meses 30 dias (ver anexo 5) Incluye transporte (distribución en sitio de realización del evento o actividad) | E6: UNIDAD | F6: 0.19 | G6: 1233 | H6: 1467 | K6: 742 | L6: 649 | M6: 729 | N6: 907 | O6: 916
A7: 5 | B7: ALIMENTACIÓN | C7: Minuta Patron Tipo B - MES CANTIDADES: 1-500 | D7: Alimentación reforzada tipo refrigerio lista para consumo para niños niñas y adolescentes minuta patrón SOMOS FAMILIA, SOMOS COMUNIDAD Niñas y niños de 1 año a 5 años 11 meses (ver anexo 5) Incluye transporte (distribución en sitio de realización del evento o actividad) | E7: UNIDAD | F7: 0.19 | G7: 5139 | H7: 6115 | K7: 3093 | L7: 2706 | M7: 3036 | N7: 3782 | O7: 3819
A8: 6 | B8: ALIMENTACIÓN | C8: Minuta Patron Tipo B - MES CANTIDADES: 501 - 5000 | D8: Alimentación reforzada tipo refrigerio lista para consumo para niños niñas y adolescentes minuta patrón SOMOS FAMILIA, SOMOS COMUNIDAD Niñas y niños de 1 año a 5 años 11 meses (ver anexo 5) Incluye transporte (distribución en sitio de realización del evento o actividad) | E8: UNIDAD | F8: 0.19 | G8: 5036 | H8: 5993 | K8: 3031 | L8: 2652 | M8: 2976 | N8: 3706 | O8: 3742
A9: 7 | B9: ALIMENTACIÓN | C9: Minuta Patron Tipo B - MES CANTIDADES:5001 -10.000 | D9: Alimentación reforzada tipo refrigerio lista para consumo para niños niñas y adolescentes minuta patrón SOMOS FAMILIA, SOMOS COMUNIDAD Niñas y niños de 1 año a 5 años 11 meses (ver anexo 5) Incluye transporte (distribución en sitio de realización del evento o actividad) | E9: UNIDAD | F9: 0.19 | G9: 4910 | H9: 5843 | K9: 2955 | L9: 2586 | M9: 2901 | N9: 3614 | O9: 3649
A10: 8 | B10: ALIMENTACIÓN | C10: Minuta Patron Tipo B - MES CANTIDADES: más de 10.000 | D10: Alimentación reforzada tipo refrigerio lista para consumo para niños niñas y adolescentes minuta patrón SOMOS FAMILIA, SOMOS COMUNIDAD Niñas y niños de 1 año a 5 años 11 meses (ver anexo 5) Incluye transporte (distribución en sitio de realización del evento o actividad) | E10: UNIDAD | F10: 0.19 | G10: 4739 | H10: 5639 | K10: 2852 | L10: 2496 | M10: 2800 | N10: 3488 | O10: 3522
A11: 9 | B11: ALIMENTACIÓN | C11: Minuta Patron Tipo C - MES CANTIDADES: 1-500 | D11: Alimentación reforzada tipo refrigerio lista para consumo para niños niñas y adolescentes minuta patrón SOMOS FAMILIA, SOMOS COMUNIDAD Población mayor de 6 años (ver anexo 5) Incluye transporte (distribución en sitio de realización del evento o actividad) | E11: UNIDAD | F11: 0.19 | G11: 5258 | H11: 6257 | K11: 3164 | L11: 2769 | M11: 3107 | N11: 3870 | O11: 3907
A12: 10 | B12: ALIMENTACIÓN | C12: Minuta Patron Tipo C - MES CANTIDADES: 501 - 5000 | D12: Alimentación reforzada tipo refrigerio lista para consumo para niños niñas y adolescentes minuta patrón SOMOS FAMILIA, SOMOS COMUNIDAD Población mayor de 6 años (ver anexo 5) Incluye transporte (distribución en sitio de realización del evento o actividad) | E12: UNIDAD | F12: 0.19 | G12: 5153 | H12: 6132 | K12: 3101 | L12: 2714 | M12: 3045 | N12: 3793 | O12: 3829
A13: 11 | B13: ALIMENTACIÓN | C13: Minuta Patron Tipo C - MES CANTIDADES:5001 -10.000 | D13: Alimentación reforzada tipo refrigerio lista para consumo para niños niñas y adolescentes minuta patrón SOMOS FAMILIA, SOMOS COMUNIDAD Población mayor de 6 años (ver anexo 5) Incluye transporte (distribución en sitio de realización del evento o actividad) | E13: UNIDAD | F13: 0.19 | G13: 5025 | H13: 5980 | K13: 3024 | L13: 2646 | M13: 2969 | N13: 3698 | O13: 3734
A14: 12 | B14: ALIMENTACIÓN | C14: Minuta Patron Tipo C - MES CANTIDADES: más de 10.000 | D14: Alimentación reforzada tipo refrigerio lista para consumo para niños niñas y adolescentes minuta patrón SOMOS FAMILIA, SOMOS COMUNIDAD Población mayor de 6 años (ver anexo 5) Incluye transporte (distribución en sitio de realización del evento o actividad) | E14: UNIDAD | F14: 0.19 | G14: 4849 | H14: 5770 | K14: 2918 | L14: 2554 | M14: 2865 | N14: 3569 | O14: 3603
A15: 13 | B15: ALIMENTACIÓN | C15: Minuta Patron Tipo D - MES CANTIDADES: 1-500 | D15: Alimentación reforzada tipo refrigerio lista para consumo para niños niñas y adolescentes minuta patrón MODALIDAD ATRAPASUEÑOS MINUTA PATRÓN RACIÓN LISTA PARA CONSUMO 6 A 8 AÑOS (ver anexo 6) Incluye transporte (distribución en sitio de realización del evento o actividad) | E15: UNIDAD | F15: 0.19 | G15: 10941 | H15: 13020 | K15: 6584 | L15: 5762 | M15: 6465 | N15: 8053 | O15: 8130
A16: 14 | B16: ALIMENTACIÓN | C16: Minuta Patron Tipo D - MES CANTIDADES: 501 - 5000 | D16: Alimentación reforzada tipo refrigerio lista para consumo para niños niñas y adolescentes minuta patrón MODALIDAD ATRAPASUEÑOS MINUTA PATRÓN RACIÓN LISTA PARA CONSUMO 6 A 8 AÑOS (ver anexo 6) Incluye transporte (distribución en sitio de realización del evento o actividad) | E16: UNIDAD | F16: 0.19 | G16: 10722 | H16: 12759 | K16: 6452 | L16: 5646 | M16: 6335 | N16: 7891 | O16: 7967
A17: 15 | B17: ALIMENTACIÓN | C17: Minuta Patron Tipo D - MES CANTIDADES:5001 -10.000 | D17: Alimentación reforzada tipo refrigerio lista para consumo para niños niñas y adolescentes minuta patrón MODALIDAD ATRAPASUEÑOS MINUTA PATRÓN RACIÓN LISTA PARA CONSUMO 6 A 8 AÑOS (ver anexo 6) Incluye transporte (distribución en sitio de realización del evento o actividad) | E17: UNIDAD | F17: 0.19 | G17: 10453 | H17: 12439 | K17: 6290 | L17: 5505 | M17: 6176 | N17: 7693 | O17: 7768
A18: 16 | B18: ALIMENTACIÓN | C18: Minuta Patron Tipo D - MES CANTIDADES: más de 10.000 | D18: Alimentación reforzada tipo refrigerio lista para consumo para niños niñas y adolescentes minuta patrón MODALIDAD ATRAPASUEÑOS MINUTA PATRÓN RACIÓN LISTA PARA CONSUMO 6 A 8 AÑOS (ver anexo 6) Incluye transporte (distribución en sitio de realización del evento o actividad) | E18: UNIDAD | F18: 0.19 | G18: 10088 | H18: 12005 | K18: 6071 | L18: 5313 | M18: 5961 | N18: 7425 | O18: 7496
A19: 17 | B19: ALIMENTACIÓN | C19: Minuta Patron Tipo E - MES CANTIDADES: 1-500 | D19: Alimentación reforzada tipo refrigerio lista para consumo para niños niñas y adolescentes minuta patrón MODALIDAD ATRAPASUEÑOS MINUTA PATRÓN RACIÓN LISTA PARA CONSUMO 9 A 13 AÑOS (ver anexo 6) Incluye transporte (distribución en sitio de realización del evento o actividad) | E19: UNIDAD | F19: 0.19 | G19: 12840 | H19: 15280 | K19: 7727 | L19: 6762 | M19: 7587 | N19: 9450 | O19: 9541
A20: 18 | B20: ALIMENTACIÓN | C20: Minuta Patron Tipo E - MES CANTIDADES: 501 - 5000 | D20: Alimentación reforzada tipo refrigerio lista para consumo para niños niñas y adolescentes minuta patrón MODALIDAD ATRAPASUEÑOS MINUTA PATRÓN RACIÓN LISTA PARA CONSUMO 9 A 13 AÑOS (ver anexo 6) Incluye transporte (distribución en sitio de realización del evento o actividad) | E20: UNIDAD | F20: 0.19 | G20: 12583 | H20: 14974 | K20: 7572 | L20: 6626 | M20: 7435 | N20: 9261 | O20: 9350
A21: 19 | B21: ALIMENTACIÓN | C21: Minuta Patron Tipo E - MES CANTIDADES:5001 -10.000 | D21: Alimentación reforzada tipo refrigerio lista para consumo para niños niñas y adolescentes minuta patrón MODALIDAD ATRAPASUEÑOS MINUTA PATRÓN RACIÓN LISTA PARA CONSUMO 9 A 13 AÑOS (ver anexo 6) Incluye transporte (distribución en sitio de realización del evento o actividad) | E21: UNIDAD | F21: 0.19 | G21: 12269 | H21: 14600 | K21: 7383 | L21: 6461 | M21: 7249 | N21: 9030 | O21: 9117
A22: 20 | B22: ALIMENTACIÓN | C22: Minuta Patron Tipo E - MES CANTIDADES: más de 10.000 | D22: Alimentación reforzada tipo refrigerio lista para consumo para niños niñas y adolescentes minuta patrón MODALIDAD ATRAPASUEÑOS MINUTA PATRÓN RACIÓN LISTA PARA CONSUMO 9 A 13 AÑOS (ver anexo 6) Incluye transporte (distribución en sitio de realización del evento o actividad) | E22: UNIDAD | F22: 0.19 | G22: 11840 | H22: 14090 | K22: 7125 | L22: 6235 | M22: 6996 | N22: 8714 | O22: 8798
A23: 21 | B23: ALIMENTACIÓN | C23: Minuta Patron Tipo F - MES CANTIDADES: 1-500 | D23: Alimentación reforzada tipo refrigerio lista para consumo para niños niñas y adolescentes minuta patrón MODALIDAD ATRAPASUEÑOS MINUTA PATRÓN RACIÓN LISTA PARA CONSUMOS 14 A 17 Y MAYORES DE 18 AÑOS (ver anexo 6) Incluye transporte (distribución en sitio de realización del evento o actividad) | E23: UNIDAD | F23: 0.19 | G23: 14025 | H23: 16690 | K23: 8440 | L23: 7386 | M23: 8287 | N23: 10322 | O23: 10422
A24: 22 | B24: ALIMENTACIÓN | C24: Minuta Patron Tipo F - MES CANTIDADES: 501 - 5000 | D24: Alimentación reforzada tipo refrigerio lista para consumo para niños niñas y adolescentes minuta patrón MODALIDAD ATRAPASUEÑOS MINUTA PATRÓN RACIÓN LISTA PARA CONSUMOS 14 A 17 Y MAYORES DE 18 AÑOS (ver anexo 6) Incluye transporte (distribución en sitio de realización del evento o actividad) | E24: UNIDAD | F24: 0.19 | G24: 13745 | H24: 16357 | K24: 8271 | L24: 7238 | M24: 8121 | N24: 10116 | O24: 10214
A25: 23 | B25: ALIMENTACIÓN | C25: Minuta Patron Tipo F - MES CANTIDADES:5001 -10.000 | D25: Alimentación reforzada tipo refrigerio lista para consumo para niños niñas y adolescentes minuta patrón MODALIDAD ATRAPASUEÑOS MINUTA PATRÓN RACIÓN LISTA PARA CONSUMOS 14 A 17 Y MAYORES DE 18 AÑOS (ver anexo 6) Incluye transporte (distribución en sitio de realización del evento o actividad) | E25: UNIDAD | F25: 0.19 | G25: 13401 | H25: 15947 | K25: 8064 | L25: 7057 | M25: 7918 | N25: 9863 | O25: 9958
A26: 24 | B26: ALIMENTACIÓN | C26: Minuta Patron Tipo F - MES CANTIDADES: más de 10.000 | D26: Alimentación reforzada tipo refrigerio lista para consumo para niños niñas y adolescentes minuta patrón MODALIDAD ATRAPASUEÑOS MINUTA PATRÓN RACIÓN LISTA PARA CONSUMOS 14 A 17 Y MAYORES DE 18 AÑOS (ver anexo 6) Incluye transporte (distribución en sitio de realización del evento o actividad) | E26: UNIDAD | F26: 0.19 | G26: 12932 | H26: 15389 | K26: 7782 | L26: 6810 | M26: 7641 | N26: 9518 | O26: 9610
A27: 25 | B27: ALIMENTACIÓN | C27: Minuta Patron Tipo D - MES CANTIDADES: 1-500 | D27: Alimentación reforzada tipo refrigerio lista para consumo para niños niñas y adolescentes minuta patrón MODALIDAD ATRAPASUEÑOS MINUTA PATRÓN RACIÓN FAMILIAR PARA PREPARAR 6 A 8 AÑOS (ver anexo 8) Incluye transporte (distribución en sitio de realización del evento o actividad) | E27: UNIDAD | F27: 0.19 | G27: 10941 | H27: 13020 | K27: 6584 | L27: 5762 | M27: 6465 | N27: 8053 | O27: 8130
A28: 26 | B28: ALIMENTACIÓN | C28: Minuta Patron Tipo D - MES CANTIDADES: 501 - 5000 | D28: Alimentación reforzada tipo refrigerio lista para consumo para niños niñas y adolescentes minuta patrón MODALIDAD ATRAPASUEÑOS MINUTA PATRÓN RACIÓN FAMILIAR PARA PREPARAR 6 A 8 AÑOS (ver anexo 8) Incluye transporte (distribución en sitio de realización del evento o actividad) | E28: UNIDAD | F28: 0.19 | G28: 10722 | H28: 12759 | K28: 6452 | L28: 5646 | M28: 6335 | N28: 7891 | O28: 7967
A29: 27 | B29: ALIMENTACIÓN | C29: Minuta Patron Tipo D - MES CANTIDADES:5001 -10.000 | D29: Alimentación reforzada tipo refrigerio lista para consumo para niños niñas y adolescentes minuta patrón MODALIDAD ATRAPASUEÑOS MINUTA PATRÓN RACIÓN FAMILIAR PARA PREPARAR 6 A 8 AÑOS (ver anexo 8) Incluye transporte (distribución en sitio de realización del evento o actividad) | E29: UNIDAD | F29: 0.19 | G29: 10453 | H29: 12439 | K29: 6290 | L29: 5505 | M29: 6176 | N29: 7693 | O29: 7768
A30: 28 | B30: ALIMENTACIÓN | C30: Minuta Patron Tipo D - MES CANTIDADES: más de 10.000 | D30: Alimentación reforzada tipo refrigerio lista para consumo para niños niñas y adolescentes minuta patrón MODALIDAD ATRAPASUEÑOS MINUTA PATRÓN RACIÓN FAMILIAR PARA PREPARAR 6 A 8 AÑOS (ver anexo 8) Incluye transporte (distribución en sitio de realización del evento o actividad) | E30: UNIDAD | F30: 0.19 | G30: 10088 | H30: 12005 | K30: 6071 | L30: 5313 | M30: 5961 | N30: 7425 | O30: 7496
A31: 29 | B31: ALIMENTACIÓN | C31: Minuta Patron Tipo E - MES CANTIDADES: 1-500 | D31: Alimentación reforzada tipo refrigerio lista para consumo para niños niñas y adolescentes minuta patrón MODALIDAD ATRAPASUEÑOS MINUTA PATRÓN RACIÓN FAMILIAR PARA PREPARAR 9 A 13 AÑOS (ver anexo 8) Incluye transporte (distribución en sitio de realización del evento o actividad) | E31: UNIDAD | F31: 0.19 | G31: 12840 | H31: 15280 | K31: 7727 | L31: 6762 | M31: 7587 | N31: 9450 | O31: 9541
A32: 30 | B32: ALIMENTACIÓN | C32: Minuta Patron Tipo E - MES CANTIDADES: 501 - 5000 | D32: Alimentación reforzada tipo refrigerio lista para consumo para niños niñas y adolescentes minuta patrón MODALIDAD ATRAPASUEÑOS MINUTA PATRÓN RACIÓN FAMILIAR PARA PREPARAR 9 A 13 AÑOS (ver anexo 8) Incluye transporte (distribución en sitio de realización del evento o actividad) | E32: UNIDAD | F32: 0.19 | G32: 12583 | H32: 14974 | K32: 7572 | L32: 6626 | M32: 7435 | N32: 9261 | O32: 9350
A33: 31 | B33: ALIMENTACIÓN | C33: Minuta Patron Tipo E - MES CANTIDADES:5001 -10.000 | D33: Alimentación reforzada tipo refrigerio lista para consumo para niños niñas y adolescentes minuta patrón MODALIDAD ATRAPASUEÑOS MINUTA PATRÓN RACIÓN FAMILIAR PARA PREPARAR 9 A 13 AÑOS (ver anexo 8) Incluye transporte (distribución en sitio de realización del evento o actividad) | E33: UNIDAD | F33: 0.19 | G33: 12269 | H33: 14600 | K33: 7383 | L33: 6461 | M33: 7249 | N33: 9030 | O33: 9117
A34: 32 | B34: ALIMENTACIÓN | C34: Minuta Patron Tipo E - MES CANTIDADES: más de 10.000 | D34: Alimentación reforzada tipo refrigerio lista para consumo para niños niñas y adolescentes minuta patrón MODALIDAD ATRAPASUEÑOS MINUTA PATRÓN RACIÓN FAMILIAR PARA PREPARAR 9 A 13 AÑOS (ver anexo 8) Incluye transporte (distribución en sitio de realización del evento o actividad) | E34: UNIDAD | F34: 0.19 | G34: 11840 | H34: 14090 | K34: 7125 | L34: 6235 | M34: 6996 | N34: 8714 | O34: 8798
A35: 33 | B35: ALIMENTACIÓN | C35: Minuta Patron Tipo F - MES CANTIDADES: 1-500 | D35: Alimentación reforzada tipo refrigerio lista para consumo para niños niñas y adolescentes minuta patrón MODALIDAD ATRAPASUEÑOS MINUTA PATRÓN RACIÓN FAMILIAR PARA PREPARAR 14 A 17 Y MAYORES DE 18 AÑOS (ver anexo 8) Incluye transporte (distribución en sitio de realización del evento o actividad) | E35: UNIDAD | F35: 0.19 | G35: 14025 | H35: 16690 | K35: 8440 | L35: 7386 | M35: 8287 | N35: 10322 | O35: 10422
A36: 34 | B36: ALIMENTACIÓN | C36: Minuta Patron Tipo F - MES CANTIDADES: 501 - 5000 | D36: Alimentación reforzada tipo refrigerio lista para consumo para niños niñas y adolescentes minuta patrón MODALIDAD ATRAPASUEÑOS MINUTA PATRÓN RACIÓN FAMILIAR PARA PREPARAR 14 A 17 Y MAYORES DE 18 AÑOS (ver anexo 8) Incluye transporte (distribución en sitio de realización del evento o actividad) | E36: UNIDAD | F36: 0.19 | G36: 13745 | H36: 16357 | K36: 8271 | L36: 7238 | M36: 8121 | N36: 10116 | O36: 10214
A37: 35 | B37: ALIMENTACIÓN | C37: Minuta Patron Tipo F - MES CANTIDADES:5001 -10.000 | D37: Alimentación reforzada tipo refrigerio lista para consumo para niños niñas y adolescentes minuta patrón MODALIDAD ATRAPASUEÑOS MINUTA PATRÓN RACIÓN FAMILIAR PARA PREPARAR 14 A 17 Y MAYORES DE 18 AÑOS (ver anexo 8) Incluye transporte (distribución en sitio de realización del evento o actividad) | E37: UNIDAD | F37: 0.19 | G37: 13401 | H37: 15947 | K37: 8064 | L37: 7057 | M37: 7918 | N37: 9863 | O37: 9958
A38: 36 | B38: ALIMENTACIÓN | C38: Minuta Patron Tipo F - MES CANTIDADES: más de 10.000 | D38: Alimentación reforzada tipo refrigerio lista para consumo para niños niñas y adolescentes minuta patrón MODALIDAD ATRAPASUEÑOS MINUTA PATRÓN RACIÓN FAMILIAR PARA PREPARAR 14 A 17 Y MAYORES DE 18 AÑOS (ver anexo 8) Incluye transporte (distribución en sitio de realización del evento o actividad) | E38: UNIDAD | F38: 0.19 | G38: 12932 | H38: 15389 | K38: 7782 | L38: 6810 | M38: 7641 | N38: 9518 | O38: 9610
A39: 37 | B39: ALIMENTACIÓN | C39: Olla comunitaria con productos y servicio - MES CANTIDADES: 1 - 500 | D39: Preparación o preparaciones con la comunidad para la olla comunitaria, el contratista debe garantizar la entrega de los insumos acorde a la solicitud del ICBF de acuerdo las orientaciones técnicas Anexo 7. Descripción Olla Comunitaria (por persona) | E39: UNIDAD | F39: 0.19 | G39: 29595 | H39: 35218 | K39: 17809 | L39: 15585 | M39: 17486 | N39: 21782 | O39: 21992
A40: 38 | B40: ALIMENTACIÓN | C40: Olla comunitaria con productos y servicio - MES CANTIDADES: 501-5000 | D40: Preparación o preparaciones con la comunidad para la olla comunitaria, el contratista debe garantizar la entrega de los insumos acorde a la solicitud del ICBF de acuerdo las orientaciones técnicas Anexo 7. Descripción Olla Comunitaria (por persona) | E40: UNIDAD | F40: 0.19 | G40: 33454 | H40: 39810 | K40: 20132 | L40: 17617 | M40: 19766 | N40: 24622 | O40: 24859
A41: 39 | B41: ALIMENTACIÓN | C41: Olla comunitaria con productos y servicio - MES CANTIDADES: 5001-10.000 | D41: Preparación o preparaciones con la comunidad para la olla comunitaria, el contratista debe garantizar la entrega de los insumos acorde a la solicitud del ICBF de acuerdo las orientaciones técnicas Anexo 7. Descripción Olla Comunitaria (por persona) | E41: UNIDAD | F41: 0.19 | G41: 31155 | H41: 37074 | K41: 18748 | L41: 16407 | M41: 18408 | N41: 22930 | O41: 23151
A42: 40 | B42: ALIMENTACIÓN | C42: Olla comunitaria con productos y servicio - MES CANTIDADES: más de 10.000 | D42: Preparación o preparaciones con la comunidad para la olla comunitaria, el contratista debe garantizar la entrega de los insumos acorde a la solicitud del ICBF de acuerdo las orientaciones técnicas Anexo 7. Descripción Olla Comunitaria (por persona) | E42: UNIDAD | F42: 0.19 | G42: 30033 | H42: 35739 | K42: 18073 | L42: 15816 | M42: 17745 | N42: 22104 | O42: 22317
A43: 41 | B43: ALIMENTACIÓN | C43: Refrigerio No Perecedero | D43: El Refrigerio esta compuesto: • Dos (2) productos de paquete (snack) entre 35 y 70 gramos • Bebida: Jugo de caja de 200 ml / jugo de botella plástica de 300 ml / gaseosa botella plástica de 250 ml • Fruta de cosecha • Empacado Incluye transporte (distribución en sitio de realización del evento o actividad) | E43: UNIDAD | F43: 0.19 | G43: 16962 | H43: 20185 | K43: 10207 | L43: 8932 | M43: 10022 | N43: 12484 | O43: 12604
A44: 42 | B44: ALIMENTACIÓN | C44: Refrigerios Tipo A | D44: El Refrigerio esta compuesto: • Producto de sal o de dulce de 150 gramos o sándwich Gourmet (pan tipo árabe o baguette o aliñado especial, 2 rodajas de jamón de (cordero o pierna) de 70g, 2 rodajas de queso (doble crema o mozzarella) 60 gr de lechuga rizada y tomate). ** Sandwich o producto sustituto. • Bebida: Jugo de fruta Néctar, leche o derivados, sorbetes, malteada, gaseosas en empaque comercial duro, de vidrio o plástico o Tetrapak o lata. No en bolsas •Fruta de 150 gramos • Postre entre 35 y 70 gr Incluye transporte (distribución en sitio de realización del evento o actividad) | E44: UNIDAD | F44: 0.19 | G44: 21713 | H44: 25838 | K44: 13066 | L44: 11434 | M44: 12829 | N44: 15981 | O44: 16135
A45: 43 | B45: ALIMENTACIÓN | C45: Refrigerios Tipo B | D45: El Refrigerio esta compuesto: • Producto de sal o de dulce de 200 gramos o sándwich gourmet (pan tipo árabe o baguette o aliñado especial, 2 rodajas de jamón de (cordero o pierna) de 70 g, 2 rodajas de queso (doble crema o mozzarella) 60 gr de lechuga rizada y tomate). ** Sandwich o producto sustituto. • Bebida: jugo Néctar de 200 ml, jugo de botella plástica de 300 ml, gaseosa botella plástica de 250 ml (tipo Pet) • Fruta de 150 gramos • Postre entre 35 y 70 gr • Empacado Incluye transporte (distribución en sitio de realización del evento o actividad). | E45: UNIDAD | F45: 0.19 | G45: 21127 | H45: 25141 | K45: 12714 | L45: 11126 | M45: 12483 | N45: 15549 | O45: 15699
A46: 44 | B46: ALIMENTACIÓN | C46: Refrigerios Tipo C | D46: El Refrigerio esta compuesto: • Producto de sal o de dulce de 200 gramos o sándwich (pan tipo árabe o baguette o aliñado especial, 2 rodajas de jamón de (cordero o pierna) de 70 g, 2 rodajas de queso (doble crema o mozzarella) 60 gr de lechuga rizada y tomate). ** Sandwich o producto sustituto. • Bebida: jugo Néctar 200 ml, jugo natural en agua servido en vaso o copa, gaseosa botella plástica de 250 ml (tipo pet) • Fruta de 150 gramos • Postre entre 35 y 70 gr • Servido en loza Incluye transporte (distribución en sitio de realización del evento o actividad) | E46: UNIDAD | F46: 0.19 | G46: 22430 | H46: 26692 | K46: 13498 | L46: 11812 | M46: 13253 | N46: 16508 | O46: 16668
A47: 45 | B47: ALIMENTACIÓN | C47: Refrigerio Para Protocolo | D47: El Refrigerio esta compuesto: • Producto de sal o de dulce: muffins / sándwich gourmet (pan tipo árabe o baguette o aliñado especial, 2 rodajas de jamón de (cordero o pierna) de 70 g, 2 rodajas de queso (doble crema o mozzarella) 60 gr de lechuga rizada y tomate). ** Sandwich o producto sustituto. • Bebida: Jugo natural de frutas, brocheta de frutas. • Acompañamiento: pasteles, postres, dulces. • Empacado o servido en menaje de loza nacional o importada según corresponda y decorado para ocasiones especiales. Incluye transporte (distribución en sitio de realización del evento o actividad) | E47: UNIDAD | F47: 0.19 | G47: 27924 | H47: 33230 | K47: 16804 | L47: 14705 | M47: 16499 | N47: 20552 | O47: 20750
A48: 46 | B48: ALIMENTACIÓN | C48: Desayuno Americano | D48: El Desayuno Continental estar compuesto: • Carbohidrato de 150 gramos • Bebida caliente de 12 onzas • Proteína 200 gramos • mantequilla 10 gramos • mermelada 15 gramos • Fruta de 150 gramos Incluye transporte, menaje (servido en plato o mesa según corresponda) (Puesto Por Persona Que Incluye, Plato Base, Plato Fuerte, Plato Sopa, Vaso Largo O De Jugo, Copa De Agua, Tenedor Fuerte, Cuchillo Fuerte, Tenedor O Cuchara De Entrada, Plato Postre Cuchara O Tenedor Para Postre, Cuchillo De Untar, Según Corresponda) | E48: UNIDAD | F48: 0.19 | G48: 26948 | H48: 32068 | K48: 16217 | L48: 14191 | M48: 15922 | N48: 19834 | O48: 20025
A49: 47 | B49: ALIMENTACIÓN | C49: Desayuno Continental | D49: El Desayuno Continental estar compuesto: • Carbohidrato de 120 gramos • Bebida caliente de 12 onzas • Proteína 200 gramos • Mantequilla 10 gramos • Mermelada 15 gramos • Fruta de 150 gramos Incluye transporte, menaje (servido en plato o mesa según corresponda) (Puesto Por Persona Que Incluye, Plato Base, Plato Fuerte, Plato Sopa, Vaso Largo O De Jugo, Copa De Agua, Tenedor Fuerte, Cuchillo Fuerte, Tenedor O Cuchara De Entrada, Plato Postre Cuchara O Tenedor Para Postre, Cuchillo De Untar, Según Corresponda) | E49: UNIDAD | F49: 0.19 | G49: 26935 | H49: 32053 | K49: 16209 | L49: 14184 | M49: 15915 | N49: 19824 | O49: 20015
A50: 48 | B50: ALIMENTACIÓN | C50: Desayuno Buffet | D50: El Desayuno Buffet debe estar compuesto: • Carbohidrato de 120 gramos • Cereales • Variedad de quesos y jamones • Panes • Huevos al gusto • Proteína 200 gramos • Bebida caliente de 20 onzas • Mantequilla 10 gramos • Mermelada 15 gramos • Variedad de frutas (150 gramos porción) Incluye transporte, menaje (servido en plato o mesa según corresponda) (Puesto Por Persona Que Incluye, Plato Base, Plato Fuerte, Plato Sopa, Vaso Largo O De Jugo, Copa De Agua, Tenedor Fuerte, Cuchillo Fuerte, Tenedor O Cuchara De Entrada, Plato Postre Cuchara O Tenedor Para Postre, Cuchillo De Untar, Según Corresponda) | E50: UNIDAD | F50: 0.19 | G50: 36426 | H50: 43347 | K50: 21920 | L50: 19183 | M50: 21522 | N50: 26810 | O50: 27068
A51: 49 | B51: ALIMENTACIÓN | C51: Desayuno Light | D51: El Desayuno Light debe estar compuesto: • Bebida caliente de 20 onzas • Porciones de fruta de 150 gramos cada una Incluye transporte, menaje (servido en plato o mesa según corresponda) (Puesto Por Persona Que Incluye, Plato Base, Plato Fuerte, Plato Sopa, Vaso Largo O De Jugo, Copa De Agua, Tenedor Fuerte, Cuchillo Fuerte, Tenedor O Cuchara De Entrada, Plato Postre Cuchara O Tenedor Para Postre, Cuchillo De Untar, Según Corresponda) | E51: UNIDAD | F51: 0.19 | G51: 24233 | H51: 28837 | K51: 14583 | L51: 12762 | M51: 14318 | N51: 17835 | O51: 18007
A52: 50 | B52: ALIMENTACIÓN | C52: Desayuno Típico | D52: El Desayuno Típico debe estar compuesto: • Caldo de costilla (res) / tamal / changua • Carbohidrato de 120 gramos • Bebida caliente de 20 onzas Incluye transporte, menaje (servido en plato o mesa según corresponda) (Puesto Por Persona Que Incluye, Plato Base, Plato Fuerte, Plato Sopa, Vaso Largo O De Jugo, Copa De Agua, Tenedor Fuerte, Cuchillo Fuerte, Tenedor O Cuchara De Entrada, Plato Postre Cuchara O Tenedor Para Postre, Cuchillo De Untar, Según Corresponda) | E52: UNIDAD | F52: 0.19 | G52: 29549 | H52: 35163 | K52: 17782 | L52: 15561 | M52: 17459 | N52: 21748 | O52: 21958
A53: 51 | B53: ALIMENTACIÓN | C53: Almuerzo o Cena Ejecutivo (a) | D53: El Almuerzo o Cena Ejecutivo (a) debe estar compuesto: • Proteína de 250 gr • Carbohidratos de 150 gr • Reguladores de 150 gr • Bebida de 250 ml • Postre entre 70 gr El operador debe presentar (3) opciones de Proteína / Vegetariano, Carbohidratos, Reguladores, Bebida y Postre. Incluye transporte, menaje (servido en plato o mesa según corresponda) (Puesto Por Persona Que Incluye, Plato Base, Plato Fuerte, Plato Sopa, Vaso Largo O De Jugo, Copa De Agua, Tenedor Fuerte, Cuchillo Fuerte, Tenedor O Cuchara De Entrada, Plato Postre Cuchara O Tenedor Para Postre, Cuchillo De Untar, Según Corresponda) | E53: UNIDAD | F53: 0.19 | G53: 37528 | H53: 44658 | K53: 22583 | L53: 19763 | M53: 22174 | N53: 27621 | O53: 27887
A54: 52 | B54: ALIMENTACIÓN | C54: Almuerzo o Cena (Servido a la Mesa o Buffet ) | D54: El Almuerzo o Cena (servido a la Mesa o Buffet ) debe estar compuesto: • Proteína de 250 gr • Carbohidratos de 150 gr • Reguladores de 150 gr • Bebida de 250 ml • Postre entre 70 gr El operador debe presentar (3) opciones de Proteína / Vegetariano, Carbohidratos, Reguladores, Bebida y Postre. Incluye transporte, menaje (servido en plato o mesa según corresponda) (Puesto Por Persona Que Incluye, Plato Base, Plato Fuerte, Plato Sopa, Vaso Largo O De Jugo, Copa De Agua, Tenedor Fuerte, Cuchillo Fuerte, Tenedor O Cuchara De Entrada, Plato Postre Cuchara O Tenedor Para Postre, Cuchillo De Untar, Según Corresponda) | E54: UNIDAD | F54: 0.19 | G54: 46792 | H54: 55682 | K54: 28158 | L54: 24641 | M54: 27647 | N54: 34439 | O54: 34771
A55: 53 | B55: ALIMENTACIÓN | C55: Almuerzo o Cena Protocolo | D55: El mismo puede contener cualquiera de las siguientes solicitudes: • Entrada: sopa, crema, consomé, fruta • Corte de carnes, aves, pescados • 2 porciones de carbohidrato • Regulador • Bebida • Postre Incluye transporte, menaje (servido en plato o mesa según corresponda) (Puesto Por Persona Que Incluye, Plato Base, Plato Fuerte, Plato Sopa, Vaso Largo O De Jugo, Copa De Agua, Tenedor Fuerte, Cuchillo Fuerte, Tenedor O Cuchara De Entrada, Plato Postre Cuchara O Tenedor Para Postre, Cuchillo De Untar, Según Corresponda) | E55: UNIDAD | F55: 0.19 | G55: 59548 | H55: 70862 | K55: 35834 | L55: 31359 | M55: 35184 | N55: 43827 | O55: 44250
A56: 54 | B56: ALIMENTACIÓN | C56: Almuerzo (empacado) | D56: Sopa o fruta, proteína 250 gr, carbohidrato, cereal, ensalada o verdura y jugo Néctar y postre. Incluye transporte (distribución en sitio de realización del evento o actividad) | E56: UNIDAD | F56: 0.19 | G56: 35302 | H56: 42009 | K56: 21244 | L56: 18591 | M56: 20858 | N56: 25982 | O56: 26233
A57: 55 | B57: ALIMENTACIÓN | C57: Estación De Café Tipo A | D57: El mismo puede contener cualquiera de las siguientes solicitudes: • Debe llevar tabla de queso importados • Galletas saltinas Noel individuales • Galletas danesas • Almojábanas frescas • mañanitas • De todito • Achiras de ramo • Platanitos de frito lay • Nueces por separado: marañón, almendra, maní, pistacho. • Jugo natural de mandarina en vaso de vidrio o cristal • Pan baguete • Pan arándanos • Corazones y tortas • Café, capuchino, chocolate, aguas aromáticas y agua servido en pocillo de porcelana o vaso de cristal o vidrio según corresponda. • Se debe servir en menaje de loza NOTA: Debe contener 4 productos a elección de la lista más las bebidas de la lista contando siempre con el café, te, aromática y como bebida adicional chocolate o capuchino Para estas opciones las estaciones de café deberán venir servido en menaje de porcelana Debe incluir mesa o tablón con spandex. • Incluye el transporte, distribución en sitio de realización del evento o actividad o servido en plato o mesa según corresponda. Para estas opciones las estaciones de café deberán venir servido en menaje de porcelana. | E57: UNIDAD / POR PERSONA | F57: 0.19 | G57: 24111 | H57: 28692 | K57: 14509 | L57: 12697 | M57: 14246 | N57: 17746 | O57: 17917
A58: 56 | B58: ALIMENTACIÓN | C58: Estación de café (Simple) Tipo B | D58: • Café, tinto, aromática, té servido en vaso biodegradable de 4 onzas (servido en plato o mesa según corresponda e impuesto al consumo si aplica) • Agua servida en vaso material biodegradable de 10 onzas. Para estas opciones las estaciones de café deberán venir servido en menaje de porcelana Debe incluir mesa o tablón con mantel. • Incluye el transporte, distribución en sitio de realización del evento o actividad o servido en plato o mesa según corresponda. Para estas opciones las estaciones de café deberán venir servido en menaje de porcelana. | E58: UNIDAD / POR PERSONA | F58: 0.19 | G58: 14736 | H58: 17536 | K58: 8868 | L58: 7760 | M58: 8707 | N58: 10846 | O58: 10950
A59: 57 | B59: ALIMENTACIÓN | C59: Estación de café (Break) Tipo C | D59: • Café, tinto, aromática, té servido en vaso en material biodegradable de 4 onzas • Agua servida en vaso en material biodegradable de 10 onzas. • Acompañados de galletas y colaciones. Para estas opciones las estaciones de café deberán venir servido en menaje de porcelana Debe incluir mesa o tablón con mantel. • Incluye el transporte, distribución en sitio de realización del evento o actividad o servido en plato o mesa según corresponda. Para estas opciones las estaciones de café deberán venir servido en menaje de porcelana. | E59: UNIDAD / POR PERSONA | F59: 0.19 | G59: 15488 | H59: 18431 | K59: 9320 | L59: 8156 | M59: 9151 | N59: 11399 | O59: 11509
A60: 58 | B60: ALIMENTACIÓN | C60: Estación de café Protocolo | D60: • Cappuccino, mocaccino, chocolate, café, tinto de 6 onzas, • Agua y jugos naturales de 10 onzas • Botella de gaseosa de 400 ml, • muffins, colaciones. Para estas opciones las estaciones de café deberán venir servido en menaje de porcelana Debe incluir mesa o tablón con spandex. • Incluye el transporte, distribución en sitio de realización del evento o actividad o servido en plato o mesa según corresponda e impuesto al consumo si aplica. Para estas opciones las estaciones de café deberán venir servido en menaje de porcelana. | E60: UNIDAD / POR PERSONA | F60: 0.19 | G60: 24516 | H60: 29174 | K60: 14753 | L60: 12911 | M60: 14485 | N60: 18044 | O60: 18218
A61: 59 | B61: ALIMENTACIÓN | C61: Hidratación Agua Bolsa | D61: Hidratación: bolsa por 250 ml Incluye transporte (distribución en sitio de realización del evento o actividad) | E61: UNIDAD | F61: 0.19 | G61: 1107 | H61: 1317 | K61: 666 | L61: 583 | M61: 654 | N61: 815 | O61: 823
A62: 60 | B62: ALIMENTACIÓN | C62: Hidratación Botella de Agua pequeña | D62: Botella de agua de 300 ml Incluye transporte (distribución en sitio de realización del evento o actividad) | E62: UNIDAD | F62: 0.19 | G62: 1888 | H62: 2247 | K62: 1136 | L62: 994 | M62: 1116 | N62: 1390 | O62: 1403
A63: 61 | B63: ALIMENTACIÓN | C63: Hidratación Botella de Agua mediana | D63: Botella de agua de 600 ml Incluye transporte (distribución en sitio de realización del evento o actividad) | E63: UNIDAD | F63: 0.19 | G63: 3617 | H63: 4304 | K63: 2177 | L63: 1905 | M63: 2137 | N63: 2662 | O63: 2688
A64: 62 | B64: ALIMENTACIÓN | C64: Hidratación Botellón | D64: botellón de agua 20 litros Incluye transporte (distribución en sitio de realización del evento o actividad) | E64: UNIDAD | F64: 0.19 | G64: 26791 | H64: 31881 | K64: 16122 | L64: 14109 | M64: 15830 | N64: 19718 | O64: 19908
A65: 63 | B65: ALIMENTACIÓN | C65: Hidratación Botellón - MES CANTIDADES: 1-10 | D65: Botellon de agua de 20 L cada uno con soporte en plástico, que se adquieren en la primera semana en cada Casa Atrapasueños botellón de agua 20 litros Incluye transporte (distribución en sitio de realización del evento o actividad) | E65: UNIDAD | F65: 0.19 | G65: 23494 | H65: 27958 | K65: 14138 | L65: 12372 | M65: 13882 | N65: 17292 | O65: 17458
A66: 64 | B66: ALIMENTACIÓN | C66: Hidratación Botellón - MES CANTIDADES: 11-35 | D66: Botellon de agua de 20 L cada uno con soporte en plástico, que se adquieren en la primera semana en cada Casa Atrapasueños botellón de agua 20 litros Incluye transporte (distribución en sitio de realización del evento o actividad) | E66: UNIDAD | F66: 0.19 | G66: 21467 | H66: 25546 | K66: 12918 | L66: 11305 | M66: 12684 | N66: 15800 | O66: 15952
A67: 65 | B67: ALIMENTACIÓN | C67: Hidratación Botellón - MES CANTIDADES: 36-71 | D67: Botellon de agua de 20 L cada uno con soporte en plástico, que se adquieren en la primera semana en cada Casa Atrapasueños botellón de agua 20 litros Incluye transporte (distribución en sitio de realización del evento o actividad) | E67: UNIDAD | F67: 0.19 | G67: 20855 | H67: 24817 | K67: 12550 | L67: 10983 | M67: 12322 | N67: 15349 | O67: 15497
A68: 66 | B68: ALIMENTACIÓN | C68: Hidratación Botellón - MES CANTIDADES: 72-106 | D68: Botellon de agua de 20 L cada uno con soporte en plástico, que se adquieren en la primera semana en cada Casa Atrapasueños botellón de agua 20 litros Incluye transporte (distribución en sitio de realización del evento o actividad) | E68: UNIDAD | F68: 0.19 | G68: 22552 | H68: 26837 | K68: =+ROUND(($G68*(1-K$2)),0) -> 13571 | L68: =+ROUND(($G68*(1-L$2)),0) -> 11876 | M68: =+ROUND(($G68*(1-M$2)),0) -> 13325 | N68: =+ROUND(($G68*(1-N$2)),0) -> 16598 | O68: 16758
A69: 67 | B69: ALIMENTACIÓN | C69: Recarga botellones - MES CANTIDADES: 1-50 | D69: Botellon de agua de 20 L cada uno con soporte en plástico, que se adquieren en la primera semana en cada Casa Atrapasueños botellón de agua 20 litros Incluye transporte (distribución en sitio de realización del evento o actividad) | E69: UNIDAD | F69: 0.19 | G69: 20283 | H69: 24137 | K69: 12206 | L69: 10681 | M69: 11984 | N69: 14928 | O69: 15072
A70: 68 | B70: ALIMENTACIÓN | C70: Recarga botellones - MES CANTIDADES: 51-271 | D70: Recarga de agua para los botellones de 20 L durante las tres (3) semanas restantes del mes. Para infancia y adolescencia las recargas se realizan semanalmente a partir de la segunda semana de la etapa de alistamiento y durante las etapas de atención y cierre. Incluye transporte (distribución en sitio de realización del evento o actividad) | E70: UNIDAD | F70: 0.19 | G70: 19191 | H70: 22837 | K70: 11549 | L70: 10106 | M70: 11339 | N70: 14125 | O70: 14261
A71: 69 | B71: ALIMENTACIÓN | C71: Recarga botellones - MES CANTIDADES: 272-542 | D71: Recarga de agua para los botellones de 20 L durante las tres (3) semanas restantes del mes. Para infancia y adolescencia las recargas se realizan semanalmente a partir de la segunda semana de la etapa de alistamiento y durante las etapas de atención y cierre. Incluye transporte (distribución en sitio de realización del evento o actividad) | E71: UNIDAD | F71: 0.19 | G71: 16594 | H71: 19747 | K71: 9986 | L71: 8739 | M71: 9805 | N71: 12213 | O71: 12331
A72: 70 | B72: ALIMENTACIÓN | C72: Recarga botellones - MES CANTIDADES: 543-813 | D72: Recarga de agua para los botellones de 20 L durante las tres (3) semanas restantes del mes. Para infancia y adolescencia las recargas se realizan semanalmente a partir de la segunda semana de la etapa de alistamiento y durante las etapas de atención y cierre. Incluye transporte (distribución en sitio de realización del evento o actividad) | E72: UNIDAD | F72: 0.19 | G72: 20318 | H72: 24178 | K72: 12227 | L72: 10700 | M72: 12005 | N72: 14954 | O72: 15098
A73: 71 | B73: ALIMENTACIÓN | C73: Nevera de icopor tipo cava para hidratación pequeña | D73: Nevera de icopor 10 Litros. Incluye hielo seco - Alquiler por día.Incluye: transporte. | E73: Día | F73: 0.19 | G73: 29053 | H73: 34573 | K73: 17483 | L73: 15300 | M73: 17166 | N73: 21383 | O73: 21589
A74: 72 | B74: ALIMENTACIÓN | C74: Nevera de icopor tipo cava para hidratación mediana | D74: Nevera de icopor 40 Litros. Incluye hielo seco - Alquiler por día. Incluye: transporte. | E74: Día | F74: 0.19 | G74: 42237 | H74: 50262 | K74: 25417 | L74: 22243 | M74: 24956 | N74: 31086 | O74: 31386
A75: 73 | B75: ALIMENTACIÓN | C75: Nevera de icopor tipo cava para hidratación grande | D75: Nevera de icopor 80 Litros. Incluye hielo seco - Alquiler por día. Incluye: transporte. | E75: Día | F75: 0.19 | G75: 54425 | H75: 64766 | K75: 32751 | L75: 28661 | M75: 32157 | N75: 40057 | O75: 40443
A76: 74 | B76: ALIMENTACIÓN | C76: Nevera tipo cava industrial | D76: Nevera tipo cava industrial con puerta de vidrio y piso blanco de pie (instalada, funcional y desinstalada), vertical u horizontal según solicitud 50 litros - Alquiler por día. Incluye: transporte. | E76: Día | F76: 0.19 | G76: 182422 | H76: 217082 | K76: 109776 | L76: 96067 | M76: 107785 | N76: 134263 | O76: 135556
A77: 75 | B77: ALIMENTACIÓN | C77: Nevera tipo cava industrial | D77: Nevera tipo cava industrial con puerta de vidrio y piso blanco de pie (instalada, funcional y desinstalada), vertical u horizontal según solicitud 100 litros - Alquiler por día. Incluye: transporte. | E77: Día | F77: 0.19 | G77: 287790 | H77: 342470 | K77: 173184 | L77: 151555 | M77: 170042 | N77: 211813 | O77: 213855
A78: 76 | B78: ALQUILER TÉCNICA / OTROS | C78: Computador De Escritorio | D78: Alquiler Computador de escritorio. CPU Procesador min. Intel Core i5 U o AMD PRO, MRAM min. 4GB DDR2, Disco Duro 250 GB (7200 rpm) SATA, Mouse, Monitor panel plano 14” - 15”, Unidad DVD+/-RW integrada, Puertos mínimo 3 USB 2.0, puerto de video 1 VGA y 1 puerto HDMI integrado. Conectividad integrada tarjeta de red 1000/100/10 y conexión inalámbrica 802.11 a/b/g/n, punto de red Gigabit Ethernet (RJ-45), Audio interno, Teclado en español, Sistema operativo Microsoft® Windows® 7 Professional o superior, Office 2010 o superior, Antivirus y Anti spam instalados y actualizado a última versión, Compresor de archivos WinZip versión 12 o superior, Acrobat Reader. Todo lo anterior con su respectiva licencia y medios de instalación y configuración que permitan la lectura de archivos y la proyección de los mismos. Incluye: transporte. | E78: Día | F78: 0.19 | G78: 134702 | H78: 160295 | K78: 81060 | L78: 70936 | M78: 79589 | N78: 99141 | O78: 100096
A79: 77 | B79: ALQUILER TÉCNICA / OTROS | C79: Computador Portátil | D79: Alquiler Computador Portátil. CPU Procesador min. Intel Core i5 U o AMD PRO, MRAM min. 4GB DDR2, Disco Duro 250 GB (7200 rpm) SATA, Batería duración 3 hrs min, cargador, Mouse, Monitor panel plano 14” - 15”, Unidad DVD+/-RW integrada, Puertos mínimo 3 USB 2.0, puerto de video 1 VGA y 1 puerto HDMI integrado. Conectividad integrada tarjeta de red 1000/100/10 y conexión inalámbrica 802.11 a/b/g/n, punto de red Gigabit Ethernet (RJ-45), Audio interno, Teclado en español, Sistema operativo Microsoft® Windows® 7 Professional o superior, Office 2010 o superior, Antivirus y Anti spam instalados y actualizado a última versión, Compresor de archivos WinZip versión 12 o superior, Acrobat Reader. Todo lo anterior con su respectiva licencia y medios de instalación y configuración que permitan la lectura de archivos y la proyección de los mismos. Incluye: transporte. | E79: Día | F79: 0.19 | G79: 172398 | H79: 205154 | K79: 103744 | L79: 90788 | M79: 101862 | N79: 126885 | O79: 128108
A80: 78 | B80: ALQUILER TÉCNICA / OTROS | C80: Computador Macbook Pro | D80: Alquiler Computador Portátil Macbook Pro. Chip M2 con CPU de 8 núcleos y GPU de 10 núcleos, Neural Engine de 16 núcleos, 24 GB de memoria unificada para que todo sea más fluido, Pantalla Retina de 13,3 pulgadas con 500 nits de brillo y amplia gama de colores P3 para que disfrutes imágenes vibrantes y un nivel de detalle increíble, Conexión inalámbrica Wi-Fi 6, Dos puertos Thunderbolt, Almacenamiento SSD. Incluye: Cable de carga USB-C (2 metros) y Adaptador de corriente USB-C de 67 W. Todo lo anterior con su respectiva licencia y medios de instalación y configuración que permitan la lectura de archivos y la proyección de los mismos. Incluye: transporte | E80: Día | F80: 0.19 | G80: 286905 | H80: 341417 | K80: 172651 | L80: 151089 | M80: 169519 | N80: 211162 | O80: 213197
A81: 79 | B81: ALQUILER TÉCNICA / OTROS | C81: Tablet 10" | D81: Alquiler de Tablet de 10". Memoria Interna 64 GB, Memoria Ram 4 GB, Núcleos del Procesador (8) Velocidad del procesador (8), Marca del Procesador QUALCOMM SNAPDRAGON 8-CORE 439, Sistema Operativo Android, Duración de la Batería (10 Horas Aproximadas) Incluye: audífonos. Todo lo anterior con su respectiva licencia y medios de instalación y configuración que permitan la lectura de archivos y la proyección de los mismos. Incluye: transporte. | E81: Día | F81: 0.19 | G81: 104830 | H81: 124748 | K81: 63084 | L81: 55205 | M81: 61939 | N81: 77155 | O81: 77898
A82: 80 | B82: ALQUILER TÉCNICA / OTROS | C82: Ipad 10" | D82: Alquiler de IPad 9na Generación 10.2 pulgadas 64GB - Procesador: Chip A13 Bionic, Núcleos del procesador: Hexa Core, Núcleos del procesador: Hexa Core, Velocidad del procesador: 2x2.65 GHz Lightning + 4x1.8 GHz Thunder. Todo lo anterior con su respectiva licencia y medios de instalación y configuración que permitan la lectura de archivos y la proyección de los mismos. Incluye: transporte | E82: Día | F82: 0.19 | G82: 140799 | H82: 167551 | K82: 84729 | L82: 74147 | M82: 83192 | N82: 103628 | O82: 104627
A83: 81 | B83: ALQUILER TÉCNICA / OTROS | C83: Cable HDMI | D83: Cable HDMI de 15 MTS a 40 MTS para señal de video (SOLO SE COBRA UN DIA) independiente del la duración del evento. Incluye: transporte | E83: Día | F83: 0.19 | G83: 20859 | H83: 24822 | K83: 12552 | L83: 10985 | M83: 12325 | N83: 15352 | O83: 15500
A84: 82 | B84: ALQUILER TÉCNICA / OTROS | C84: Cable VGA | D84: Cable VGA de 15 MTS a 40 MTS para señal de video (SOLO SE COBRA UN DIA) independiente del la duración del evento. Incluye: transporte | E84: Día | F84: 0.19 | G84: 23361 | H84: 27800 | K84: 14058 | L84: 12302 | M84: 13803 | N84: 17194 | O84: 17359
A85: 83 | B85: ALQUILER TÉCNICA / OTROS | C85: impresora láser multifuncional | D85: A color y blanco u negro con escáner y copiadora / una resma tamaño carta, tóner nuevo y dejarlo en estado de funcionamiento (Con capacidad para 500 copias o impresiones) Incluye: transporte | E85: Día | F85: 0.19 | G85: 223520 | H85: 265989 | K85: 134508 | L85: 117709 | M85: 132068 | N85: 164511 | O85: 166096
A86: 84 | B86: ALQUILER TÉCNICA / OTROS | C86: Pointer | D86: Presentador Inalámbrico control remoto (SOLO SE COBRA UN DIA) Incluye: transporte | E86: Día | F86: 0.19 | G86: 63790 | H86: 75910 | K86: 38387 | L86: 33593 | M86: 37691 | N86: 46949 | O86: 47402
A87: 85 | B87: ALQUILER TÉCNICA / OTROS | C87: Pointer Perfect Cute | D87: Presentador profesional inalámbrico control remoto. Incluye: transporte | E87: Día | F87: 0.19 | G87: 87769 | H87: 104445 | K87: 52817 | L87: 46221 | M87: 51859 | N87: 64598 | O87: 65221
A88: 86 | B88: ALQUILER TÉCNICA / OTROS | C88: Base de TV | D88: Base alta o de pared para Tv de 32" a 75". Incluye: transporte | E88: Día | F88: 0.19 | G88: 61657 | H88: 73372 | K88: 37103 | L88: 32470 | M88: 36430 | N88: 45380 | O88: 45817
A89: 87 | B89: ALQUILER TÉCNICA / OTROS | C89: Ventilador tipo Industrial | D89: Ventilador para evento tipo industrial con base de 1 m de diámetro. Incluye: transporte | E89: Día | F89: 0.19 | G89: 105834 | H89: 125942 | K89: 63688 | L89: 55734 | M89: 62532 | N89: 77894 | O89: 78644
A90: 88 | B90: ALQUILER TÉCNICA / OTROS | C90: Ventilador de piso | D90: Ventilador de piso para tarima. Incluye: transporte | E90: Día | F90: 0.19 | G90: 65667 | H90: 78144 | K90: 39516 | L90: 34581 | M90: 38800 | N90: 48331 | O90: 48797
A91: 89 | B91: ALQUILER TÉCNICA / OTROS | C91: Aire Acondicionado de 5 Toneladas | D91: Alquiler e instalación de Aire Acondicionado de 5 Toneladas y conexión a punto de energía. Incluye: transporte | E91: Día | F91: 0.19 | G91: 468119 | H91: 557062 | K91: 281700 | L91: 246519 | M91: 276590 | N91: 344536 | O91: 347856
A92: 90 | B92: ALQUILER TÉCNICA / OTROS | C92: Extensión eléctrica 3 mts | D92: Extensión eléctrica de 3 mts (SOLO SE COBRA UNA VEZ POR EVENTO INDEPENDIENTE DEL NÚMERO DE DÍAS DE USO). Incluye: transporte | E92: Día | F92: 0.19 | G92: 32763 | H92: 38988 | K92: 19716 | L92: 17254 | M92: 19358 | N92: 24114 | O92: 24346
A93: 91 | B93: ALQUILER TÉCNICA / OTROS | C93: Extensiones Cable Encauchetado 3x14 o 3x12 | D93: Suministrar y montar extensiones en Cable Encauchetado 3X14 o 3X12 para los diferentes Puntos, con 1 Toma Doble de 110 Wt, mínimo de 20 mts (SOLO SE COBRA UNA VEZ POR EVENTO INDEPENDIENTE DEL NÚMERO DE DÍAS DE USO). Incluye: transporte | E93: Día | F93: 0.19 | G93: 38104 | H93: 45344 | K93: 22930 | L93: 20066 | M93: 22514 | N93: 28045 | O93: 28315
A94: 92 | B94: ALQUILER TÉCNICA / OTROS | C94: Extensiones Cable encauchetado para puntos de comida | D94: Suministrar y montar extensiones en Cable Encauchetado y tomas 3 x 50 para los diferentes Puntos con 1 Toma Doble de 220 Wt, mínimo de 20 MTS (SOLO SE COBRA UNA VEZ POR EVENTO INDEPENDIENTE DEL NÚMERO DE DÍAS DE USO). Incluye: transporte | E94: Día | F94: 0.19 | G94: 45004 | H94: 53555 | K94: 27082 | L94: 23700 | M94: 26591 | N94: 33123 | O94: 33442
A95: 93 | B95: ALQUILER TÉCNICA / OTROS | C95: Extensión eléctrica encauchetada 3 mts | D95: Extensión eléctrica encauchetada de 3 mts (SOLO SE COBRA UNA VEZ POR EVENTO INDEPENDIENTE DEL NÚMERO DE DÍAS DE USO). Incluye: transporte | E95: Día | F95: 0.19 | G95: 63247 | H95: 75264 | K95: 38060 | L95: 33307 | M95: 37370 | N95: 46550 | O95: 46998
A96: 94 | B96: ALQUILER TÉCNICA / OTROS | C96: Extensión eléctrica encauchetada 15 mts | D96: Extensión eléctrica encauchetada de 15 mts (SOLO SE COBRA UNA VEZ POR EVENTO INDEPENDIENTE DEL NÚMERO DE DÍAS DE USO). Incluye: transporte | E96: Día | F96: 0.19 | G96: 92819 | H96: 110455 | K96: 55856 | L96: 48880 | M96: 54842 | N96: 68315 | O96: 68973
A97: 95 | B97: ALQUILER TÉCNICA / OTROS | C97: Extensión eléctrica encauchetada 30 mts | D97: Extensión eléctrica encauchetada de 30 mts (SOLO SE COBRA UNA VEZ POR EVENTO INDEPENDIENTE DEL NÚMERO DE DÍAS DE USO). Incluye: transporte | E97: Día | F97: 0.19 | G97: 111197 | H97: 132324 | K97: 66915 | L97: 58558 | M97: 65701 | N97: 81841 | O97: 82630
A98: 96 | B98: ALQUILER TÉCNICA / OTROS | C98: Regletas de 6 tomas | D98: Regleta de 6 Puestos con Switch De Reposición - Extención De 3 Mts De Largo. SOLO SE COBRA UNA VEZ POR EVENTO INDEPENDIENTE DEL NÚMERO DE DÍAS DE USO). Incluye: transporte | E98: Día | F98: 0.19 | G98: 45907 | H98: 54629 | K98: 27626 | L98: 24175 | M98: 27124 | N98: 33788 | O98: 34113
A99: 97 | B99: ALQUILER TÉCNICA / OTROS | C99: Regletas de 8 tomas | D99: Regleta de 8 Puestos con cable de alimentación eléctrica de 1.5 mts en cable encauchetado. SOLO SE COBRA UNA VEZ POR EVENTO INDEPENDIENTE DEL NÚMERO DE DÍAS DE USO). Incluye: transporte | E99: Día | F99: 0.19 | G99: 87262 | H99: 103842 | K99: 52512 | L99: 45954 | M99: 51559 | N99: 64225 | O99: 64844
A100: 98 | B100: ALQUILER TÉCNICA / OTROS | C100: Yellow Jacket / Tapacables con 3 canales | D100: Pasacalles Yellow Jackets con 3 canales, para los cables y mangueras de potencia, audio y vídeo. Incluye: transporte | E100: Día | F100: 0.19 | G100: 39666 | H100: 47203 | K100: 23870 | L100: 20889 | M100: 23437 | N100: 29194 | O100: 29476
A101: 99 | B101: ALQUILER TÉCNICA / OTROS | C101: Yellow Jacket / Tapacables con 5 canales | D101: Pasacalles Yellow Jackets con 5 canales, para los cables y mangueras de potencia, audio y vídeo. Incluye: transporte | E101: Día | F101: 0.19 | G101: 52547 | H101: 62531 | K101: 31621 | L101: 27672 | M101: 31048 | N101: 38675 | O101: 39047
A102: 100 | B102: ALQUILER TÉCNICA / OTROS | C102: trípodes | D102: trípode base stand metálico, con las siguientes características: Capacidad máxima de carga 40 Kgs. Materiales de construcción hierro y Nylon. Altura Máxima 170 cms. Dimensiones (cm) 170 x 80 x 80. Peso (Neto / Bruto) 3 / 5 Kgs. Incluye: transporte | E102: Día | F102: 0.19 | G102: 64791 | H102: 77101 | K102: 38989 | L102: 34120 | M102: 38282 | N102: 47686 | O102: 48146
A103: 101 | B103: ALQUILER TÉCNICA / OTROS | C103: Video Beam 3000 Lumens | D103: Video Proyector de 3.000 Lumens con su respectiva base para piso o ser colgado, para proyectar imágenes de calidad superior o vídeos, debe incluir DVD. Incluye: transporte | E103: Día | F103: 0.19 | G103: 433798 | H103: 516220 | K103: 261047 | L103: 228445 | M103: 256311 | N103: 319275 | O103: 322352
A104: 102 | B104: ALQUILER TÉCNICA / OTROS | C104: Video Beam 5000 Lumens | D104: Video Proyector de 5.000 Lumens con su respectiva base para piso o ser colgado, para proyectar imágenes de calidad superior o vídeos, debe incluir DVD. Incluye: transporte | E104: Día | F104: 0.19 | G104: 667256 | H104: 794035 | K104: 401535 | L104: 351388 | M104: 394251 | N104: 491100 | O104: 495833
A105: 103 | B105: ALQUILER TÉCNICA / OTROS | C105: Video Beam 7000 Lumens | D105: Video Proyector de 7.000 Lumens con su respectiva base para piso o ser colgado, para proyectar imágenes de calidad superior o vídeos, debe incluir DVD. Incluye: transporte | E105: Día | F105: 0.19 | G105: 805506 | H105: 958552 | K105: 484730 | L105: 424193 | M105: 475936 | N105: 592852 | O105: 598566
A106: 104 | B106: ALQUILER TÉCNICA / OTROS | C106: Video Beam 10000 Lumens | D106: Video Proyector de 10.000 Lumens con su respectiva base para piso o ser colgado, para proyectar imágenes de calidad superior o vídeos, debe incluir DVD. Incluye: transporte | E106: Día | F106: 0.19 | G106: 974087 | H106: 1159164 | K106: 586177 | L106: 512971 | M106: 575543 | N106: 716928 | O106: 723837
A107: 105 | B107: ALQUILER TÉCNICA / OTROS | C107: Audífonos de diadema | D107: Audífonos de Diadema estereofónicos de alta fidelidad, dinámicos, supra-aurales, tipo cerrado, gama alta. Incluye: transporte | E107: Día | F107: 0.19 | G107: 52249 | H107: 62176 | K107: 31442 | L107: 27515 | M107: 30872 | N107: 38455 | O107: 38826
A108: 106 | B108: ALQUILER TÉCNICA / OTROS | C108: Audífonos Portables | D108: Audífonos tipo diademas de un solo uso. Incluye: transporte | E108: Unidad | F108: 0.19 | G108: 57680 | H108: 68639 | K108: 34710 | L108: 30375 | M108: 34080 | N108: 42452 | O108: 42862
A109: 107 | B109: ALQUILER TÉCNICA / OTROS | C109: In ear | D109: Audífonos de In ear de alto rendimiento - gama alta. Incluye: transporte | E109: Día | F109: 0.19 | G109: 66494 | H109: 79128 | K109: 40014 | L109: 35017 | M109: 39288 | N109: 48940 | O109: 49411
A110: 108 | B110: ALQUILER TÉCNICA / OTROS | C110: Radio de 2 vías | D110: Punto a punto, de largo alcance. Incluye: transporte | E110: Día | F110: 0.19 | G110: 59853 | H110: 71225 | K110: 36018 | L110: 31520 | M110: 35364 | N110: 44052 | O110: 44476
A111: 109 | B111: ALQUILER TÉCNICA / OTROS | C111: Radiocomunicación en sistema Avantel | D111: Sin llamadas, para cobertura entre localidades de Bogotá. Incluye: transporte | E111: Día | F111: 0.19 | G111: 74311 | H111: 88430 | K111: 44718 | L111: 39133 | M111: 43907 | N111: 54693 | O111: 55220
A112: 110 | B112: ALQUILER TÉCNICA / OTROS | C112: Hazer con ventilador | D112: Generador de la niebla de la máquina de Hazer, Máquina de humo, con ventilador industrial. Incluye cableado y conexión a energía. . Incluye: transporte | E112: Día | F112: 0.19 | G112: 249014 | H112: 296327 | K112: 149849 | L112: 131135 | M112: 147131 | N112: 183274 | O112: 185040
A113: 111 | B113: ALQUILER TÉCNICA / OTROS | C113: Sistema croma con iluminación | D113: Sistema croma con iluminación para lenguaje de señas (cámara de video, inter, monitor de retorno de video y luz frontal). Incluye: transporte | E113: Día | F113: 0.19 | G113: 484241 | H113: 576247 | K113: 291402 | L113: 255009 | M113: 286116 | N113: 356401 | O113: 359836
A114: 112 | B114: ALQUILER TÉCNICA / OTROS | C114: Sistema Venturi 2 Disparos | D114: Sistema Venturi con pipeta de C02 para 2 disparos de papel. Incluye: transporte | E114: Día | F114: 0.19 | G114: 287756 | H114: 342430 | K114: 173163 | L114: 151537 | M114: 170022 | N114: 211788 | O114: 213829
A115: 113 | B115: ALQUILER TÉCNICA / OTROS | C115: Sistema Venturi 4 disparos | D115: Sistema Venturi con pipeta de C02 para 4 disparos de papel. Incluye: transporte | E115: Día | F115: 0.19 | G115: 408140 | H115: 485687 | K115: 245607 | L115: 214933 | M115: 241151 | N115: 300391 | O115: 303286
A116: 114 | B116: ALQUILER TÉCNICA / OTROS | C116: Sistema Venturi 6 disparos | D116: Sistema Venturi con pipeta de C02 para 6 disparos de papel. Incluye: transporte | E116: Día | F116: 0.19 | G116: 470472 | H116: 559862 | K116: 283116 | L116: 247759 | M116: 277980 | N116: 346267 | O116: 349604
A117: 115 | B117: ALQUILER TÉCNICA / OTROS | C117: Bandera de Colombia con asta | D117: Bandera de 2,0 x 1,5 MTS en satín, con base, asta y puntera en madera y Base. Incluye: transporte | E117: Día | F117: 0.19 | G117: 166662 | H117: 198328 | K117: 100292 | L117: 87767 | M117: 98473 | N117: 122663 | O117: 123845
A118: 116 | B118: ALQUILER TÉCNICA / OTROS | C118: Rollo de Cinta de Seguridad | D118: Cinta para señalizar cerramientos Tipo: Señales de seguridad vial - Ancho: 20cm - Largo: 500 metros - Material: Plástico. Incluye: transporte | E118: unidad | F118: 0.19 | G118: 29373 | H118: 34954 | K118: 17676 | L118: 15468 | M118: 17355 | N118: 21619 | O118: 21827
A119: 117 | B119: ALQUILER TÉCNICA / OTROS | C119: Señalización de emergencia | D119: Por 1m2, tela reflectiva ignifuga poliéster.elástico, a 2 x 1 tinta. Incluye: transporte | E119: unidad | F119: 0.19 | G119: 30584 | H119: 36395 | K119: 18405 | L119: 16106 | M119: 18071 | N119: 22510 | O119: 22727
A120: 118 | B120: ALQUILER TÉCNICA / OTROS | C120: Sparkular Máquina | D120: Sparkular de tipo cascada de 12 chorros pirotecnia fría. Incluye: transporte | E120: Día | F120: 0.19 | G120: 411676 | H120: 489894 | K120: 247735 | L120: 216796 | M120: 243240 | N120: 302994 | O120: 305913
A121: 119 | B121: CONECTIVIDAD | C121: Alquiler de módem internet inalámbrico 10 gigas | D121: 10 gigas diarias 4G , (incluye personal técnico necesario), se debe entregar instalado y probado. Nota: El transporte esta implícito para la prestación del servicio. | E121: Día | F121: 0.19 | G121: 109484 | H121: 130286 | K121: 65884 | L121: 57656 | M121: 64689 | N121: 80580 | O121: 81357
A122: 120 | B122: CONECTIVIDAD | C122: Alquiler de módem internet inalámbrico 20 gigas | D122: 20 gigas diarias 4G , (incluye personal técnico necesario), se debe entregar instalado y probado .Nota: El transporte esta implícito para la prestación del servicio. | E122: Día | F122: 0.19 | G122: 132608 | H122: 157804 | K122: 79800 | L122: 69834 | M122: 78352 | N122: 97599 | O122: 98540
A123: 121 | B123: CONECTIVIDAD | C123: Canal dedicado 10MB | D123: Canal dedicado para video, voz y datos con conexión 10 MB de subida y de descarga, 99% de disponibilidad y ruta alterna con mínimo de 10 MB, tráfico ilimitado, monitoreo y router que permita garantizar un throughput de acuerdo al ancho de banda solicitado. Incluye: instalación, desinstalación, personal técnico, configuración de equipos. Se debe entregar funcional y probado. Se debe realizar una prueba FTP para garantizar la tasa de transferencia de 8,75 MB/s y el ancho de banda contratado. Nota: El transporte esta implícito para la prestación del servicio. | E123: Día | F123: 0.19 | G123: 510417 | H123: 607396 | K123: 307154 | L123: 268794 | M123: 301582 | N123: 375667 | O123: 379287
A124: 122 | B124: CONECTIVIDAD | C124: Canal dedicado 20MB | D124: Canal dedicado para video, voz y datos con conexión 20 MB de subida y de descarga, 99% de disponibilidad y ruta alterna con mínimo de 20 MB, tráfico ilimitado, monitoreo y router que permita garantizar un throughput de acuerdo al ancho de banda solicitado. Incluye: instalación, desinstalación, personal técnico, configuración de equipos. Se debe entregar funcional y probado. Se debe realizar una prueba FTP para garantizar la tasa de transferencia de 8,75 MB/s y el ancho de banda contratado. Nota: El transporte esta implícito para la prestación del servicio. | E124: Día | F124: 0.19 | G124: 776168 | H124: 923640 | K124: 467075 | L124: 408743 | M124: 458602 | N124: 571260 | O124: 576765
A125: 123 | B125: CONECTIVIDAD | C125: Canal dedicado 50MB | D125: Canal dedicado para video, voz y datos con conexión 50 MB de subida y de descarga, 99% de disponibilidad y ruta alterna con mínimo de 50 MB, tráfico ilimitado, monitoreo y router que permita garantizar un throughput de acuerdo al ancho de banda solicitado. Incluye: instalación, desinstalación, personal técnico, configuración de equipos. Se debe entregar funcional y probado. Se debe realizar una prueba FTP para garantizar la tasa de transferencia de 8,75 MB/s y el ancho de banda contratado. Nota: El transporte esta implícito para la prestación del servicio. | E125: Día | F125: 0.19 | G125: 1016868 | H125: 1210073 | K125: 611922 | L125: 535500 | M125: 600820 | N125: 748415 | O125: 755627
A126: 124 | B126: CONECTIVIDAD | C126: Canal dedicado 100MB | D126: Canal dedicado para video, voz y datos con conexión 100 MB de subida y de descarga, 99% de disponibilidad y ruta alterna con mínimo de 100 MB, tráfico ilimitado, monitoreo y router que permita garantizar un throughput de acuerdo al ancho de banda solicitado. Incluye: instalación, desinstalación, personal técnico, configuración de equipos. Se debe entregar funcional y probado. Se debe realizar una prueba FTP para garantizar la tasa de transferencia de 8,75 MB/s y el ancho de banda contratado. Nota: El transporte esta implícito para la prestación del servicio. | E126: Día | F126: 0.19 | G126: 1526009 | H126: 1815951 | K126: 918308 | L126: 803622 | M126: 901648 | N126: 1123143 | O126: 1133966
A127: 125 | B127: CONECTIVIDAD | C127: Canal dedicado 200MB | D127: Canal dedicado para video, voz y datos con conexión 200 MB de subida y de descarga, 99% de disponibilidad y ruta alterna con mínimo de 200 MB, tráfico ilimitado, monitoreo y router que permita garantizar un throughput de acuerdo al ancho de banda solicitado. Incluye: instalación, desinstalación, personal técnico, configuración de equipos. Se debe entregar funcional y probado. Se debe realizar una prueba FTP para garantizar la tasa de transferencia de 8,75 MB/s y el ancho de banda contratado. Nota: El transporte esta implícito para la prestación del servicio. | E127: Día | F127: 0.19 | G127: 1803940 | H127: 2146689 | K127: 1085559 | L127: 949985 | M127: 1065865 | N127: 1327700 | O127: 1340495
A128: 126 | B128: EMERGENCIA Y CONTINGENGENCIA | C128: Plan de Emergencia y contingencia (complejidad media) | D128: Diseño, formulación, presentación, radicación y aprobación de Plan de Emergencia y contingencia y, gestión de permisos para eventos de complejidad MEDIA | E128: unidad | F128: 0.19 | G128: 1920389 | H128: 2285263 | K128: 1155634 | L128: 1011309 | M128: 1134669 | N128: 1413406 | O128: 1427027
A129: 127 | B129: EMERGENCIA Y CONTINGENGENCIA | C129: Plan de Emergencia y contingencia (complejidad alta) | D129: Diseño, formulación, presentación, radicación y aprobación de Plan de Emergencia y contingencia y, gestión de permisos para eventos de complejidad ALTA | E129: unidad | F129: 0.19 | G129: 2630959 | H129: 3130841 | K129: 1583235 | L129: 1385507 | M129: 1554512 | N129: 1936386 | O129: 1955047
A130: 128 | B130: EMERGENCIA Y CONTINGENGENCIA | C130: Puesto de Salud | D130: * Cada puesto debe tener un Área de hasta 16 metros cuadrados, debe contar con Iluminación, suministro de Agua y equipo médico y de primeros auxilios necesario. | E130: TURNO 8 HORAS | F130: 0.19 | G130: 2574589 | H130: 3063761 | K130: 1549313 | L130: 1355822 | M130: 1521206 | N130: 1894897 | O130: 1913158
A131: 129 | B131: EMERGENCIA Y CONTINGENGENCIA | C131: Servicio De Primeros Auxilios (MEC) | D131: * Cada Brigada es de 3 o 4 personas y pueden ser Brigadas Móviles o Fijas * Cada Brigada Móvil debe llevar 1 Camilla Plegable, 1 Botiquín Portátil, Equipo de Protección y Linterna para cada integrante. | E131: TURNO 8 HORAS | F131: 0.19 | G131: 1873455 | H131: 2229411 | K131: 1127391 | L131: 986593 | M131: 1106938 | N131: 1378863 | O131: 1392151
A132: 130 | B132: EMERGENCIA Y CONTINGENGENCIA | C132: Equipos de Intervención | D132: Equipos de Intervención: 1APH, 3 socorristas. | E132: TURNO 8 HORAS | F132: 0.19 | G132: 1075511 | H132: 1279858 | K132: =+ROUND(($G132*(1-K$2)),0) -> 647211 | L132: =+ROUND(($G132*(1-L$2)),0) -> 566382 | M132: =+ROUND(($G132*(1-M$2)),0) -> 635470 | N132: =+ROUND(($G132*(1-N$2)),0) -> 791576 | O132: 799204
A133: 131 | B133: EMERGENCIA Y CONTINGENGENCIA | C133: Servicio Ambulancia Básica (1 - 4 Horas) | D133: Valor TOTAL del servicio, prestado por grupo de socorro para atención prehospitalaria básica establecido por horas de servicio de acuerdo con el parámetro de aforo establecido para eventos masivos. Incluye 1 conductor, 1 APH tecnólogo atención prehospitalaria y 1 médico. | E133: 4 horas | F133: 0.19 | G133: 1003290 | H133: 1193915 | K133: 603751 | L133: 528349 | M133: 592798 | N133: 738421 | O133: 745538
A134: 132 | B134: EMERGENCIA Y CONTINGENGENCIA | C134: Servicio Ambulancia Básica (5 - 8 Horas) | D134: Valor TOTAL del servicio, prestado por grupo de socorro para atención prehospitalaria básica establecido por horas de servicio de acuerdo con el parámetro de aforo establecido para eventos masivos. Incluye 1 conductor, 1 APH tecnólogo atención prehospitalaria y 1 médico. | E134: 8 horas | F134: 0.19 | G134: 1668067 | H134: 1985000 | K134: 1003794 | L134: 878432 | M134: 985584 | N134: 1227697 | O134: 1239528
A135: 133 | B135: EMERGENCIA Y CONTINGENGENCIA | C135: Ambulancia Básica (Hora Adicional) | D135: 1 hora adicional del servicio prestado por grupo de socorro para atención prehospitalaria básica establecido por horas de servicio de acuerdo con el parámetro de aforo establecido para eventos masivos. Incluye 1 conductor, 1 APH tecnólogo atención prehospitalaria y 1 médico. | E135: 1 hora | F135: 0.19 | G135: 330541 | H135: 393344 | K135: 198910 | L135: 174068 | M135: 195301 | N135: 243278 | O135: 245623
A136: 134 | B136: EMERGENCIA Y CONTINGENGENCIA | C136: Servicio Ambulancia Medicalizada (5 - 8 Horas) | D136: Valor TOTAL del servicio, prestado por grupo de socorro para atención prehospitalaria establecido por horas de servicio de acuerdo con el parámetro de aforo establecido para eventos masivos . Incluye 1 conductor, 1 APH tecnólogo atención prehospitalaria y 1 médico. Deberán cumplir con lo exigido en la Resolución 1043 de 2006 Anexo Técnico N° 1, expedida por el Ministerio de la Protección Social y las demás normas que lo modifiquen, adicionen o sustituyan, en cuanto a condiciones técnico mecánicas, dotación y recurso humano. | E136: 8 horas | F136: 0.19 | G136: 2172594 | H136: 2585387 | K136: 1307404 | L136: 1144125 | M136: 1283685 | N136: 1599029 | O136: 1614439
A137: 135 | B137: EMERGENCIA Y CONTINGENGENCIA | C137: Ambulancia Medicalizada (Hora Adicional) | D137: 1 hora adicional del servicio prestado por grupo de socorro para atención prehospitalaria establecido por horas de servicio de acuerdo con el parámetro de aforo establecido para eventos masivos . Incluye 1 conductor, 1 APH tecnólogo atención prehospitalaria y 1 médico. Deberán cumplir con lo exigido en la Resolución 1043 de 2006 Anexo Técnico N° 1, expedida por el Ministerio de la Protección Social y las demás normas que lo modifiquen, adicionen o sustituyan, en cuanto a condiciones técnico mecánicas, dotación y recurso humano. | E137: 1 hora | F137: 0.19 | G137: 331114 | H137: 394026 | K137: 199255 | L137: 174370 | M137: 195640 | N137: 243700 | O137: 246048
A138: 136 | B138: EMERGENCIA Y CONTINGENGENCIA | C138: Extintores Multipropósito | D138: Extintores Multipropósitos capacidad 10 Libras Incluye transporte (distribución en sitio de realización del evento o actividad) | E138: Día | F138: 0.19 | G138: 65830 | H138: 78338 | K138: 39615 | L138: 34667 | M138: 38896 | N138: 48451 | O138: 48918
A139: 137 | B139: EMERGENCIA Y CONTINGENGENCIA | C139: Extintores Solkaflam | D139: Extintores Solkaflam para equipos eléctricos de 3700 gramos; Incluye transporte (distribución en sitio de realización del evento o actividad) | E139: Día | F139: 0.19 | G139: 143832 | H139: 171160 | K139: 86554 | L139: 75744 | M139: 84984 | N139: 105860 | O139: 106881
A140: 138 | B140: EMERGENCIA Y CONTINGENGENCIA | C140: Extintores de Agua | D140: Extintores de Agua de 9 Litros para papel; Incluye transporte (distribución en sitio de realización del evento o actividad) | E140: Día | F140: 0.19 | G140: 84336 | H140: 100360 | K140: 50751 | L140: 44413 | M140: 49830 | N140: 62071 | O140: 62669
A141: 139 | B141: EMERGENCIA Y CONTINGENGENCIA | C141: Señalización | D141: (Entrada, salida de emergencia, PMU, Punto de Encuentro, Punto de Información, Punto de personas desaparecidas, zona de bienestar, baños, camerinos, sala juntas, señales de tránsito, PARE, DESVIO, MALETINES, CONOS DE 50 CMS, COLOMBINAS, PASACALLES.) (por día) | E141: Día | F141: 0.19 | G141: 60200 | H141: 71638 | K141: 36227 | L141: 31702 | M141: 35569 | N141: 44307 | O141: 44734
A142: 140 | B142: EMERGENCIA Y CONTINGENGENCIA | C142: Alquiler Baño portátil (con operario) | D142: Alquiler de baños móviles estándar que incluyan jabón, papel y operario. Incluye: Transporte, Montaje, atención, mantenimiento y desmontaje. | E142: Día | F142: 0.19 | G142: 425371 | H142: 506191 | K142: 255976 | L142: 224008 | M142: 251332 | N142: 313073 | O142: 316090
A143: 141 | B143: EMERGENCIA Y CONTINGENGENCIA | C143: Alquiler Baño portátil (sin operario) | D143: Alquiler de baños móviles estándar que incluyan jabón, y papel Incluye: Transporte, Montaje, atención, mantenimiento y desmontaje. | E143: Día | F143: 0.19 | G143: 325811 | H143: 387715 | K143: 196064 | L143: 171578 | M143: 192507 | N143: 239797 | O143: 242108
A144: 142 | B144: EMERGENCIA Y CONTINGENGENCIA | C144: Alquiler Baño portátil (Personal en condición de discapacidad) | D144: Alquiler de baños móviles para personas en condición de discapacidad que incluyan jabón, papel y operario. Incluye: Transporte, Montaje, atención, mantenimiento y desmontaje. | E144: Día | F144: 0.19 | G144: 492955 | H144: 586616 | K144: 296646 | L144: 259598 | M144: 291264 | N144: 362815 | O144: 366311
A145: 143 | B145: EMERGENCIA Y CONTINGENGENCIA | C145: Camilla | D145: Camilla Emergencia Plástica Inmovilizador Cabeza Kit Férulas | E145: Día | F145: 0.19 | G145: 174669 | H145: 207856 | K145: 105111 | L145: 91984 | M145: 103204 | N145: 128556 | O145: 129795
A146: 144 | B146: ENERGÌA | C146: Generador Eléctrico Insonorizado de 10 KVA | D146: Generador Eléctrico Insonorizado de 10 KVA, con parciales de energía necesarias para suministrar energía a los equipos solicitados para los eventos. Turno de 12 horas. Incluye extintores, parcial hasta 150 mts, yelow yackets, combustible, operario y cerramientos con vallas según las normatividad vigente y la matriz de Riesgo de la RETIE. Nota: El transporte esta implícito para la prestación del servicio. | E146: Día | F146: 0.19 | G146: 601216 | H146: 715447 | K146: 361794 | L146: 316611 | M146: 355231 | N146: 442495 | O146: 446759
A147: 145 | B147: ENERGÌA | C147: Generador Eléctrico Insonorizado de 20 KVA | D147: Generador Eléctrico Insonorizado de 20 KVA, con parciales de energía necesarias para suministrar energía a los equipos solicitados para los eventos. Turno de 12 horas. Incluye extintores, parcial hasta 150 mts, yelow yackets, combustible, operario y cerramientos con vallas según las normatividad vigente y la matriz de Riesgo de la RETIE. Nota: El transporte esta implícito para la prestación del servicio. | E147: Día | F147: 0.19 | G147: 822572 | H147: 978861 | K147: 495000 | L147: 433180 | M147: 486020 | N147: 605413 | O147: 611247
A148: 146 | B148: ENERGÌA | C148: Generador Eléctrico Insonorizado de 40 KVA | D148: Generador Eléctrico Insonorizado de 40 KVA, con parciales de energía necesarias para suministrar energía a los equipos solicitados para los eventos. Turno de 12 horas. Incluye extintores, parcial hasta 150 mts, yelow yackets, combustible, operario y cerramientos con vallas según las normatividad vigente y la matriz de Riesgo de la RETIE. Nota: El transporte esta implícito para la prestación del servicio. | E148: Día | F148: 0.19 | G148: 1125882 | H148: 1339800 | K148: 677523 | L148: 592908 | M148: 665232 | N148: 828649 | O148: 836635
A149: 147 | B149: ENERGÌA | C149: Generador Eléctrico Insonorizado de 60 KVA | D149: Generador Eléctrico Insonorizado de 60 KVA, con parciales de energía necesarias para suministrar energía a los equipos solicitados para los eventos. Turno de 12 horas. Incluye extintores, parcial hasta 150 mts, yelow yackets, combustible, operario y cerramientos con vallas según las normatividad vigente y la matriz de Riesgo de la RETIE. Nota: El transporte esta implícito para la prestación del servicio. | E149: Día | F149: 0.19 | G149: 1254349 | H149: 1492675 | K149: 754831 | L149: 660561 | M149: 741137 | N149: 923201 | O149: 932098
A150: 148 | B150: ENERGÌA | C150: Generador Eléctrico Insonorizado de 80 KVA | D150: Generador Eléctrico Insonorizado de 80 KVA, con parciales de energía necesarias para suministrar energía a los equipos solicitados para los eventos. Turno de 12 horas. Incluye extintores, parcial hasta 150 mts, yelow yackets, combustible, operario y cerramientos con vallas según las normatividad vigente y la matriz de Riesgo de la RETIE. Nota: El transporte esta implícito para la prestación del servicio. | E150: Día | F150: 0.19 | G150: 1626601 | H150: 1935655 | K150: 978841 | L150: 856596 | M150: 961083 | N150: 1197178 | O150: 1208715
A151: 149 | B151: ENERGÌA | C151: Generador Eléctrico Insonorizado de 125 KVA | D151: Generador Eléctrico Insonorizado de 125 KVA, con parciales de energía necesarias para suministrar energía a los equipos solicitados para los eventos. Turno de 12 horas. Incluye extintores, parcial hasta 150 mts, yelow yackets, combustible, operario y cerramientos con vallas según las normatividad vigente y la matriz de Riesgo de la RETIE. Nota: El transporte esta implícito para la prestación del servicio. | E151: Día | F151: 0.19 | G151: 2235407 | H151: 2660134 | K151: 1345203 | L151: 1177203 | M151: 1320799 | N151: 1645259 | O151: 1661115
A152: 150 | B152: ENERGÌA | C152: Generador Eléctrico Insonorizado de 200 KVA | D152: Generador Eléctrico Insonorizado de 200 KVA, con parciales de energía necesarias para suministrar energía a los equipos solicitados para los eventos. Turno de 12 horas. Incluye extintores, parcial hasta 150 mts, yelow yackets, combustible, operario y cerramientos con vallas según las normatividad vigente y la matriz de Riesgo de la RETIE. Nota: El transporte esta implícito para la prestación del servicio. | E152: Día | F152: 0.19 | G152: 2720637 | H152: 3237558 | K152: 1637200 | L152: 1432733 | M152: 1607499 | N152: 2002389 | O152: 2021686
A153: 151 | B153: ENERGÌA | C153: Generador Eléctrico Insonorizado de 250 KVA | D153: Generador Eléctrico Insonorizado de 250 KVA, con parciales de energía necesarias para suministrar energía a los equipos solicitados para los eventos. Incluye extintores, parcial hasta 150 mts, yelow yackets, combustible, operario y cerramientos con vallas según las normatividad vigente y la matriz de Riesgo de la RETIE. Nota: El transporte esta implícito para la prestación del servicio. | E153: Día | F153: 0.19 | G153: 3098041 | H153: 3686669 | K153: 1864311 | L153: 1631481 | M153: 1830489 | N153: 2280158 | O153: 2302132
A154: 152 | B154: ENERGÌA | C154: Parcial 20 mts | D154: Acometida eléctrica (Parcial con totalizador) de 20mts y todos los elementos requeridos para su operación. Nota: El transporte esta implícito para la prestación del servicio. | E154: Día | F154: 0.19 | G154: 155609 | H154: 185175 | K154: 93641 | L154: 81946 | M154: 91942 | N154: 114528 | O154: 115632
A155: 153 | B155: ENERGÌA | C155: Parcial 50 mts | D155: Acometida eléctrica (Parcial con totalizador) de 50mts y todos los elementos requeridos para su operación. Nota: El transporte esta implícito para la prestación del servicio. | E155: Día | F155: 0.19 | G155: 275835 | H155: 328244 | K155: 165990 | L155: 145259 | M155: 162978 | N155: 203015 | O155: 204971
A156: 154 | B156: ENERGÌA | C156: Parcial 100 mts | D156: Acometida eléctrica (Parcial con totalizador) de 100mts y todos los elementos requeridos para su operación. Nota: El transporte esta implícito para la prestación del servicio. | E156: Día | F156: 0.19 | G156: 433816 | H156: 516241 | K156: 261058 | L156: 228455 | M156: 256322 | N156: 319289 | O156: 322366
A157: 155 | B157: ILUMINACIÓN | C157: Par 64 #1 - #2 -#3 - #4 -#5 - #6 | D157: Lámpara Halógena par 64 de 1000 W, con portagelatinas, y filtros de colores de acuerdo a lo solicitado por el equipo de producción. Las luces deben ir con su cableado, Dimmer y respectiva consola de iluminación. Soporte para piso, estructura, trípode o tubo de cuelgue. Nota: El transporte esta implícito para la prestación del servicio. | E157: Día | F157: 0.19 | G157: 50736 | H157: 60376 | K157: 30531 | L157: 26718 | M157: 29978 | N157: 37342 | O157: 37702
A158: 156 | B158: ILUMINACIÓN | C158: Filtros Par 64 | D158: Filtros de colores o correctores para Par 64, según solicitud del equipo de producción con el color o corrector. Nota: El transporte esta implícito para la prestación del servicio. | E158: Día | F158: 0.19 | G158: 20236 | H158: 24081 | K158: 12177 | L158: 10657 | M158: 11957 | N158: 14894 | O158: 15037
A159: 157 | B159: ILUMINACIÓN | C159: Par Led 64 1wt | D159: Par de Leds RGBW de 1 Wt outdoor, soporte para piso, estructura, trípode o tubo de cuelgue, Las luces deben ir con su cableado y respectiva consola de iluminación. Nota: El transporte esta implícito para la prestación del servicio. | E159: Día | F159: 0.19 | G159: 44131 | H159: 52516 | K159: 26557 | L159: 23240 | M159: 26075 | N159: 32480 | O159: 32793
A160: 158 | B160: ILUMINACIÓN | C160: Par Led 64 3wt | D160: Par de Leds RGBW de 3 Wt outdoor, soporte para piso, estructura, trípode o tubo de cuelgue, Las luces deben ir con su cableado y respectiva consola de iluminación. Nota: El transporte esta implícito para la prestación del servicio. | E160: Día | F160: 0.19 | G160: 66198 | H160: 78776 | K160: 39836 | L160: 34861 | M160: 39113 | N160: 48722 | O160: 49191
A161: 159 | B161: ILUMINACIÓN | C161: Par Led 64 15wt | D161: Par de Leds RGBW de 15 Wt outdoor, soporte para piso, estructura, trípode o tubo de cuelgue, Las luces deben ir con su cableado y respectiva consola de iluminación. Nota: El transporte esta implícito para la prestación del servicio. | E161: Día | F161: 0.19 | G161: 93745 | H161: 111557 | K161: 56413 | L161: 49368 | M161: 55390 | N161: 68996 | O161: 69661
A162: 160 | B162: ILUMINACIÓN | C162: Pares de Leds Inalámbricas | D162: Inalámbrico con un batería recargable y un transmisor-receptor de D-Fi incorporado. Canales de DMX: 3, 4, 5 o 9 conectores DMX: 3-pin XLR fuente de luz: 6 LEDs (tri-color RGB) 3 W (600 mA), velocidad de Strobe: 0 a 17 Hz frecuencia PWM: 1.200 Hz ángulo de haz: 15° ángulo de campo: 29° Voltaje de entrada: 100 a 240 VCA, soporte para piso, estructura, trípode o tubo de cuelgue Las luces deben ir con su cableado y respectiva consola de iluminación. Nota: El transporte esta implícito para la prestación del servicio. | E162: Día | F162: 0.19 | G162: 113695 | H162: 135297 | K162: 68418 | L162: 59874 | M162: 67177 | N162: 83680 | O162: 84486
A163: 161 | B163: ILUMINACIÓN | C163: Elipsoidales o Leekos de 750 Wt o 1000 Wt | D163: Proyector de luz con capacidad de enfocar imágenes en el que el reflector tiene forma elíptica y puede concentrar la luz en puntos específicos. Para ángulos de 19º-26º-30º-50º.lampara alógena de 750 W o 1000 W, Las luces deben ir con su cableado y respectiva consola de iluminación. Nota: El transporte esta implícito para la prestación del servicio. | E163: Día | F163: 0.19 | G163: 241170 | H163: 286992 | K163: 145129 | L163: 127004 | M163: 142496 | N163: 177501 | O163: 179212
A164: 162 | B164: ILUMINACIÓN | C164: Leckos de Leds | D164: Proyector de luz con capacidad de enfocar imágenes en el que el reflector tiene forma elíptica y puede concentrar la luz en puntos específicos. Para ángulos de 19º-26º-30º-50º. Lampara Leds Blanca o RGBW de 50W o superiores para manejo de temperaturas de 3200º a 5800 K. Las luces deben ir con su cableado y respectiva consola de iluminación. Nota: El transporte esta implícito para la prestación del servicio. | E164: Día | F164: 0.19 | G164: 214584 | H164: 255355 | K164: 129130 | L164: 113004 | M164: 126788 | N164: 157934 | O164: 159456
A165: 163 | B165: ILUMINACIÓN | C165: Minibrutos o Molefay de 4 bombillas | D165: Lámparas Halógenas compuesta de 4 Bombillas DW 650 Wt. Las luces deben ir con su cableado, Dimmer y respectiva consola de iluminación. Nota: El transporte esta implícito para la prestación del servicio. | E165: Día | F165: 0.19 | G165: 113741 | H165: 135352 | K165: 68446 | L165: 59898 | M165: 67204 | N165: 83713 | O165: 84520
A166: 164 | B166: ILUMINACIÓN | C166: Minibrutos o Molefay de 6 bombillas | D166: Lámparas Halógenas compuesta de 6 Bombillas DW 650 Wt. Las luces deben ir con su cableado, Dimmer y respectiva consola de iluminación. Nota: El transporte esta implícito para la prestación del servicio. | E166: Día | F166: 0.19 | G166: 170007 | H166: 202308 | K166: 102305 | L166: 89529 | M166: 100449 | N166: 125125 | O166: 126331
A167: 165 | B167: ILUMINACIÓN | C167: Minibrutos o Molefay de 8 bombillas | D167: Lámparas Halógenas compuesta de 8 Bombillas DW de 650 Wt. Las luces deben ir con su cableado, Dimmer y respectiva consola de iluminación. Nota: El transporte esta implícito para la prestación del servicio. | E167: Día | F167: 0.19 | G167: 218638 | H167: 260179 | K167: 131570 | L167: 115138 | M167: 129183 | N167: 160918 | O167: 162468
A168: 166 | B168: ILUMINACIÓN | C168: Blinder de 2 bombillas | D168: Blinder de 2 de Alta Potencia de 175 W Leds - efecto estroboscópico, conexión DMX. Las luces deben ir con su cableado y respectiva consola de iluminación. Nota: El transporte esta implícito para la prestación del servicio. | E168: Día | F168: 0.19 | G168: 223409 | H168: 265857 | K168: 134441 | L168: 117651 | M168: 132002 | N168: 164429 | O168: 166014
A169: 167 | B169: ILUMINACIÓN | C169: Blinder de 4 bombillas | D169: Cegadoras de leds de 4 bombillas de 50 Wt cada una, con control DMX. Las luces deben ir con su cableado y respectiva consola de iluminación. Nota: El transporte esta implícito para la prestación del servicio. | E169: Día | F169: 0.19 | G169: 341626 | H169: 406535 | K169: 205581 | L169: 179906 | M169: 201851 | N169: 251437 | O169: 253860
A170: 168 | B170: ILUMINACIÓN | C170: Blinder de 6 bombillas | D170: Cegadoras de leds de 6 bombillas de 50 Wt cada una, con control DMX. Las luces deben ir con su cableado y respectiva consola de iluminación. Nota: El transporte esta implícito para la prestación del servicio. | E170: Día | F170: 0.19 | G170: 399377 | H170: 475259 | K170: 240333 | L170: 210319 | M170: 235973 | N170: 293941 | O170: 296774
A171: 169 | B171: ILUMINACIÓN | C171: Cabezas móviles 575 wt | D171: Cabeza Móvil Spot con lámpara de descarga 575 Wt, globos rotativos. Las luces deben ir con su cableado y respectivo consola de iluminación. Nota: El transporte esta implícito para la prestación del servicio. | E171: Día | F171: 0.19 | G171: 370432 | H171: 440814 | K171: 222915 | L171: 195076 | M171: 218871 | N171: 272638 | O171: 275265
A172: 170 | B172: ILUMINACIÓN | C172: Cabezas móviles leds Spot | D172: Cabeza Móvil Profile de Leds, rueda de globos rotativos, rueda de globos fijos. Las luces deben ir con su cableado y respectiva consola de iluminación. Nota: El transporte esta implícito para la prestación del servicio. | E172: Día | F172: 0.19 | G172: 400660 | H172: 476785 | K172: 241106 | L172: 210994 | M172: 236731 | N172: 294886 | O172: 297728
A173: 171 | B173: ILUMINACIÓN | C173: Cabezas móviles leds wash | D173: Cabeza Móvil Wash de Leds RGB. Las luces deben ir con su cableado y respectiva consola de iluminación. Nota: El transporte esta implícito para la prestación del servicio. | E173: Día | F173: 0.19 | G173: 344103 | H173: 409483 | K173: 207071 | L173: 181210 | M173: 203315 | N173: 253260 | O173: 255700
A174: 172 | B174: ILUMINACIÓN | C174: Cabezas móviles beam | D174: Cabeza Móvil Beam de lampara de descarga de Platinum 5R, disco de colores. Las luces deben ir con su cableado y respectiva consola de iluminación. Nota: El transporte esta implícito para la prestación del servicio. | E174: Día | F174: 0.19 | G174: 418374 | H174: 497865 | K174: 251765 | L174: 220323 | M174: 247198 | N174: 307923 | O174: 310891
A175: 173 | B175: ILUMINACIÓN | C175: Atomick 3000 Wt DMX | D175: Efectos dinámicos estroboscópicas. Strobe de 0-25 destellos/segundo de 50 Hz, 0-30 destellos segundo suministro de 60 hz. Lámpara de descarga de 3000 WT. Las luces deben ir con su cableado y respectiva consola de iluminación. Nota: El transporte esta implícito para la prestación del servicio. | E175: Día | F175: 0.19 | G175: 315332 | H175: 375245 | K175: 189758 | L175: 166059 | M175: 186315 | N175: 232084 | O175: 234321
A176: 174 | B176: ILUMINACIÓN | C176: Atomick o Strober de Leds | D176: Luz Estroboscópica de auto voltaje de 110 -220 V, con una salida de luz superior a los 50.000 lumens en la suma de sus leds, DMX o RDM para su manejo y configuración. Las luces deben ir con su cableado de energía, señal y respectiva consola de iluminación. Nota: El transporte esta implícito para la prestación del servicio. | E176: Día | F176: 0.19 | G176: 333304 | H176: 396632 | K176: 200573 | L176: 175524 | M176: 196934 | N176: 245312 | O176: 247676
A177: 175 | B177: ILUMINACIÓN | C177: Seguidor para escenario 1200 wt | D177: Proyector de seguimiento con lámpara de descarga de 1200 wt. Incluye trípode, operador de seguidor, su cableado de energía y señal. Nota: El transporte esta implícito para la prestación del servicio. | E177: Día | F177: 0.19 | G177: 461959 | H177: 549731 | K177: 277994 | L177: 243275 | M177: 272950 | N177: 340002 | O177: 343278
A178: 176 | B178: ILUMINACIÓN | C178: Seguidor para escenario Led | D178: Proyector de seguimiento con leds. Incluye trípode, operador de seguidor su cableado de energía y señal.. Nota: El transporte esta implícito para la prestación del servicio. | E178: Día | F178: 0.19 | G178: 348265 | H178: 414435 | K178: 209576 | L178: 183402 | M178: 205774 | N178: 256323 | O178: 258793
A179: 177 | B179: ILUMINACIÓN | C179: Barras de Leds 1 mt | D179: Barras de Iluminación de Leds de 1 mts de longitud de 18 de leds de RGB de 3 w ( IP ). Las luces deben ir con su cableado y respectiva consola.. Nota: El transporte esta implícito para la prestación del servicio. | E179: Día | F179: 0.19 | G179: 142261 | H179: 169291 | K179: 85609 | L179: 74917 | M179: 84055 | N179: 104704 | O179: 105713
A180: 178 | B180: ILUMINACIÓN | C180: Barras de Leds haz de 82º | D180: 30W 3 en 1 RGB COB LED, haz de 82 ° y ángulos de campo de 106 °, control individual de cada módulo COB, modos de curva de atenuación variable, estroboscopio y persecución efectos, ArtNet ™, KlingNet ™ y RDM (gestión de dispositivos remotos), 3pin y 5pin DMX, power Con y RJ45 conexiones de entrada / salida, pantalla de menú LCD con panel de control de 4 botones, soporte de aparejo integrado, enlace de alimentación de unidades múltiples, resistente exterior de aluminio fundido a presión, funcionamiento sin parpadeo para TV y PELÍCULA, consumo máximo de energía de 312 W y una fuente de alimentación de conmutación automática universal de varias tensiones (110-240 V). Las luces deben ir con su cableado y respectiva consola. Nota: El transporte esta implícito para la prestación del servicio. | E180: Día | F180: 0.19 | G180: 193194 | H180: 229901 | K180: 116259 | L180: 101739 | M180: 114149 | N180: 142191 | O180: 143561
A181: 179 | B181: ILUMINACIÓN | C181: Luces LED frías o cálidas | D181: Alquiler de luces LED frías o cálidas (según solicitud) graduables en intensidad de iluminación y temperatura.. Nota: El transporte esta implícito para la prestación del servicio. | E181: Día | F181: 0.19 | G181: 123725 | H181: 147233 | K181: 74454 | L181: 65156 | M181: 73103 | N181: 91062 | O181: 91939
A182: 180 | B182: ILUMINACIÓN | C182: Reflectores de 1000 wt (EXTERIORES) | D182: Reflectores de 1000 wt para exteriores, y todos los elementos requeridos para su operación. Nota: El transporte esta implícito para la prestación del servicio. | E182: Día | F182: 0.19 | G182: 106134 | H182: 126299 | K182: 63868 | L182: 55892 | M182: 62710 | N182: 78115 | O182: 78867
A183: 181 | B183: ILUMINACIÓN | C183: Alquiler e instalación de metro de bombilla luz fría o cálida | D183: Alquiler de metro de bombilla de luz fría o cálida, por metro dos bombillas de luz cálida de 1 wt, en cable encauchetado calibre 14. Incluye instalación, desinstalación y conexión de energía.. Nota: El transporte esta implícito para la prestación del servicio. Nota: El transporte esta implícito para la prestación del servicio. | E183: Día | F183: 0.19 | G183: 32207 | H183: 38326 | K183: 19381 | L183: 16961 | M183: 19030 | N183: 23704 | O183: 23933
A184: 182 | B184: ILUMINACIÓN | C184: Consola de Iluminación profesional 12 Canales | D184: Consola de Iluminación profesional con 4 monitores táctiles y 30 faders motorizados, conexión vía arnet de dispositivos varios de dmx y consolas a través de switch de arnet, cableado rj 45 para dichas conexiones con líneas de back up desde el stage hasta el front house. Nota: El transporte esta implícito para la prestación del servicio. | E184: Día | F184: 0.19 | G184: 422863 | H184: 503207 | K184: 254467 | L184: 222687 | M184: 249850 | N184: 311227 | O184: 314226
A185: 183 | B185: ILUMINACIÓN | C185: Fresneles de Leds | D185: Fresneles desde 65 W hasta 250 W con diferente alternativas de temperatura de color en 3200 Kº y 5600 Kº o también dual color, lente fresnel de cristal para asegurar una máxima emisión de luz del chip led, control DMX, auto voltaje 110 V/240 V - 50/60 Hz. Las luces deben ir con su cableado y respectiva consola de iluminación; Incluye transporte (distribución en sitio de realización del evento o actividad) | E185: Día | F185: 0.19 | G185: 162420 | H185: 193280 | K185: 97740 | L185: 85533 | M185: 95966 | N185: 119541 | O185: 120693
A186: 184 | B186: ILUMINACIÓN | C186: Arri Fresnel de 650 wt | D186: Reflector luminoso, uso de un lente ondulatorio en la boquilla de salida, lampara halógena de 650 Wt. Las luces deben ir con su cableado, Dimmer y respectiva consola de iluminación; Incluye transporte (distribución en sitio de realización del evento o actividad) | E186: Día | F186: 0.19 | G186: 92843 | H186: 110483 | K186: 55870 | L186: 48893 | M186: 54857 | N186: 68332 | O186: 68991
A187: 185 | B187: ILUMINACIÓN | C187: Arri Fresnel de 1000 wt | D187: Reflector luminoso, uso de un lente ondulatorio en la boquilla de salida, lampara halógena de 1000 Wt. Las luces deben ir con su cableado, Dimmer y respectiva consola de iluminación; Incluye transporte (distribución en sitio de realización del evento o actividad) | E187: Día | F187: 0.19 | G187: 127873 | H187: 152169 | K187: 76950 | L187: 67340 | M187: 75554 | N187: 94115 | O187: 95021
A188: 186 | B188: ILUMINACIÓN | C188: Arri Fresnel de 1200 wt | D188: Reflector luminoso, uso de un lente ondulatorio en la boquilla de salida, lampara halógena de 1200 Wt. Las luces deben ir con su cableado, Dimmer y respectiva consola de iluminación; Incluye transporte (distribución en sitio de realización del evento o actividad) | E188: Día | F188: 0.19 | G188: 165580 | H188: 197040 | K188: 99641 | L188: 87197 | M188: 97834 | N188: 121867 | O188: 123041
A189: 187 | B189: MATERIALES Y OTROS | C189: Resma Oficio (75 g/m2 resma 500 hojas) | D189: Resma de papel bond de 75 g/m2. tamaño oficio. resma 500 hojas; Incluye transporte (distribución en sitio de realización del evento o actividad) | E189: unidad | F189: 0.19 | G189: 23150 | H189: 27549 | K189: 13931 | L189: 12191 | M189: 13678 | N189: 17038 | O189: 17203
A190: 188 | B190: MATERIALES Y OTROS | C190: Remas de Opalina (250gr resma 100 hojas) | D190: Resma de Opalina Blanca 250 Grs Carta De 21.6x27.9 x 100 Unidades; Incluye transporte (distribución en sitio de realización del evento o actividad) | E190: unidad | F190: 0.19 | G190: 27053 | H190: 32193 | K190: 16280 | L190: 14247 | M190: 15984 | N190: 19911 | O190: 20103
A191: 189 | B191: MATERIALES Y OTROS | C191: Cuaderno | D191: Cuaderno cuadriculado de 50 hojas sin diseño en la portada Paquete x 12 Unidades; Incluye transporte (distribución en sitio de realización del evento o actividad) | E191: Unidad | F191: 0.19 | G191: 33996 | H191: 40455 | K191: 20458 | L191: 17903 | M191: 20087 | N191: 25021 | O191: 25262
A192: 190 | B192: MATERIALES Y OTROS | C192: Esferos (negro o azul) x 12 Unidades | D192: Tinta negra o azul, resistente, buena calidad Paquete x 12 Unidades; Incluye transporte (distribución en sitio de realización del evento o actividad) | E192: Unidad | F192: 0.19 | G192: 13851 | H192: 16483 | K192: 8335 | L192: 7294 | M192: 8184 | N192: 10194 | O192: 10293
A193: 191 | B193: MATERIALES Y OTROS | C193: Lápiz No. 2 Caja x 12 Unidades | D193: Lápiz No. 2 punta fina con borrador Caja x 12 unidades; Incluye transporte (distribución en sitio de realización del evento o actividad) | E193: Unidad | F193: 0.19 | G193: 10746 | H193: 12788 | K193: 6467 | L193: 5659 | M193: 6349 | N193: 7909 | O193: 7985
A194: 192 | B194: MATERIALES Y OTROS | C194: Cinta Gafer | D194: Cinta Gaffer Mate Negra 50M x 50mm; Incluye transporte (distribución en sitio de realización del evento o actividad) | E194: Unidad | F194: 0.19 | G194: 95466 | H194: 113605 | K194: 57449 | L194: 50274 | M194: 56406 | N194: 70263 | O194: 70940
A195: 193 | B195: MATERIALES Y OTROS | C195: Cinta Gafer Naranja | D195: Cinta Gaffer Naranja Fluorescente 25M x 25mm; Incluye transporte (distribución en sitio de realización del evento o actividad) | E195: Unidad | F195: 0.19 | G195: 93048 | H195: 110727 | K195: 55994 | L195: 49001 | M195: 54978 | N195: 68483 | O195: 69143
A196: 194 | B196: MATERIALES Y OTROS | C196: Carpeta de pasta dura Oficio 100 Und | D196: Carpeta de pasta dura imitación cuero con logo ICBF repujado tamaño Oficio 50-100 unidades; Incluye transporte (distribución en sitio de realización del evento o actividad) | E196: Unidad | F196: 0.19 | G196: 60165 | H196: 71596 | K196: =+ROUND(($G196*(1-K$2)),0) -> 36206 | L196: =+ROUND(($G196*(1-L$2)),0) -> 31684 | M196: =+ROUND(($G196*(1-M$2)),0) -> 35549 | N196: =+ROUND(($G196*(1-N$2)),0) -> 44281 | O196: 44708
A197: 195 | B197: MATERIALES Y OTROS | C197: Carpeta de pasta dura Carta 50 Und | D197: Carpeta de pasta dura imitación cuero con logo ICBF repujado tamaño carta 1- 50 unidades; Incluye transporte (distribución en sitio de realización del evento o actividad) | E197: Unidad | F197: 0.19 | G197: 50115 | H197: 59637 | K197: 30158 | L197: 26391 | M197: 29611 | N197: 36885 | O197: 37240
A198: 196 | B198: MATERIALES Y OTROS | C198: Papel Periódico (Pliego 100 cm *70 cm) | D198: Pliego 100 cm *70 cm Docena ; Incluye transporte (distribución en sitio de realización del evento o actividad) | E198: Unidad | F198: 0.19 | G198: 11066 | H198: 13169 | K198: 6659 | L198: 5828 | M198: 6538 | N198: 8145 | O198: 8223
A199: 197 | B199: MATERIALES Y OTROS | C199: Impresión (Color en papel carta estándar) | D199: Color - papel carta estándar, Incluye transporte (distribución en sitio de realización del evento o actividad) | E199: Unidad | F199: 0.19 | G199: 654 | H199: 778 | K199: 394 | L199: 344 | M199: 386 | N199: 481 | O199: 486
A200: 198 | B200: MATERIALES Y OTROS | C200: Impresión de Habladores | D200: Impresión de habladores en propalcote y/o Opalina de 250gr (según requerimiento) / Impresión 4x4 tintas / Dimensiones: 28 *5cm / Entrega del hablador incluye con grafas y/o pliegues según diseño entregado por el ICBF.; Incluye transporte (distribución en sitio de realización del evento o actividad) | E200: Unidad | F200: 0.19 | G200: 8692 | H200: 10343 | K200: 5231 | L200: 4577 | M200: 5136 | N200: 6397 | O200: 6459
... 451 more rows

Sheet Instructivo
C2: PROCESO ADQUISICIÓN DE BIENES Y SERVICIOS Instructivo para el uso de la herramienta para generar Formato Solicitud de Servicio | H2: F2.P4.ABS | I2: 2025-06-06
H3: Versión 9
H4: Clasificación de la Información: CLASIFICADA
C7: Para generar de forma correcta la solicitud de servicios se deben seguir las siguientes recomendaciones:
C9: * Favor descargue el documento y guardelo en un lugar seguro, cuya configuración del centro de confianza tenga habilitada la ejecución de macros.
C11: * Todos los campos resaltados en verde: | F11: deben ser diligenciados completamente en la ventana "DATOS INICIALES SOLICITUD DE SERVICIO"
C12: y en las ventanas para el registro de datos especificos de los anexos: "RESERVA DE TIQUETES", "DETALLE ALOJAMIENTO", "AUTORIZACIÓN DE PAGO DE
C13: REEMBOLSOS" Y "AUTORIZACIÓN DE PAGO A TERCEROS". Al ubicarse en cada uno de estos campos se mostrara una ayuda sobre el dato a diligenciar.
C15: * Las plantillas para cargue masivo de datos de "RESERVA DE TIQUETES", "DETALLE ALOJAMIENTO", "AUTORIZACIÓN DE PAGO DE REEMBOLSOS", se
C16: ecuentran alojadas en el siguiente link: | E16: https://icbfgob-my.sharepoint.com/:f:/g/personal/hector_alba_icbf_gov_co/EgQMBAbFGnBChH0hwpT5r0YB5pxvuH1u325rgJhW_Rn9kw?e=8ZnUvI
C18: * En la sección "REQUERIMIENTOS TARIFARIO" de la ventana "DATOS INICIALES SOLICITUD DE SERVICIO" se debe dar click en los botones ubicados al lado
C19: de cada concepto de los bienes y servicios incluidos en el tarifario de la actual vigencia:
C21: * En la ventana "DETALLE SOLICITUD DE SERVICIO", se debe agregar cada ítem requerido dando especial atencion a la cantidad necesaria de cada uno de ellos
C22: y a las observaciones a que haya lugar.
C24: * Luego de registrar todos los datos conforme a lo requerido, en la ventana "DATOS INICIALES SOLICITUD DE SERVICIO", se debe dar click en el botón "GENERAR
C25: SOLICITUD PDF", lo que generara el respectivo documento de solicitud para su firma y los anexos correspondientes.
C27: * Dichos documentos con la firma correspondiente, deben ser remitidos a la Dirección de Abastecimineto adjuntando el presente documento en formato excel con el
C28: fin de formalizar la solicitud.

Sheet Registro (hidden)
F3: PROCESO DE ADQUISICION DE BIENES Y SERVICIO DATOS INCIALES SOLICITUD DE SERVICIO | X3: F2.P4.ABS | AA3: 2025-06-06
X5: Versión 9
D8: Tipo de solicitud: | P8: Nombre del evento:
D10: Fecha de solicitud:
D12: Dependencia / Regional: | P12: Fecha inicio: | V12: Hora inicio:
D14: Nombres enlace del evento: | P14: Fecha fin: | V14: Hora fin:
D16: Teléfono de Contacto: | P16: Ciudad del Evento : | V16: # de Participantes:
D18: Correo Institucional de Contacto: | P18: Lugar de Realización:
D20: Jefe o Director Area / Regional: | P20: Objetivo del Evento:
D22: Cargo: | P22: Macroregión:
D24: REQUERIMIENTOS TARIFARIO
I25: Items Agregados | Q25: Items Agregados | X25: Items Agregados
E26: ALIMENTACIÓN | J26: =+COUNTIF(pdf!$D$18:$D$518,Registro!E26) -> 0 | M26: MATERIALES Y OTROS | Q26: =+COUNTIF(pdf!$D$18:$D$518,Registro!M26) -> 0 | U26: SONIDO | X26: =+COUNTIF(pdf!$D$18:$D$518,Registro!U26) -> 0
E27: ALQUILER TÉCNICA / OTROS | J27: =+COUNTIF(pdf!$D$18:$D$518,Registro!E27) -> 0 | M27: MENAJE | Q27: =+COUNTIF(pdf!$D$18:$D$518,Registro!M27) -> 0 | U27: TRADUCCIÓN | X27: =+COUNTIF(pdf!$D$18:$D$518,Registro!U27) -> 0
E28: CONECTIVIDAD | J28: =+COUNTIF(pdf!$D$18:$D$518,Registro!E28) -> 0 | M28: MOBILIARIO | Q28: =+COUNTIF(pdf!$D$18:$D$518,Registro!M28) -> 0 | U28: TRANSPORTE | X28: =+COUNTIF(pdf!$D$18:$D$518,Registro!U28) -> 0
E29: EMERGENCIA Y CONTINGENGENCIA | J29: =+COUNTIF(pdf!$D$18:$D$518,Registro!E29) -> 0 | M29: PERSONAL | Q29: =+COUNTIF(pdf!$D$18:$D$518,Registro!M29) -> 0 | U29: VIDEO | X29: =+COUNTIF(pdf!$D$18:$D$518,Registro!U29) -> 0
E30: ENERGÌA | J30: =+COUNTIF(pdf!$D$18:$D$518,Registro!E30) -> 0 | M30: REGISTRO | Q30: =+COUNTIF(pdf!$D$18:$D$518,Registro!M30) -> 0 | U30: VIRTUAL / HIBRIDO | X30: =+COUNTIF(pdf!$D$18:$D$518,Registro!U30) -> 0 | AA30: =+J26+J27+J28+J29+J30+J31+Q26+Q27+Q28+Q29+Q30+Q31+X26+X27+X28+X29+X30 -> 0
E31: ILUMINACIÓN | J31: =+COUNTIF(pdf!$D$18:$D$518,Registro!E31) -> 0 | M31: SALONES Y ALOJAMIENTO | Q31: =+COUNTIF(pdf!$D$18:$D$518,Registro!M31) -> 0 | U31: NO PREVISTOS | X31: =+COUNTIF(pdf!$D$18:$D$518,Registro!U31) -> 0
D33: OTROS
E37: =1000-COUNTIF(pdf!AA1553:AA2552,"") -> 0 | H37: =1000-COUNTIF(pdf!K539:K1538,"") -> 0 | M37: =1000-COUNTIF(pdf!AM2560:AM3559,"") -> 0 | Q37: =50-COUNTIF(pdf!AY3571:AY3620,"") -> 0
D39: GESTIÓN DIRECCIÓN DE ABASTECIMIENTO

Sheet 1. Detalle (hidden)
C2: PROCESO DE ADQUISICION DE BIENES Y SERVICIOS DETALLE SOLICITUD DE SERVICIO
C8: CONCEPTO: | D8: ALIMENTACIÓN
C9: BIEN O SERVICIO REQUERIDO:
C10: DESCRIPCIÓN:
C12: ITEM: | D12: 1 | E12: OBSERVACIONES:
C13: CANTIDAD:
C14: ITEMS: AGREGADOS: | D14: =+COUNT(pdf!C18:C518) -> 0 | E14: ALIMENTACIÓN | F14: Minuta Patron Tipo A - MES CANTIDADES:1 - 500
E15: UNIDAD | F15: =+IF(E13="","",E13) -> 
B17: ITEM | C17: CONCEPTO | D17: BIEN O SERVICIO REQUERIDO | E17: DESCRIPCIÓN | F17: UNIDAD DE MEDIDA
B18: 1 | C18: ALIMENTACIÓN | D18: Minuta Patron Tipo A - MES CANTIDADES:1 - 500 | E18: Alimentación reforzada tipo refrigerio lista para consumo para niños niñas y adolescentes minuta patrón SOMOS FAMILIA, SOMOS COMUNIDAD Niñas y niños de 6 a 11 meses 30 dias (ver anexo 5) Incluye transporte (distribución en sitio de realización del evento o actividad) | F18: UNIDAD
B19: 2 | C19: ALIMENTACIÓN | D19: Minuta Patron Tipo A - MES CANTIDADES:501-5000 | E19: Alimentación reforzada tipo refrigerio lista para consumo para niños niñas y adolescentes minuta patrón SOMOS FAMILIA, SOMOS COMUNIDAD Niñas y niños de 6 a 11 meses 30 dias (ver anexo 5) Incluye transporte (distribución en sitio de realización del evento o actividad) | F19: UNIDAD
B20: 3 | C20: ALIMENTACIÓN | D20: Minuta Patron Tipo A - MES CANTIDADES: 5001-10.000 | E20: Alimentación reforzada tipo refrigerio lista para consumo para niños niñas y adolescentes minuta patrón SOMOS FAMILIA, SOMOS COMUNIDAD Niñas y niños de 6 a 11 meses 30 dias (ver anexo 5) Incluye transporte (distribución en sitio de realización del evento o actividad) | F20: UNIDAD
B21: 4 | C21: ALIMENTACIÓN | D21: Minuta Patron Tipo A - MES CANTIDADES: más de 10.000 | E21: Alimentación reforzada tipo refrigerio lista para consumo para niños niñas y adolescentes minuta patrón SOMOS FAMILIA, SOMOS COMUNIDAD Niñas y niños de 6 a 11 meses 30 dias (ver anexo 5) Incluye transporte (distribución en sitio de realización del evento o actividad) | F21: UNIDAD
B22: 5 | C22: ALIMENTACIÓN | D22: Minuta Patron Tipo B - MES CANTIDADES: 1-500 | E22: Alimentación reforzada tipo refrigerio lista para consumo para niños niñas y adolescentes minuta patrón SOMOS FAMILIA, SOMOS COMUNIDAD Niñas y niños de 1 año a 5 años 11 meses (ver anexo 5) Incluye transporte (distribución en sitio de realización del evento o actividad) | F22: UNIDAD
B23: 6 | C23: ALIMENTACIÓN | D23: Minuta Patron Tipo B - MES CANTIDADES: 501 - 5000 | E23: Alimentación reforzada tipo refrigerio lista para consumo para niños niñas y adolescentes minuta patrón SOMOS FAMILIA, SOMOS COMUNIDAD Niñas y niños de 1 año a 5 años 11 meses (ver anexo 5) Incluye transporte (distribución en sitio de realización del evento o actividad) | F23: UNIDAD
B24: 7 | C24: ALIMENTACIÓN | D24: Minuta Patron Tipo B - MES CANTIDADES:5001 -10.000 | E24: Alimentación reforzada tipo refrigerio lista para consumo para niños niñas y adolescentes minuta patrón SOMOS FAMILIA, SOMOS COMUNIDAD Niñas y niños de 1 año a 5 años 11 meses (ver anexo 5) Incluye transporte (distribución en sitio de realización del evento o actividad) | F24: UNIDAD
B25: 8 | C25: ALIMENTACIÓN | D25: Minuta Patron Tipo B - MES CANTIDADES: más de 10.000 | E25: Alimentación reforzada tipo refrigerio lista para consumo para niños niñas y adolescentes minuta patrón SOMOS FAMILIA, SOMOS COMUNIDAD Niñas y niños de 1 año a 5 años 11 meses (ver anexo 5) Incluye transporte (distribución en sitio de realización del evento o actividad) | F25: UNIDAD
B26: 9 | C26: ALIMENTACIÓN | D26: Minuta Patron Tipo C - MES CANTIDADES: 1-500 | E26: Alimentación reforzada tipo refrigerio lista para consumo para niños niñas y adolescentes minuta patrón SOMOS FAMILIA, SOMOS COMUNIDAD Población mayor de 6 años (ver anexo 5) Incluye transporte (distribución en sitio de realización del evento o actividad) | F26: UNIDAD
B27: 10 | C27: ALIMENTACIÓN | D27: Minuta Patron Tipo C - MES CANTIDADES: 501 - 5000 | E27: Alimentación reforzada tipo refrigerio lista para consumo para niños niñas y adolescentes minuta patrón SOMOS FAMILIA, SOMOS COMUNIDAD Población mayor de 6 años (ver anexo 5) Incluye transporte (distribución en sitio de realización del evento o actividad) | F27: UNIDAD
B28: 11 | C28: ALIMENTACIÓN | D28: Minuta Patron Tipo C - MES CANTIDADES:5001 -10.000 | E28: Alimentación reforzada tipo refrigerio lista para consumo para niños niñas y adolescentes minuta patrón SOMOS FAMILIA, SOMOS COMUNIDAD Población mayor de 6 años (ver anexo 5) Incluye transporte (distribución en sitio de realización del evento o actividad) | F28: UNIDAD
B29: 12 | C29: ALIMENTACIÓN | D29: Minuta Patron Tipo C - MES CANTIDADES: más de 10.000 | E29: Alimentación reforzada tipo refrigerio lista para consumo para niños niñas y adolescentes minuta patrón SOMOS FAMILIA, SOMOS COMUNIDAD Población mayor de 6 años (ver anexo 5) Incluye transporte (distribución en sitio de realización del evento o actividad) | F29: UNIDAD
B30: 13 | C30: ALIMENTACIÓN | D30: Minuta Patron Tipo D - MES CANTIDADES: 1-500 | E30: Alimentación reforzada tipo refrigerio lista para consumo para niños niñas y adolescentes minuta patrón MODALIDAD ATRAPASUEÑOS MINUTA PATRÓN RACIÓN LISTA PARA CONSUMO 6 A 8 AÑOS (ver anexo 6) Incluye transporte (distribución en sitio de realización del evento o actividad) | F30: UNIDAD
B31: 14 | C31: ALIMENTACIÓN | D31: Minuta Patron Tipo D - MES CANTIDADES: 501 - 5000 | E31: Alimentación reforzada tipo refrigerio lista para consumo para niños niñas y adolescentes minuta patrón MODALIDAD ATRAPASUEÑOS MINUTA PATRÓN RACIÓN LISTA PARA CONSUMO 6 A 8 AÑOS (ver anexo 6) Incluye transporte (distribución en sitio de realización del evento o actividad) | F31: UNIDAD
B32: 15 | C32: ALIMENTACIÓN | D32: Minuta Patron Tipo D - MES CANTIDADES:5001 -10.000 | E32: Alimentación reforzada tipo refrigerio lista para consumo para niños niñas y adolescentes minuta patrón MODALIDAD ATRAPASUEÑOS MINUTA PATRÓN RACIÓN LISTA PARA CONSUMO 6 A 8 AÑOS (ver anexo 6) Incluye transporte (distribución en sitio de realización del evento o actividad) | F32: UNIDAD
B33: 16 | C33: ALIMENTACIÓN | D33: Minuta Patron Tipo D - MES CANTIDADES: más de 10.000 | E33: Alimentación reforzada tipo refrigerio lista para consumo para niños niñas y adolescentes minuta patrón MODALIDAD ATRAPASUEÑOS MINUTA PATRÓN RACIÓN LISTA PARA CONSUMO 6 A 8 AÑOS (ver anexo 6) Incluye transporte (distribución en sitio de realización del evento o actividad) | F33: UNIDAD
B34: 17 | C34: ALIMENTACIÓN | D34: Minuta Patron Tipo E - MES CANTIDADES: 1-500 | E34: Alimentación reforzada tipo refrigerio lista para consumo para niños niñas y adolescentes minuta patrón MODALIDAD ATRAPASUEÑOS MINUTA PATRÓN RACIÓN LISTA PARA CONSUMO 9 A 13 AÑOS (ver anexo 6) Incluye transporte (distribución en sitio de realización del evento o actividad) | F34: UNIDAD
B35: 18 | C35: ALIMENTACIÓN | D35: Minuta Patron Tipo E - MES CANTIDADES: 501 - 5000 | E35: Alimentación reforzada tipo refrigerio lista para consumo para niños niñas y adolescentes minuta patrón MODALIDAD ATRAPASUEÑOS MINUTA PATRÓN RACIÓN LISTA PARA CONSUMO 9 A 13 AÑOS (ver anexo 6) Incluye transporte (distribución en sitio de realización del evento o actividad) | F35: UNIDAD
B36: 19 | C36: ALIMENTACIÓN | D36: Minuta Patron Tipo E - MES CANTIDADES:5001 -10.000 | E36: Alimentación reforzada tipo refrigerio lista para consumo para niños niñas y adolescentes minuta patrón MODALIDAD ATRAPASUEÑOS MINUTA PATRÓN RACIÓN LISTA PARA CONSUMO 9 A 13 AÑOS (ver anexo 6) Incluye transporte (distribución en sitio de realización del evento o actividad) | F36: UNIDAD
B37: 20 | C37: ALIMENTACIÓN | D37: Minuta Patron Tipo E - MES CANTIDADES: más de 10.000 | E37: Alimentación reforzada tipo refrigerio lista para consumo para niños niñas y adolescentes minuta patrón MODALIDAD ATRAPASUEÑOS MINUTA PATRÓN RACIÓN LISTA PARA CONSUMO 9 A 13 AÑOS (ver anexo 6) Incluye transporte (distribución en sitio de realización del evento o actividad) | F37: UNIDAD
B38: 21 | C38: ALIMENTACIÓN | D38: Minuta Patron Tipo F - MES CANTIDADES: 1-500 | E38: Alimentación reforzada tipo refrigerio lista para consumo para niños niñas y adolescentes minuta patrón MODALIDAD ATRAPASUEÑOS MINUTA PATRÓN RACIÓN LISTA PARA CONSUMOS 14 A 17 Y MAYORES DE 18 AÑOS (ver anexo 6) Incluye transporte (distribución en sitio de realización del evento o actividad) | F38: UNIDAD
B39: 22 | C39: ALIMENTACIÓN | D39: Minuta Patron Tipo F - MES CANTIDADES: 501 - 5000 | E39: Alimentación reforzada tipo refrigerio lista para consumo para niños niñas y adolescentes minuta patrón MODALIDAD ATRAPASUEÑOS MINUTA PATRÓN RACIÓN LISTA PARA CONSUMOS 14 A 17 Y MAYORES DE 18 AÑOS (ver anexo 6) Incluye transporte (distribución en sitio de realización del evento o actividad) | F39: UNIDAD
B40: 23 | C40: ALIMENTACIÓN | D40: Minuta Patron Tipo F - MES CANTIDADES:5001 -10.000 | E40: Alimentación reforzada tipo refrigerio lista para consumo para niños niñas y adolescentes minuta patrón MODALIDAD ATRAPASUEÑOS MINUTA PATRÓN RACIÓN LISTA PARA CONSUMOS 14 A 17 Y MAYORES DE 18 AÑOS (ver anexo 6) Incluye transporte (distribución en sitio de realización del evento o actividad) | F40: UNIDAD
B41: 24 | C41: ALIMENTACIÓN | D41: Minuta Patron Tipo F - MES CANTIDADES: más de 10.000 | E41: Alimentación reforzada tipo refrigerio lista para consumo para niños niñas y adolescentes minuta patrón MODALIDAD ATRAPASUEÑOS MINUTA PATRÓN RACIÓN LISTA PARA CONSUMOS 14 A 17 Y MAYORES DE 18 AÑOS (ver anexo 6) Incluye transporte (distribución en sitio de realización del evento o actividad) | F41: UNIDAD
B42: 25 | C42: ALIMENTACIÓN | D42: Minuta Patron Tipo D - MES CANTIDADES: 1-500 | E42: Alimentación reforzada tipo refrigerio lista para consumo para niños niñas y adolescentes minuta patrón MODALIDAD ATRAPASUEÑOS MINUTA PATRÓN RACIÓN FAMILIAR PARA PREPARAR 6 A 8 AÑOS (ver anexo 8) Incluye transporte (distribución en sitio de realización del evento o actividad) | F42: UNIDAD
B43: 26 | C43: ALIMENTACIÓN | D43: Minuta Patron Tipo D - MES CANTIDADES: 501 - 5000 | E43: Alimentación reforzada tipo refrigerio lista para consumo para niños niñas y adolescentes minuta patrón MODALIDAD ATRAPASUEÑOS MINUTA PATRÓN RACIÓN FAMILIAR PARA PREPARAR 6 A 8 AÑOS (ver anexo 8) Incluye transporte (distribución en sitio de realización del evento o actividad) | F43: UNIDAD
B44: 27 | C44: ALIMENTACIÓN | D44: Minuta Patron Tipo D - MES CANTIDADES:5001 -10.000 | E44: Alimentación reforzada tipo refrigerio lista para consumo para niños niñas y adolescentes minuta patrón MODALIDAD ATRAPASUEÑOS MINUTA PATRÓN RACIÓN FAMILIAR PARA PREPARAR 6 A 8 AÑOS (ver anexo 8) Incluye transporte (distribución en sitio de realización del evento o actividad) | F44: UNIDAD
B45: 28 | C45: ALIMENTACIÓN | D45: Minuta Patron Tipo D - MES CANTIDADES: más de 10.000 | E45: Alimentación reforzada tipo refrigerio lista para consumo para niños niñas y adolescentes minuta patrón MODALIDAD ATRAPASUEÑOS MINUTA PATRÓN RACIÓN FAMILIAR PARA PREPARAR 6 A 8 AÑOS (ver anexo 8) Incluye transporte (distribución en sitio de realización del evento o actividad) | F45: UNIDAD
B46: 29 | C46: ALIMENTACIÓN | D46: Minuta Patron Tipo E - MES CANTIDADES: 1-500 | E46: Alimentación reforzada tipo refrigerio lista para consumo para niños niñas y adolescentes minuta patrón MODALIDAD ATRAPASUEÑOS MINUTA PATRÓN RACIÓN FAMILIAR PARA PREPARAR 9 A 13 AÑOS (ver anexo 8) Incluye transporte (distribución en sitio de realización del evento o actividad) | F46: UNIDAD
B47: 30 | C47: ALIMENTACIÓN | D47: Minuta Patron Tipo E - MES CANTIDADES: 501 - 5000 | E47: Alimentación reforzada tipo refrigerio lista para consumo para niños niñas y adolescentes minuta patrón MODALIDAD ATRAPASUEÑOS MINUTA PATRÓN RACIÓN FAMILIAR PARA PREPARAR 9 A 13 AÑOS (ver anexo 8) Incluye transporte (distribución en sitio de realización del evento o actividad) | F47: UNIDAD
B48: 31 | C48: ALIMENTACIÓN | D48: Minuta Patron Tipo E - MES CANTIDADES:5001 -10.000 | E48: Alimentación reforzada tipo refrigerio lista para consumo para niños niñas y adolescentes minuta patrón MODALIDAD ATRAPASUEÑOS MINUTA PATRÓN RACIÓN FAMILIAR PARA PREPARAR 9 A 13 AÑOS (ver anexo 8) Incluye transporte (distribución en sitio de realización del evento o actividad) | F48: UNIDAD
B49: 32 | C49: ALIMENTACIÓN | D49: Minuta Patron Tipo E - MES CANTIDADES: más de 10.000 | E49: Alimentación reforzada tipo refrigerio lista para consumo para niños niñas y adolescentes minuta patrón MODALIDAD ATRAPASUEÑOS MINUTA PATRÓN RACIÓN FAMILIAR PARA PREPARAR 9 A 13 AÑOS (ver anexo 8) Incluye transporte (distribución en sitio de realización del evento o actividad) | F49: UNIDAD
B50: 33 | C50: ALIMENTACIÓN | D50: Minuta Patron Tipo F - MES CANTIDADES: 1-500 | E50: Alimentación reforzada tipo refrigerio lista para consumo para niños niñas y adolescentes minuta patrón MODALIDAD ATRAPASUEÑOS MINUTA PATRÓN RACIÓN FAMILIAR PARA PREPARAR 14 A 17 Y MAYORES DE 18 AÑOS (ver anexo 8) Incluye transporte (distribución en sitio de realización del evento o actividad) | F50: UNIDAD
B51: 34 | C51: ALIMENTACIÓN | D51: Minuta Patron Tipo F - MES CANTIDADES: 501 - 5000 | E51: Alimentación reforzada tipo refrigerio lista para consumo para niños niñas y adolescentes minuta patrón MODALIDAD ATRAPASUEÑOS MINUTA PATRÓN RACIÓN FAMILIAR PARA PREPARAR 14 A 17 Y MAYORES DE 18 AÑOS (ver anexo 8) Incluye transporte (distribución en sitio de realización del evento o actividad) | F51: UNIDAD
B52: 35 | C52: ALIMENTACIÓN | D52: Minuta Patron Tipo F - MES CANTIDADES:5001 -10.000 | E52: Alimentación reforzada tipo refrigerio lista para consumo para niños niñas y adolescentes minuta patrón MODALIDAD ATRAPASUEÑOS MINUTA PATRÓN RACIÓN FAMILIAR PARA PREPARAR 14 A 17 Y MAYORES DE 18 AÑOS (ver anexo 8) Incluye transporte (distribución en sitio de realización del evento o actividad) | F52: UNIDAD
B53: 36 | C53: ALIMENTACIÓN | D53: Minuta Patron Tipo F - MES CANTIDADES: más de 10.000 | E53: Alimentación reforzada tipo refrigerio lista para consumo para niños niñas y adolescentes minuta patrón MODALIDAD ATRAPASUEÑOS MINUTA PATRÓN RACIÓN FAMILIAR PARA PREPARAR 14 A 17 Y MAYORES DE 18 AÑOS (ver anexo 8) Incluye transporte (distribución en sitio de realización del evento o actividad) | F53: UNIDAD
B54: 37 | C54: ALIMENTACIÓN | D54: Olla comunitaria con productos y servicio - MES CANTIDADES: 1 - 500 | E54: Preparación o preparaciones con la comunidad para la olla comunitaria, el contratista debe garantizar la entrega de los insumos acorde a la solicitud del ICBF de acuerdo las orientaciones técnicas Anexo 7. Descripción Olla Comunitaria (por persona) | F54: UNIDAD
B55: 38 | C55: ALIMENTACIÓN | D55: Olla comunitaria con productos y servicio - MES CANTIDADES: 501-5000 | E55: Preparación o preparaciones con la comunidad para la olla comunitaria, el contratista debe garantizar la entrega de los insumos acorde a la solicitud del ICBF de acuerdo las orientaciones técnicas Anexo 7. Descripción Olla Comunitaria (por persona) | F55: UNIDAD
B56: 39 | C56: ALIMENTACIÓN | D56: Olla comunitaria con productos y servicio - MES CANTIDADES: 5001-10.000 | E56: Preparación o preparaciones con la comunidad para la olla comunitaria, el contratista debe garantizar la entrega de los insumos acorde a la solicitud del ICBF de acuerdo las orientaciones técnicas Anexo 7. Descripción Olla Comunitaria (por persona) | F56: UNIDAD
B57: 40 | C57: ALIMENTACIÓN | D57: Olla comunitaria con productos y servicio - MES CANTIDADES: más de 10.000 | E57: Preparación o preparaciones con la comunidad para la olla comunitaria, el contratista debe garantizar la entrega de los insumos acorde a la solicitud del ICBF de acuerdo las orientaciones técnicas Anexo 7. Descripción Olla Comunitaria (por persona) | F57: UNIDAD
B58: 41 | C58: ALIMENTACIÓN | D58: Refrigerio No Perecedero | E58: El Refrigerio esta compuesto: • Dos (2) productos de paquete (snack) entre 35 y 70 gramos • Bebida: Jugo de caja de 200 ml / jugo de botella plástica de 300 ml / gaseosa botella plástica de 250 ml • Fruta de cosecha • Empacado Incluye transporte (distribución en sitio de realización del evento o actividad) | F58: UNIDAD
B59: 42 | C59: ALIMENTACIÓN | D59: Refrigerios Tipo A | E59: El Refrigerio esta compuesto: • Producto de sal o de dulce de 150 gramos o sándwich Gourmet (pan tipo árabe o baguette o aliñado especial, 2 rodajas de jamón de (cordero o pierna) de 70g, 2 rodajas de queso (doble crema o mozzarella) 60 gr de lechuga rizada y tomate). ** Sandwich o producto sustituto. • Bebida: Jugo de fruta Néctar, leche o derivados, sorbetes, malteada, gaseosas en empaque comercial duro, de vidrio o plástico o Tetrapak o lata. No en bolsas •Fruta de 150 gramos • Postre entre 35 y 70 gr Incluye transporte (distribución en sitio de realización del evento o actividad) | F59: UNIDAD
B60: 43 | C60: ALIMENTACIÓN | D60: Refrigerios Tipo B | E60: El Refrigerio esta compuesto: • Producto de sal o de dulce de 200 gramos o sándwich gourmet (pan tipo árabe o baguette o aliñado especial, 2 rodajas de jamón de (cordero o pierna) de 70 g, 2 rodajas de queso (doble crema o mozzarella) 60 gr de lechuga rizada y tomate). ** Sandwich o producto sustituto. • Bebida: jugo Néctar de 200 ml, jugo de botella plástica de 300 ml, gaseosa botella plástica de 250 ml (tipo Pet) • Fruta de 150 gramos • Postre entre 35 y 70 gr • Empacado Incluye transporte (distribución en sitio de realización del evento o actividad). | F60: UNIDAD
B61: 44 | C61: ALIMENTACIÓN | D61: Refrigerios Tipo C | E61: El Refrigerio esta compuesto: • Producto de sal o de dulce de 200 gramos o sándwich (pan tipo árabe o baguette o aliñado especial, 2 rodajas de jamón de (cordero o pierna) de 70 g, 2 rodajas de queso (doble crema o mozzarella) 60 gr de lechuga rizada y tomate). ** Sandwich o producto sustituto. • Bebida: jugo Néctar 200 ml, jugo natural en agua servido en vaso o copa, gaseosa botella plástica de 250 ml (tipo pet) • Fruta de 150 gramos • Postre entre 35 y 70 gr • Servido en loza Incluye transporte (distribución en sitio de realización del evento o actividad) | F61: UNIDAD
B62: 45 | C62: ALIMENTACIÓN | D62: Refrigerio Para Protocolo | E62: El Refrigerio esta compuesto: • Producto de sal o de dulce: muffins / sándwich gourmet (pan tipo árabe o baguette o aliñado especial, 2 rodajas de jamón de (cordero o pierna) de 70 g, 2 rodajas de queso (doble crema o mozzarella) 60 gr de lechuga rizada y tomate). ** Sandwich o producto sustituto. • Bebida: Jugo natural de frutas, brocheta de frutas. • Acompañamiento: pasteles, postres, dulces. • Empacado o servido en menaje de loza nacional o importada según corresponda y decorado para ocasiones especiales. Incluye transporte (distribución en sitio de realización del evento o actividad) | F62: UNIDAD
B63: 46 | C63: ALIMENTACIÓN | D63: Desayuno Americano | E63: El Desayuno Continental estar compuesto: • Carbohidrato de 150 gramos • Bebida caliente de 12 onzas • Proteína 200 gramos • mantequilla 10 gramos • mermelada 15 gramos • Fruta de 150 gramos Incluye transporte, menaje (servido en plato o mesa según corresponda) (Puesto Por Persona Que Incluye, Plato Base, Plato Fuerte, Plato Sopa, Vaso Largo O De Jugo, Copa De Agua, Tenedor Fuerte, Cuchillo Fuerte, Tenedor O Cuchara De Entrada, Plato Postre Cuchara O Tenedor Para Postre, Cuchillo De Untar, Según Corresponda) | F63: UNIDAD
B64: 47 | C64: ALIMENTACIÓN | D64: Desayuno Continental | E64: El Desayuno Continental estar compuesto: • Carbohidrato de 120 gramos • Bebida caliente de 12 onzas • Proteína 200 gramos • Mantequilla 10 gramos • Mermelada 15 gramos • Fruta de 150 gramos Incluye transporte, menaje (servido en plato o mesa según corresponda) (Puesto Por Persona Que Incluye, Plato Base, Plato Fuerte, Plato Sopa, Vaso Largo O De Jugo, Copa De Agua, Tenedor Fuerte, Cuchillo Fuerte, Tenedor O Cuchara De Entrada, Plato Postre Cuchara O Tenedor Para Postre, Cuchillo De Untar, Según Corresponda) | F64: UNIDAD
B65: 48 | C65: ALIMENTACIÓN | D65: Desayuno Buffet | E65: El Desayuno Buffet debe estar compuesto: • Carbohidrato de 120 gramos • Cereales • Variedad de quesos y jamones • Panes • Huevos al gusto • Proteína 200 gramos • Bebida caliente de 20 onzas • Mantequilla 10 gramos • Mermelada 15 gramos • Variedad de frutas (150 gramos porción) Incluye transporte, menaje (servido en plato o mesa según corresponda) (Puesto Por Persona Que Incluye, Plato Base, Plato Fuerte, Plato Sopa, Vaso Largo O De Jugo, Copa De Agua, Tenedor Fuerte, Cuchillo Fuerte, Tenedor O Cuchara De Entrada, Plato Postre Cuchara O Tenedor Para Postre, Cuchillo De Untar, Según Corresponda) | F65: UNIDAD
B66: 49 | C66: ALIMENTACIÓN | D66: Desayuno Light | E66: El Desayuno Light debe estar compuesto: • Bebida caliente de 20 onzas • Porciones de fruta de 150 gramos cada una Incluye transporte, menaje (servido en plato o mesa según corresponda) (Puesto Por Persona Que Incluye, Plato Base, Plato Fuerte, Plato Sopa, Vaso Largo O De Jugo, Copa De Agua, Tenedor Fuerte, Cuchillo Fuerte, Tenedor O Cuchara De Entrada, Plato Postre Cuchara O Tenedor Para Postre, Cuchillo De Untar, Según Corresponda) | F66: UNIDAD
B67: 50 | C67: ALIMENTACIÓN | D67: Desayuno Típico | E67: El Desayuno Típico debe estar compuesto: • Caldo de costilla (res) / tamal / changua • Carbohidrato de 120 gramos • Bebida caliente de 20 onzas Incluye transporte, menaje (servido en plato o mesa según corresponda) (Puesto Por Persona Que Incluye, Plato Base, Plato Fuerte, Plato Sopa, Vaso Largo O De Jugo, Copa De Agua, Tenedor Fuerte, Cuchillo Fuerte, Tenedor O Cuchara De Entrada, Plato Postre Cuchara O Tenedor Para Postre, Cuchillo De Untar, Según Corresponda) | F67: UNIDAD
B68: 51 | C68: ALIMENTACIÓN | D68: Almuerzo o Cena Ejecutivo (a) | E68: El Almuerzo o Cena Ejecutivo (a) debe estar compuesto: • Proteína de 250 gr • Carbohidratos de 150 gr • Reguladores de 150 gr • Bebida de 250 ml • Postre entre 70 gr El operador debe presentar (3) opciones de Proteína / Vegetariano, Carbohidratos, Reguladores, Bebida y Postre. Incluye transporte, menaje (servido en plato o mesa según corresponda) (Puesto Por Persona Que Incluye, Plato Base, Plato Fuerte, Plato Sopa, Vaso Largo O De Jugo, Copa De Agua, Tenedor Fuerte, Cuchillo Fuerte, Tenedor O Cuchara De Entrada, Plato Postre Cuchara O Tenedor Para Postre, Cuchillo De Untar, Según Corresponda) | F68: UNIDAD
B69: 52 | C69: ALIMENTACIÓN | D69: Almuerzo o Cena (Servido a la Mesa o Buffet ) | E69: El Almuerzo o Cena (servido a la Mesa o Buffet ) debe estar compuesto: • Proteína de 250 gr • Carbohidratos de 150 gr • Reguladores de 150 gr • Bebida de 250 ml • Postre entre 70 gr El operador debe presentar (3) opciones de Proteína / Vegetariano, Carbohidratos, Reguladores, Bebida y Postre. Incluye transporte, menaje (servido en plato o mesa según corresponda) (Puesto Por Persona Que Incluye, Plato Base, Plato Fuerte, Plato Sopa, Vaso Largo O De Jugo, Copa De Agua, Tenedor Fuerte, Cuchillo Fuerte, Tenedor O Cuchara De Entrada, Plato Postre Cuchara O Tenedor Para Postre, Cuchillo De Untar, Según Corresponda) | F69: UNIDAD
B70: 53 | C70: ALIMENTACIÓN | D70: Almuerzo o Cena Protocolo | E70: El mismo puede contener cualquiera de las siguientes solicitudes: • Entrada: sopa, crema, consomé, fruta • Corte de carnes, aves, pescados • 2 porciones de carbohidrato • Regulador • Bebida • Postre Incluye transporte, menaje (servido en plato o mesa según corresponda) (Puesto Por Persona Que Incluye, Plato Base, Plato Fuerte, Plato Sopa, Vaso Largo O De Jugo, Copa De Agua, Tenedor Fuerte, Cuchillo Fuerte, Tenedor O Cuchara De Entrada, Plato Postre Cuchara O Tenedor Para Postre, Cuchillo De Untar, Según Corresponda) | F70: UNIDAD
B71: 54 | C71: ALIMENTACIÓN | D71: Almuerzo (empacado) | E71: Sopa o fruta, proteína 250 gr, carbohidrato, cereal, ensalada o verdura y jugo Néctar y postre. Incluye transporte (distribución en sitio de realización del evento o actividad) | F71: UNIDAD
B72: 55 | C72: ALIMENTACIÓN | D72: Estación De Café Tipo A | E72: El mismo puede contener cualquiera de las siguientes solicitudes: • Debe llevar tabla de queso importados • Galletas saltinas Noel individuales • Galletas danesas • Almojábanas frescas • mañanitas • De todito • Achiras de ramo • Platanitos de frito lay • Nueces por separado: marañón, almendra, maní, pistacho. • Jugo natural de mandarina en vaso de vidrio o cristal • Pan baguete • Pan arándanos • Corazones y tortas • Café, capuchino, chocolate, aguas aromáticas y agua servido en pocillo de porcelana o vaso de cristal o vidrio según corresponda. • Se debe servir en menaje de loza NOTA: Debe contener 4 productos a elección de la lista más las bebidas de la lista contando siempre con el café, te, aromática y como bebida adicional chocolate o capuchino Para estas opciones las estaciones de café deberán venir servido en menaje de porcelana Debe incluir mesa o tablón con spandex. • Incluye el transporte, distribución en sitio de realización del evento o actividad o servido en plato o mesa según corresponda. Para estas opciones las estaciones de café deberán venir servido en menaje de porcelana. | F72: UNIDAD / POR PERSONA
B73: 56 | C73: ALIMENTACIÓN | D73: Estación de café (Simple) Tipo B | E73: • Café, tinto, aromática, té servido en vaso biodegradable de 4 onzas (servido en plato o mesa según corresponda e impuesto al consumo si aplica) • Agua servida en vaso material biodegradable de 10 onzas. Para estas opciones las estaciones de café deberán venir servido en menaje de porcelana Debe incluir mesa o tablón con mantel. • Incluye el transporte, distribución en sitio de realización del evento o actividad o servido en plato o mesa según corresponda. Para estas opciones las estaciones de café deberán venir servido en menaje de porcelana. | F73: UNIDAD / POR PERSONA
B74: 57 | C74: ALIMENTACIÓN | D74: Estación de café (Break) Tipo C | E74: • Café, tinto, aromática, té servido en vaso en material biodegradable de 4 onzas • Agua servida en vaso en material biodegradable de 10 onzas. • Acompañados de galletas y colaciones. Para estas opciones las estaciones de café deberán venir servido en menaje de porcelana Debe incluir mesa o tablón con mantel. • Incluye el transporte, distribución en sitio de realización del evento o actividad o servido en plato o mesa según corresponda. Para estas opciones las estaciones de café deberán venir servido en menaje de porcelana. | F74: UNIDAD / POR PERSONA
B75: 58 | C75: ALIMENTACIÓN | D75: Estación de café Protocolo | E75: • Cappuccino, mocaccino, chocolate, café, tinto de 6 onzas, • Agua y jugos naturales de 10 onzas • Botella de gaseosa de 400 ml, • muffins, colaciones. Para estas opciones las estaciones de café deberán venir servido en menaje de porcelana Debe incluir mesa o tablón con spandex. • Incluye el transporte, distribución en sitio de realización del evento o actividad o servido en plato o mesa según corresponda e impuesto al consumo si aplica. Para estas opciones las estaciones de café deberán venir servido en menaje de porcelana. | F75: UNIDAD / POR PERSONA
B76: 59 | C76: ALIMENTACIÓN | D76: Hidratación Agua Bolsa | E76: Hidratación: bolsa por 250 ml Incluye transporte (distribución en sitio de realización del evento o actividad) | F76: UNIDAD
B77: 60 | C77: ALIMENTACIÓN | D77: Hidratación Botella de Agua pequeña | E77: Botella de agua de 300 ml Incluye transporte (distribución en sitio de realización del evento o actividad) | F77: UNIDAD
B78: 61 | C78: ALIMENTACIÓN | D78: Hidratación Botella de Agua mediana | E78: Botella de agua de 600 ml Incluye transporte (distribución en sitio de realización del evento o actividad) | F78: UNIDAD
B79: 62 | C79: ALIMENTACIÓN | D79: Hidratación Botellón | E79: botellón de agua 20 litros Incluye transporte (distribución en sitio de realización del evento o actividad) | F79: UNIDAD
B80: 63 | C80: ALIMENTACIÓN | D80: Hidratación Botellón - MES CANTIDADES: 1-10 | E80: Botellon de agua de 20 L cada uno con soporte en plástico, que se adquieren en la primera semana en cada Casa Atrapasueños botellón de agua 20 litros Incluye transporte (distribución en sitio de realización del evento o actividad) | F80: UNIDAD
B81: 64 | C81: ALIMENTACIÓN | D81: Hidratación Botellón - MES CANTIDADES: 11-35 | E81: Botellon de agua de 20 L cada uno con soporte en plástico, que se adquieren en la primera semana en cada Casa Atrapasueños botellón de agua 20 litros Incluye transporte (distribución en sitio de realización del evento o actividad) | F81: UNIDAD
B82: 65 | C82: ALIMENTACIÓN | D82: Hidratación Botellón - MES CANTIDADES: 36-71 | E82: Botellon de agua de 20 L cada uno con soporte en plástico, que se adquieren en la primera semana en cada Casa Atrapasueños botellón de agua 20 litros Incluye transporte (distribución en sitio de realización del evento o actividad) | F82: UNIDAD
B83: 66 | C83: ALIMENTACIÓN | D83: Hidratación Botellón - MES CANTIDADES: 72-106 | E83: Botellon de agua de 20 L cada uno con soporte en plástico, que se adquieren en la primera semana en cada Casa Atrapasueños botellón de agua 20 litros Incluye transporte (distribución en sitio de realización del evento o actividad) | F83: UNIDAD
B84: 67 | C84: ALIMENTACIÓN | D84: Recarga botellones - MES CANTIDADES: 1-50 | E84: Botellon de agua de 20 L cada uno con soporte en plástico, que se adquieren en la primera semana en cada Casa Atrapasueños botellón de agua 20 litros Incluye transporte (distribución en sitio de realización del evento o actividad) | F84: UNIDAD
B85: 68 | C85: ALIMENTACIÓN | D85: Recarga botellones - MES CANTIDADES: 51-271 | E85: Recarga de agua para los botellones de 20 L durante las tres (3) semanas restantes del mes. Para infancia y adolescencia las recargas se realizan semanalmente a partir de la segunda semana de la etapa de alistamiento y durante las etapas de atención y cierre. Incluye transporte (distribución en sitio de realización del evento o actividad) | F85: UNIDAD
B86: 69 | C86: ALIMENTACIÓN | D86: Recarga botellones - MES CANTIDADES: 272-542 | E86: Recarga de agua para los botellones de 20 L durante las tres (3) semanas restantes del mes. Para infancia y adolescencia las recargas se realizan semanalmente a partir de la segunda semana de la etapa de alistamiento y durante las etapas de atención y cierre. Incluye transporte (distribución en sitio de realización del evento o actividad) | F86: UNIDAD
B87: 70 | C87: ALIMENTACIÓN | D87: Recarga botellones - MES CANTIDADES: 543-813 | E87: Recarga de agua para los botellones de 20 L durante las tres (3) semanas restantes del mes. Para infancia y adolescencia las recargas se realizan semanalmente a partir de la segunda semana de la etapa de alistamiento y durante las etapas de atención y cierre. Incluye transporte (distribución en sitio de realización del evento o actividad) | F87: UNIDAD
B88: 71 | C88: ALIMENTACIÓN | D88: Nevera de icopor tipo cava para hidratación pequeña | E88: Nevera de icopor 10 Litros. Incluye hielo seco - Alquiler por día.Incluye: transporte. | F88: Día
B89: 72 | C89: ALIMENTACIÓN | D89: Nevera de icopor tipo cava para hidratación mediana | E89: Nevera de icopor 40 Litros. Incluye hielo seco - Alquiler por día. Incluye: transporte. | F89: Día
B90: 73 | C90: ALIMENTACIÓN | D90: Nevera de icopor tipo cava para hidratación grande | E90: Nevera de icopor 80 Litros. Incluye hielo seco - Alquiler por día. Incluye: transporte. | F90: Día
B91: 74 | C91: ALIMENTACIÓN | D91: Nevera tipo cava industrial | E91: Nevera tipo cava industrial con puerta de vidrio y piso blanco de pie (instalada, funcional y desinstalada), vertical u horizontal según solicitud 50 litros - Alquiler por día. Incluye: transporte. | F91: Día
B92: 75 | C92: ALIMENTACIÓN | D92: Nevera tipo cava industrial | E92: Nevera tipo cava industrial con puerta de vidrio y piso blanco de pie (instalada, funcional y desinstalada), vertical u horizontal según solicitud 100 litros - Alquiler por día. Incluye: transporte. | F92: Día

Sheet pdf (hidden)
B1: 1
B2: 1 | D2: PROCESO DE ADQUISICION DE BIENES Y SERVICIO SOLICITUD DE SERVICIO
B3: 1
B4: 1
B5: 1 | C5: # De solicitud | D5: Nombre del evento: | E5: =+Registro!S8 -> 0 | G5: # de Participantes: | H5: =+Registro!Y16 -> 0
B6: 1
B7: 1 | D7: Tipo de solicitud: | E7: =+Registro!I8 -> 0 | F7: =+" "&TEXT(Registro!S12,"dd/mm/yyyy") -> 00/01/1900
B8: 1 | D8: Fecha de solicitud: | E8: =+Registro!I10 -> 00:00:00 | F8: =+" "&TEXT(Registro!S14,"dd/mm/yyyy") -> 00/01/1900
B9: 1 | D9: Dependencia / Regional: | E9: =+Registro!I12 -> 0 | F9: =+" "&TEXT(Registro!X12,"hh:mm AM/PM") -> 12:00 a. m.
B10: 1 | D10: Nombres enlace del evento: | E10: =+Registro!I14 -> 0 | F10: =+" "&TEXT(Registro!X14,"hh:mm AM/PM") -> 12:00 a. m.
B11: 1 | D11: Teléfono de Contacto: | E11: =+Registro!I16 -> 0 | F11: =+" "&Registro!S16 -> 
B12: 1 | D12: Correo Institucional: | E12: =+Registro!I18 -> 0 | F12: =+" "&Registro!S18 -> 
B13: 1 | D13: Jefe o Director Area / Regional: | E13: =+Registro!I20 -> 0
B14: 1 | D14: Cargo: | E14: =+Registro!I22 -> 0 | F14: =+""&Registro!S20 -> 
B15: 1 | D15: Macroregión: | E15: =+Registro!S22 -> 0
B16: 1 | C16: DETALLE DE REQUERIMIENTO
B17: 1 | C17: ITEM | D17: CONCEPTO | E17: BIEN O SERVICIO REQUERIDO | F17: OBSERVACIONES | G17: UNIDAD DE MEDIDA | H17: CANTIDAD
B18: =+IF(C18="",0,1) -> 0
B19: 0
B20: 0
B21: 0
B22: 0
B23: 0
B24: 0
B25: 0
B26: 0
B27: 0
B28: 0
B29: 0
B30: 0
B31: 0
B32: 0
B33: 0
B34: 0
B35: 0
B36: 0
B37: 0
B38: 0
B39: 0
B40: 0
B41: 0
B42: 0
B43: 0
B44: 0
B45: 0
B46: 0
B47: 0
B48: 0
B49: 0
B50: 0
B51: 0
B52: 0
B53: 0
B54: 0
B55: 0
B56: 0
B57: 0
B58: 0
B59: 0
B60: 0
B61: 0
B62: 0
B63: 0
B64: 0
B65: 0
B66: 0
B67: 0
B68: 0
B69: 0
B70: 0
B71: 0
B72: 0
B73: 0
B74: 0
B75: 0
B76: 0
B77: 0
B78: 0
B79: 0
B80: 0
B81: 0
B82: 0
B83: =+IF(C83="",0,1) -> 0
B84: 0
B85: 0
B86: 0
B87: 0
B88: 0
B89: 0
B90: 0
B91: 0
B92: 0
B93: 0
B94: 0
B95: 0
B96: 0
B97: 0
B98: 0
B99: 0
B100: 0
B101: 0
B102: 0
B103: 0
B104: 0
B105: 0
B106: 0
B107: 0
B108: 0
B109: 0
B110: 0
B111: 0
B112: 0
B113: 0
B114: 0
B115: 0
B116: 0
B117: 0
B118: 0
B119: 0
B120: 0
B121: 0
B122: 0
B123: 0
B124: 0
B125: 0
B126: 0
B127: 0
B128: 0
B129: 0
B130: 0
B131: 0
B132: 0
B133: 0
B134: 0
B135: 0
B136: 0
B137: 0
B138: 0
B139: 0
B140: 0
B141: 0
B142: 0
B143: 0
B144: 0
B145: 0
B146: 0
B147: =+IF(C147="",0,1) -> 0
B148: 0
B149: 0
B150: 0
B151: 0
B152: 0
B153: 0
B154: 0
B155: 0
B156: 0
B157: 0
B158: 0
B159: 0
B160: 0
B161: 0
B162: 0
B163: 0
B164: 0
B165: 0
B166: 0
B167: 0
B168: 0
B169: 0
B170: 0
B171: 0
B172: 0
B173: 0
B174: 0
B175: 0
B176: 0
B177: 0
B178: 0
B179: 0
B180: 0
B181: 0
B182: 0
B183: 0
B184: 0
B185: 0
B186: 0
B187: 0
B188: 0
B189: 0
B190: 0
B191: 0
B192: 0
B193: 0
B194: 0
B195: 0
B196: 0
B197: 0
B198: 0
B199: 0
B200: 0
... 3424 more rows

Sheet TIQ (hidden)
B2: PROCESO DE ADQUISICION DE BIENES Y SERVICIOS ANEXO: RESERVA DE TIQUETES | G2: F2.P4.ABS | H2: 2025-06-06
G3: Versión 9
C7: Nombre Completo: | F7: AGREGAR REGISTRO
C9: No. de identificación:
C11: Género (M/F):
C13: Teléfono Móvil: | F13: ELIMNAR REGISTRO
C15: Correo Electrónico: | F15: No. de identificación:
C17: Fecha de Nacimiento:
C19: Origen del vuelo: | F19: TOTAL DE REGISTROS AGREGADOS: | H19: =1000-COUNTIF(pdf!K539:K1538,"") -> 0
C21: Destino del vuelo:
C23: Fecha de Salida del origen:
C25: Hora de salida del origen:
C27: Fecha de Regreso al origen:
C29: Hora de salida hacia el origen:
C31: Observaciones:

Sheet ALO (hidden)
B2: PROCESO DE ADQUISICION DE BIENES Y SERVICIOS ANEXO: DETALLE ALOJAMIENTO | G2: F2.P4.ABS | H2: 2025-06-06
G3: Versión 9
C7: ROL: | F7: AGREGAR REGISTRO
C9: Nombre Completo:
C11: No. de identificación:
C13: Género (M/F): | F13: ELIMNAR REGISTRO
C15: Teléfono Móvil: | F15: No. de identificación:
C17: Correo Electrónico:
C19: Fecha de Nacimiento: | F19: TOTAL DE REGISTROS AGREGADOS: | H19: =1000-COUNTIF(pdf!AA1553:AA2552,"") -> 0
C21: Fecha de Llegada:
C23: Fecha de Salida:
D24: I
C25: Noches de hosepedaje:
C27: Observaciones:

Sheet REE (hidden)
B2: PROCESO DE ADQUISICION DE BIENES Y SERVICIOS ANEXO: AUTORIZACIÓN DE PAGO DE REEMBOLSOS | G2: F2.P4.ABS | H2: 2025-06-06
G3: Versión 9
C7: Nombre Completo: | F7: AGREGAR REGISTRO
C9: No. de identificación:
C11: Teléfono Móvil:
C13: Valor estimado a reembolsar: | F13: ELIMNAR REGISTRO
C15: Concepto / Observaciones: | F15: No. de identificación:
F19: TOTAL DE REGISTROS AGREGADOS: | H19: =1000-COUNTIF(pdf!AM2560:AM3559,"") -> 0

Sheet PTE (hidden)
B2: PROCESO DE ADQUISICION DE BIENES Y SERVICIOS ANEXO: AUTORIZACIÓN DE PAGO A TERCEROS | G2: F2.P4.ABS | H2: 2025-06-06
G3: Versión 9
C7: Nacional / extranjero: | F7: AGREGAR REGISTRO
C9: Retención:
C11: Concepto de pago:
C13: Nombre / razon social: | F13: ELIMNAR REGISTRO
C15: CC / NIT: | F15: CC / NIT:
C17: Responsable de IVA:
C19: ¿Declara renta?: | F19: TOTAL DE REGISTROS AGREGADOS: | H19: =50-COUNTIF(pdf!AY3571:AY3620,"") -> 0
C21: % Retención en la fuente:
C23: Telefono:
C25: Dirección:
C27: País de residencia:
C29: Correo electrónico:
C31: Tipo de cuenta bancaria:
C33: # Cuenta:
C35: Entidad bancaria:
C37: Valor:
C39: IVA: | D39: =+IF(E39="N/A",0,D37*19%) -> 0
C41: Total: | D41: =+D37+D39 -> 0
C43: Comision % + IVA: | D43: =+(D41*IFERROR(VLOOKUP(D47,Parametros!I1:K6,3,FALSE),0))*1.19 -> 0
C45: Valor autorizado: | D45: =+D41+D43 -> 0
C47: Macroregión

Sheet PPTO (hidden)
A1: 1
A2: 1
A3: 1 | E3: PROCESO DE ADQUISICION DE BIENES Y SERVICIO SOLICITUD DE SERVICIO - PRESUPUESTO
A4: 1
A5: 1 | D5: Nombre del Evento: | F5: =+pdf!E5 -> 0 | J5: Fecha inicio: | K5: =+pdf!F7 -> 00/01/1900 | M5: Fecha fin: | N5: =+pdf!F8 -> 00/01/1900
A6: 1 | D6: # Solicitud de Servicio
A7: 1 | D7: Dependencia / Regional: | F7: =+pdf!E9 -> 0 | I7: SERVICIOS REQUERIDOS - ITEMS TARIFARIO | M7: =+SUM(N15:N514) -> 0
A8: 1 | D8: Ciudad del Evento : | F8: =+Registro!S16 -> 0 | I8: ITEMS NO PREVISTOS TARIFARIO (IVA INCLUIDO) | M8: =+SUM(N519:N568) -> 0
A9: 1 | D9: # de Participantes: | F9: =+pdf!H5 -> 0 | I9: =+"Comisión de Admon ( "&TEXT(IFERROR(VLOOKUP(F10,Parametros!I1:K6,3,FALSE),0),"0,00%")&" ):" -> Comisión de Admon ( 0,00% ): | M9: =+M8*IFERROR(VLOOKUP(F10,Parametros!I1:K6,3,FALSE),0) -> 0
A10: 1 | D10: Macroregión: | F10: =+Registro!S22 -> 0 | I10: IVA Comisión de Admon: | M10: =+M9*0.19 -> 0
A11: 1 | D11: Operador: | F11: =+IFERROR((VLOOKUP(F10,Parametros!I2:J6,2,FALSE)),"") ->  | I11: Valor Total Presupuesto Evento | M11: =SUM(M7:N10) -> 0
A12: 1
A13: 1 | D13: SERVICIOS REQUERIDOS - ITEMS INCLUIDOS EN TARIFARIO
A14: 1 | D14: ÍTEM | E14: CONCEPTO | F14: BIEN O SERVICIO REQUERIDO | G14: OBSERVACIONES | H14: UNIDAD DE MEDIDA | I14: CANTIDAD TOTAL | J14: Vr. Unitario | K14: SUB TOTAL | L14: IVA? | M14: VALOR IVA | N14: VR. TOTAL | S14: BIEN O SERVICIO REQUERIDO | T14: OBSERVACIONES | U14: UNIDAD DE MEDIDA | V14: CANTIDAD
A15: =+IF(D15="",0,1) -> 0 | J15: =+IF($F$10="",0,IF($F$10="M1: SDG, Btá, Cun, Met, Guav, Cas, Boy",IFERROR((VLOOKUP(D15,'Tarifario '!A:O,11,FALSE)),0),IF($F$10="M2: Cau,VdC, Nar, Tol, Hui, Caq, Put, Vau",IFERROR((VLOOKUP(D15,'Tarifario '!A:O,12,FALSE)),0),IF($F$10="M3: Ant, Cal, Qui, Ris, Cho, Cór, Guai",IFERROR((VLOOKUP(D15,'Tarifario '!A:O,13,FALSE)),0),IF($F$10="M4: Atl, Bol, Guaj, Mag, Suc, SAnd",IFERROR((VLOOKUP(D15,'Tarifario '!A:O,14,FALSE)),0),IF($F$10="M5: Cés, Ara, Vic, Ama, NdS, San",IFERROR((VLOOKUP(D15,'Tarifario '!A:O,15,FALSE)),0),0)))))) -> 0 | K15: =+J15*I15 -> 0 | L15: SI | M15: =+IF(L15="SI",(K15*0.19),0) -> 0 | N15: =+K15+M15 -> 0
A16: =+IF(D16="",0,1) -> 0 | J16: =+IF($F$10="",0,IF($F$10="M1: SDG, Btá, Cun, Met, Guav, Cas, Boy",IFERROR((VLOOKUP(D16,'Tarifario '!A:O,11,FALSE)),0),IF($F$10="M2: Cau,VdC, Nar, Tol, Hui, Caq, Put, Vau",IFERROR((VLOOKUP(D16,'Tarifario '!A:O,12,FALSE)),0),IF($F$10="M3: Ant, Cal, Qui, Ris, Cho, Cór, Guai",IFERROR((VLOOKUP(D16,'Tarifario '!A:O,13,FALSE)),0),IF($F$10="M4: Atl, Bol, Guaj, Mag, Suc, SAnd",IFERROR((VLOOKUP(D16,'Tarifario '!A:O,14,FALSE)),0),IF($F$10="M5: Cés, Ara, Vic, Ama, NdS, San",IFERROR((VLOOKUP(D16,'Tarifario '!A:O,15,FALSE)),0),0)))))) -> 0 | K16: =+J16*I16 -> 0 | L16: SI | M16: 0 | N16: =+K16+M16 -> 0
A17: 0 | J17: =+IF($F$10="",0,IF($F$10="M1: SDG, Btá, Cun, Met, Guav, Cas, Boy",IFERROR((VLOOKUP(D17,'Tarifario '!A:O,11,FALSE)),0),IF($F$10="M2: Cau,VdC, Nar, Tol, Hui, Caq, Put, Vau",IFERROR((VLOOKUP(D17,'Tarifario '!A:O,12,FALSE)),0),IF($F$10="M3: Ant, Cal, Qui, Ris, Cho, Cór, Guai",IFERROR((VLOOKUP(D17,'Tarifario '!A:O,13,FALSE)),0),IF($F$10="M4: Atl, Bol, Guaj, Mag, Suc, SAnd",IFERROR((VLOOKUP(D17,'Tarifario '!A:O,14,FALSE)),0),IF($F$10="M5: Cés, Ara, Vic, Ama, NdS, San",IFERROR((VLOOKUP(D17,'Tarifario '!A:O,15,FALSE)),0),0)))))) -> 0 | K17: 0 | L17: SI | M17: 0 | N17: 0
A18: 0 | J18: =+IF($F$10="",0,IF($F$10="M1: SDG, Btá, Cun, Met, Guav, Cas, Boy",IFERROR((VLOOKUP(D18,'Tarifario '!A:O,11,FALSE)),0),IF($F$10="M2: Cau,VdC, Nar, Tol, Hui, Caq, Put, Vau",IFERROR((VLOOKUP(D18,'Tarifario '!A:O,12,FALSE)),0),IF($F$10="M3: Ant, Cal, Qui, Ris, Cho, Cór, Guai",IFERROR((VLOOKUP(D18,'Tarifario '!A:O,13,FALSE)),0),IF($F$10="M4: Atl, Bol, Guaj, Mag, Suc, SAnd",IFERROR((VLOOKUP(D18,'Tarifario '!A:O,14,FALSE)),0),IF($F$10="M5: Cés, Ara, Vic, Ama, NdS, San",IFERROR((VLOOKUP(D18,'Tarifario '!A:O,15,FALSE)),0),0)))))) -> 0 | K18: 0 | L18: SI | M18: 0 | N18: 0
A19: 0 | J19: =+IF($F$10="",0,IF($F$10="M1: SDG, Btá, Cun, Met, Guav, Cas, Boy",IFERROR((VLOOKUP(D19,'Tarifario '!A:O,11,FALSE)),0),IF($F$10="M2: Cau,VdC, Nar, Tol, Hui, Caq, Put, Vau",IFERROR((VLOOKUP(D19,'Tarifario '!A:O,12,FALSE)),0),IF($F$10="M3: Ant, Cal, Qui, Ris, Cho, Cór, Guai",IFERROR((VLOOKUP(D19,'Tarifario '!A:O,13,FALSE)),0),IF($F$10="M4: Atl, Bol, Guaj, Mag, Suc, SAnd",IFERROR((VLOOKUP(D19,'Tarifario '!A:O,14,FALSE)),0),IF($F$10="M5: Cés, Ara, Vic, Ama, NdS, San",IFERROR((VLOOKUP(D19,'Tarifario '!A:O,15,FALSE)),0),0)))))) -> 0 | K19: 0 | L19: SI | M19: 0 | N19: 0
A20: 0 | J20: =+IF($F$10="",0,IF($F$10="M1: SDG, Btá, Cun, Met, Guav, Cas, Boy",IFERROR((VLOOKUP(D20,'Tarifario '!A:O,11,FALSE)),0),IF($F$10="M2: Cau,VdC, Nar, Tol, Hui, Caq, Put, Vau",IFERROR((VLOOKUP(D20,'Tarifario '!A:O,12,FALSE)),0),IF($F$10="M3: Ant, Cal, Qui, Ris, Cho, Cór, Guai",IFERROR((VLOOKUP(D20,'Tarifario '!A:O,13,FALSE)),0),IF($F$10="M4: Atl, Bol, Guaj, Mag, Suc, SAnd",IFERROR((VLOOKUP(D20,'Tarifario '!A:O,14,FALSE)),0),IF($F$10="M5: Cés, Ara, Vic, Ama, NdS, San",IFERROR((VLOOKUP(D20,'Tarifario '!A:O,15,FALSE)),0),0)))))) -> 0 | K20: 0 | L20: SI | M20: 0 | N20: 0
A21: 0 | J21: =+IF($F$10="",0,IF($F$10="M1: SDG, Btá, Cun, Met, Guav, Cas, Boy",IFERROR((VLOOKUP(D21,'Tarifario '!A:O,11,FALSE)),0),IF($F$10="M2: Cau,VdC, Nar, Tol, Hui, Caq, Put, Vau",IFERROR((VLOOKUP(D21,'Tarifario '!A:O,12,FALSE)),0),IF($F$10="M3: Ant, Cal, Qui, Ris, Cho, Cór, Guai",IFERROR((VLOOKUP(D21,'Tarifario '!A:O,13,FALSE)),0),IF($F$10="M4: Atl, Bol, Guaj, Mag, Suc, SAnd",IFERROR((VLOOKUP(D21,'Tarifario '!A:O,14,FALSE)),0),IF($F$10="M5: Cés, Ara, Vic, Ama, NdS, San",IFERROR((VLOOKUP(D21,'Tarifario '!A:O,15,FALSE)),0),0)))))) -> 0 | K21: 0 | L21: SI | M21: 0 | N21: 0
A22: 0 | J22: =+IF($F$10="",0,IF($F$10="M1: SDG, Btá, Cun, Met, Guav, Cas, Boy",IFERROR((VLOOKUP(D22,'Tarifario '!A:O,11,FALSE)),0),IF($F$10="M2: Cau,VdC, Nar, Tol, Hui, Caq, Put, Vau",IFERROR((VLOOKUP(D22,'Tarifario '!A:O,12,FALSE)),0),IF($F$10="M3: Ant, Cal, Qui, Ris, Cho, Cór, Guai",IFERROR((VLOOKUP(D22,'Tarifario '!A:O,13,FALSE)),0),IF($F$10="M4: Atl, Bol, Guaj, Mag, Suc, SAnd",IFERROR((VLOOKUP(D22,'Tarifario '!A:O,14,FALSE)),0),IF($F$10="M5: Cés, Ara, Vic, Ama, NdS, San",IFERROR((VLOOKUP(D22,'Tarifario '!A:O,15,FALSE)),0),0)))))) -> 0 | K22: 0 | L22: SI | M22: 0 | N22: 0
A23: 0 | J23: =+IF($F$10="",0,IF($F$10="M1: SDG, Btá, Cun, Met, Guav, Cas, Boy",IFERROR((VLOOKUP(D23,'Tarifario '!A:O,11,FALSE)),0),IF($F$10="M2: Cau,VdC, Nar, Tol, Hui, Caq, Put, Vau",IFERROR((VLOOKUP(D23,'Tarifario '!A:O,12,FALSE)),0),IF($F$10="M3: Ant, Cal, Qui, Ris, Cho, Cór, Guai",IFERROR((VLOOKUP(D23,'Tarifario '!A:O,13,FALSE)),0),IF($F$10="M4: Atl, Bol, Guaj, Mag, Suc, SAnd",IFERROR((VLOOKUP(D23,'Tarifario '!A:O,14,FALSE)),0),IF($F$10="M5: Cés, Ara, Vic, Ama, NdS, San",IFERROR((VLOOKUP(D23,'Tarifario '!A:O,15,FALSE)),0),0)))))) -> 0 | K23: 0 | L23: SI | M23: 0 | N23: 0
A24: 0 | J24: =+IF($F$10="",0,IF($F$10="M1: SDG, Btá, Cun, Met, Guav, Cas, Boy",IFERROR((VLOOKUP(D24,'Tarifario '!A:O,11,FALSE)),0),IF($F$10="M2: Cau,VdC, Nar, Tol, Hui, Caq, Put, Vau",IFERROR((VLOOKUP(D24,'Tarifario '!A:O,12,FALSE)),0),IF($F$10="M3: Ant, Cal, Qui, Ris, Cho, Cór, Guai",IFERROR((VLOOKUP(D24,'Tarifario '!A:O,13,FALSE)),0),IF($F$10="M4: Atl, Bol, Guaj, Mag, Suc, SAnd",IFERROR((VLOOKUP(D24,'Tarifario '!A:O,14,FALSE)),0),IF($F$10="M5: Cés, Ara, Vic, Ama, NdS, San",IFERROR((VLOOKUP(D24,'Tarifario '!A:O,15,FALSE)),0),0)))))) -> 0 | K24: 0 | L24: SI | M24: 0 | N24: 0
A25: 0 | J25: =+IF($F$10="",0,IF($F$10="M1: SDG, Btá, Cun, Met, Guav, Cas, Boy",IFERROR((VLOOKUP(D25,'Tarifario '!A:O,11,FALSE)),0),IF($F$10="M2: Cau,VdC, Nar, Tol, Hui, Caq, Put, Vau",IFERROR((VLOOKUP(D25,'Tarifario '!A:O,12,FALSE)),0),IF($F$10="M3: Ant, Cal, Qui, Ris, Cho, Cór, Guai",IFERROR((VLOOKUP(D25,'Tarifario '!A:O,13,FALSE)),0),IF($F$10="M4: Atl, Bol, Guaj, Mag, Suc, SAnd",IFERROR((VLOOKUP(D25,'Tarifario '!A:O,14,FALSE)),0),IF($F$10="M5: Cés, Ara, Vic, Ama, NdS, San",IFERROR((VLOOKUP(D25,'Tarifario '!A:O,15,FALSE)),0),0)))))) -> 0 | K25: 0 | L25: SI | M25: 0 | N25: 0
A26: 0 | J26: =+IF($F$10="",0,IF($F$10="M1: SDG, Btá, Cun, Met, Guav, Cas, Boy",IFERROR((VLOOKUP(D26,'Tarifario '!A:O,11,FALSE)),0),IF($F$10="M2: Cau,VdC, Nar, Tol, Hui, Caq, Put, Vau",IFERROR((VLOOKUP(D26,'Tarifario '!A:O,12,FALSE)),0),IF($F$10="M3: Ant, Cal, Qui, Ris, Cho, Cór, Guai",IFERROR((VLOOKUP(D26,'Tarifario '!A:O,13,FALSE)),0),IF($F$10="M4: Atl, Bol, Guaj, Mag, Suc, SAnd",IFERROR((VLOOKUP(D26,'Tarifario '!A:O,14,FALSE)),0),IF($F$10="M5: Cés, Ara, Vic, Ama, NdS, San",IFERROR((VLOOKUP(D26,'Tarifario '!A:O,15,FALSE)),0),0)))))) -> 0 | K26: 0 | L26: SI | M26: 0 | N26: 0
A27: 0 | J27: =+IF($F$10="",0,IF($F$10="M1: SDG, Btá, Cun, Met, Guav, Cas, Boy",IFERROR((VLOOKUP(D27,'Tarifario '!A:O,11,FALSE)),0),IF($F$10="M2: Cau,VdC, Nar, Tol, Hui, Caq, Put, Vau",IFERROR((VLOOKUP(D27,'Tarifario '!A:O,12,FALSE)),0),IF($F$10="M3: Ant, Cal, Qui, Ris, Cho, Cór, Guai",IFERROR((VLOOKUP(D27,'Tarifario '!A:O,13,FALSE)),0),IF($F$10="M4: Atl, Bol, Guaj, Mag, Suc, SAnd",IFERROR((VLOOKUP(D27,'Tarifario '!A:O,14,FALSE)),0),IF($F$10="M5: Cés, Ara, Vic, Ama, NdS, San",IFERROR((VLOOKUP(D27,'Tarifario '!A:O,15,FALSE)),0),0)))))) -> 0 | K27: 0 | L27: SI | M27: 0 | N27: 0
A28: 0 | J28: =+IF($F$10="",0,IF($F$10="M1: SDG, Btá, Cun, Met, Guav, Cas, Boy",IFERROR((VLOOKUP(D28,'Tarifario '!A:O,11,FALSE)),0),IF($F$10="M2: Cau,VdC, Nar, Tol, Hui, Caq, Put, Vau",IFERROR((VLOOKUP(D28,'Tarifario '!A:O,12,FALSE)),0),IF($F$10="M3: Ant, Cal, Qui, Ris, Cho, Cór, Guai",IFERROR((VLOOKUP(D28,'Tarifario '!A:O,13,FALSE)),0),IF($F$10="M4: Atl, Bol, Guaj, Mag, Suc, SAnd",IFERROR((VLOOKUP(D28,'Tarifario '!A:O,14,FALSE)),0),IF($F$10="M5: Cés, Ara, Vic, Ama, NdS, San",IFERROR((VLOOKUP(D28,'Tarifario '!A:O,15,FALSE)),0),0)))))) -> 0 | K28: 0 | L28: SI | M28: 0 | N28: 0
A29: 0 | J29: =+IF($F$10="",0,IF($F$10="M1: SDG, Btá, Cun, Met, Guav, Cas, Boy",IFERROR((VLOOKUP(D29,'Tarifario '!A:O,11,FALSE)),0),IF($F$10="M2: Cau,VdC, Nar, Tol, Hui, Caq, Put, Vau",IFERROR((VLOOKUP(D29,'Tarifario '!A:O,12,FALSE)),0),IF($F$10="M3: Ant, Cal, Qui, Ris, Cho, Cór, Guai",IFERROR((VLOOKUP(D29,'Tarifario '!A:O,13,FALSE)),0),IF($F$10="M4: Atl, Bol, Guaj, Mag, Suc, SAnd",IFERROR((VLOOKUP(D29,'Tarifario '!A:O,14,FALSE)),0),IF($F$10="M5: Cés, Ara, Vic, Ama, NdS, San",IFERROR((VLOOKUP(D29,'Tarifario '!A:O,15,FALSE)),0),0)))))) -> 0 | K29: 0 | L29: SI | M29: 0 | N29: 0
A30: 0 | J30: =+IF($F$10="",0,IF($F$10="M1: SDG, Btá, Cun, Met, Guav, Cas, Boy",IFERROR((VLOOKUP(D30,'Tarifario '!A:O,11,FALSE)),0),IF($F$10="M2: Cau,VdC, Nar, Tol, Hui, Caq, Put, Vau",IFERROR((VLOOKUP(D30,'Tarifario '!A:O,12,FALSE)),0),IF($F$10="M3: Ant, Cal, Qui, Ris, Cho, Cór, Guai",IFERROR((VLOOKUP(D30,'Tarifario '!A:O,13,FALSE)),0),IF($F$10="M4: Atl, Bol, Guaj, Mag, Suc, SAnd",IFERROR((VLOOKUP(D30,'Tarifario '!A:O,14,FALSE)),0),IF($F$10="M5: Cés, Ara, Vic, Ama, NdS, San",IFERROR((VLOOKUP(D30,'Tarifario '!A:O,15,FALSE)),0),0)))))) -> 0 | K30: 0 | L30: SI | M30: 0 | N30: 0
A31: 0 | J31: =+IF($F$10="",0,IF($F$10="M1: SDG, Btá, Cun, Met, Guav, Cas, Boy",IFERROR((VLOOKUP(D31,'Tarifario '!A:O,11,FALSE)),0),IF($F$10="M2: Cau,VdC, Nar, Tol, Hui, Caq, Put, Vau",IFERROR((VLOOKUP(D31,'Tarifario '!A:O,12,FALSE)),0),IF($F$10="M3: Ant, Cal, Qui, Ris, Cho, Cór, Guai",IFERROR((VLOOKUP(D31,'Tarifario '!A:O,13,FALSE)),0),IF($F$10="M4: Atl, Bol, Guaj, Mag, Suc, SAnd",IFERROR((VLOOKUP(D31,'Tarifario '!A:O,14,FALSE)),0),IF($F$10="M5: Cés, Ara, Vic, Ama, NdS, San",IFERROR((VLOOKUP(D31,'Tarifario '!A:O,15,FALSE)),0),0)))))) -> 0 | K31: 0 | L31: SI | M31: 0 | N31: 0
A32: 0 | J32: =+IF($F$10="",0,IF($F$10="M1: SDG, Btá, Cun, Met, Guav, Cas, Boy",IFERROR((VLOOKUP(D32,'Tarifario '!A:O,11,FALSE)),0),IF($F$10="M2: Cau,VdC, Nar, Tol, Hui, Caq, Put, Vau",IFERROR((VLOOKUP(D32,'Tarifario '!A:O,12,FALSE)),0),IF($F$10="M3: Ant, Cal, Qui, Ris, Cho, Cór, Guai",IFERROR((VLOOKUP(D32,'Tarifario '!A:O,13,FALSE)),0),IF($F$10="M4: Atl, Bol, Guaj, Mag, Suc, SAnd",IFERROR((VLOOKUP(D32,'Tarifario '!A:O,14,FALSE)),0),IF($F$10="M5: Cés, Ara, Vic, Ama, NdS, San",IFERROR((VLOOKUP(D32,'Tarifario '!A:O,15,FALSE)),0),0)))))) -> 0 | K32: 0 | L32: SI | M32: 0 | N32: 0
A33: 0 | J33: =+IF($F$10="",0,IF($F$10="M1: SDG, Btá, Cun, Met, Guav, Cas, Boy",IFERROR((VLOOKUP(D33,'Tarifario '!A:O,11,FALSE)),0),IF($F$10="M2: Cau,VdC, Nar, Tol, Hui, Caq, Put, Vau",IFERROR((VLOOKUP(D33,'Tarifario '!A:O,12,FALSE)),0),IF($F$10="M3: Ant, Cal, Qui, Ris, Cho, Cór, Guai",IFERROR((VLOOKUP(D33,'Tarifario '!A:O,13,FALSE)),0),IF($F$10="M4: Atl, Bol, Guaj, Mag, Suc, SAnd",IFERROR((VLOOKUP(D33,'Tarifario '!A:O,14,FALSE)),0),IF($F$10="M5: Cés, Ara, Vic, Ama, NdS, San",IFERROR((VLOOKUP(D33,'Tarifario '!A:O,15,FALSE)),0),0)))))) -> 0 | K33: 0 | L33: SI | M33: 0 | N33: 0
A34: 0 | J34: =+IF($F$10="",0,IF($F$10="M1: SDG, Btá, Cun, Met, Guav, Cas, Boy",IFERROR((VLOOKUP(D34,'Tarifario '!A:O,11,FALSE)),0),IF($F$10="M2: Cau,VdC, Nar, Tol, Hui, Caq, Put, Vau",IFERROR((VLOOKUP(D34,'Tarifario '!A:O,12,FALSE)),0),IF($F$10="M3: Ant, Cal, Qui, Ris, Cho, Cór, Guai",IFERROR((VLOOKUP(D34,'Tarifario '!A:O,13,FALSE)),0),IF($F$10="M4: Atl, Bol, Guaj, Mag, Suc, SAnd",IFERROR((VLOOKUP(D34,'Tarifario '!A:O,14,FALSE)),0),IF($F$10="M5: Cés, Ara, Vic, Ama, NdS, San",IFERROR((VLOOKUP(D34,'Tarifario '!A:O,15,FALSE)),0),0)))))) -> 0 | K34: 0 | L34: SI | M34: 0 | N34: 0
A35: 0 | J35: =+IF($F$10="",0,IF($F$10="M1: SDG, Btá, Cun, Met, Guav, Cas, Boy",IFERROR((VLOOKUP(D35,'Tarifario '!A:O,11,FALSE)),0),IF($F$10="M2: Cau,VdC, Nar, Tol, Hui, Caq, Put, Vau",IFERROR((VLOOKUP(D35,'Tarifario '!A:O,12,FALSE)),0),IF($F$10="M3: Ant, Cal, Qui, Ris, Cho, Cór, Guai",IFERROR((VLOOKUP(D35,'Tarifario '!A:O,13,FALSE)),0),IF($F$10="M4: Atl, Bol, Guaj, Mag, Suc, SAnd",IFERROR((VLOOKUP(D35,'Tarifario '!A:O,14,FALSE)),0),IF($F$10="M5: Cés, Ara, Vic, Ama, NdS, San",IFERROR((VLOOKUP(D35,'Tarifario '!A:O,15,FALSE)),0),0)))))) -> 0 | K35: 0 | L35: SI | M35: 0 | N35: 0
A36: 0 | J36: =+IF($F$10="",0,IF($F$10="M1: SDG, Btá, Cun, Met, Guav, Cas, Boy",IFERROR((VLOOKUP(D36,'Tarifario '!A:O,11,FALSE)),0),IF($F$10="M2: Cau,VdC, Nar, Tol, Hui, Caq, Put, Vau",IFERROR((VLOOKUP(D36,'Tarifario '!A:O,12,FALSE)),0),IF($F$10="M3: Ant, Cal, Qui, Ris, Cho, Cór, Guai",IFERROR((VLOOKUP(D36,'Tarifario '!A:O,13,FALSE)),0),IF($F$10="M4: Atl, Bol, Guaj, Mag, Suc, SAnd",IFERROR((VLOOKUP(D36,'Tarifario '!A:O,14,FALSE)),0),IF($F$10="M5: Cés, Ara, Vic, Ama, NdS, San",IFERROR((VLOOKUP(D36,'Tarifario '!A:O,15,FALSE)),0),0)))))) -> 0 | K36: 0 | L36: SI | M36: 0 | N36: 0
A37: 0 | J37: =+IF($F$10="",0,IF($F$10="M1: SDG, Btá, Cun, Met, Guav, Cas, Boy",IFERROR((VLOOKUP(D37,'Tarifario '!A:O,11,FALSE)),0),IF($F$10="M2: Cau,VdC, Nar, Tol, Hui, Caq, Put, Vau",IFERROR((VLOOKUP(D37,'Tarifario '!A:O,12,FALSE)),0),IF($F$10="M3: Ant, Cal, Qui, Ris, Cho, Cór, Guai",IFERROR((VLOOKUP(D37,'Tarifario '!A:O,13,FALSE)),0),IF($F$10="M4: Atl, Bol, Guaj, Mag, Suc, SAnd",IFERROR((VLOOKUP(D37,'Tarifario '!A:O,14,FALSE)),0),IF($F$10="M5: Cés, Ara, Vic, Ama, NdS, San",IFERROR((VLOOKUP(D37,'Tarifario '!A:O,15,FALSE)),0),0)))))) -> 0 | K37: 0 | L37: SI | M37: 0 | N37: 0
A38: 0 | J38: =+IF($F$10="",0,IF($F$10="M1: SDG, Btá, Cun, Met, Guav, Cas, Boy",IFERROR((VLOOKUP(D38,'Tarifario '!A:O,11,FALSE)),0),IF($F$10="M2: Cau,VdC, Nar, Tol, Hui, Caq, Put, Vau",IFERROR((VLOOKUP(D38,'Tarifario '!A:O,12,FALSE)),0),IF($F$10="M3: Ant, Cal, Qui, Ris, Cho, Cór, Guai",IFERROR((VLOOKUP(D38,'Tarifario '!A:O,13,FALSE)),0),IF($F$10="M4: Atl, Bol, Guaj, Mag, Suc, SAnd",IFERROR((VLOOKUP(D38,'Tarifario '!A:O,14,FALSE)),0),IF($F$10="M5: Cés, Ara, Vic, Ama, NdS, San",IFERROR((VLOOKUP(D38,'Tarifario '!A:O,15,FALSE)),0),0)))))) -> 0 | K38: 0 | L38: SI | M38: 0 | N38: 0
A39: 0 | J39: =+IF($F$10="",0,IF($F$10="M1: SDG, Btá, Cun, Met, Guav, Cas, Boy",IFERROR((VLOOKUP(D39,'Tarifario '!A:O,11,FALSE)),0),IF($F$10="M2: Cau,VdC, Nar, Tol, Hui, Caq, Put, Vau",IFERROR((VLOOKUP(D39,'Tarifario '!A:O,12,FALSE)),0),IF($F$10="M3: Ant, Cal, Qui, Ris, Cho, Cór, Guai",IFERROR((VLOOKUP(D39,'Tarifario '!A:O,13,FALSE)),0),IF($F$10="M4: Atl, Bol, Guaj, Mag, Suc, SAnd",IFERROR((VLOOKUP(D39,'Tarifario '!A:O,14,FALSE)),0),IF($F$10="M5: Cés, Ara, Vic, Ama, NdS, San",IFERROR((VLOOKUP(D39,'Tarifario '!A:O,15,FALSE)),0),0)))))) -> 0 | K39: 0 | L39: SI | M39: 0 | N39: 0
A40: 0 | J40: =+IF($F$10="",0,IF($F$10="M1: SDG, Btá, Cun, Met, Guav, Cas, Boy",IFERROR((VLOOKUP(D40,'Tarifario '!A:O,11,FALSE)),0),IF($F$10="M2: Cau,VdC, Nar, Tol, Hui, Caq, Put, Vau",IFERROR((VLOOKUP(D40,'Tarifario '!A:O,12,FALSE)),0),IF($F$10="M3: Ant, Cal, Qui, Ris, Cho, Cór, Guai",IFERROR((VLOOKUP(D40,'Tarifario '!A:O,13,FALSE)),0),IF($F$10="M4: Atl, Bol, Guaj, Mag, Suc, SAnd",IFERROR((VLOOKUP(D40,'Tarifario '!A:O,14,FALSE)),0),IF($F$10="M5: Cés, Ara, Vic, Ama, NdS, San",IFERROR((VLOOKUP(D40,'Tarifario '!A:O,15,FALSE)),0),0)))))) -> 0 | K40: 0 | L40: SI | M40: 0 | N40: 0
A41: 0 | J41: =+IF($F$10="",0,IF($F$10="M1: SDG, Btá, Cun, Met, Guav, Cas, Boy",IFERROR((VLOOKUP(D41,'Tarifario '!A:O,11,FALSE)),0),IF($F$10="M2: Cau,VdC, Nar, Tol, Hui, Caq, Put, Vau",IFERROR((VLOOKUP(D41,'Tarifario '!A:O,12,FALSE)),0),IF($F$10="M3: Ant, Cal, Qui, Ris, Cho, Cór, Guai",IFERROR((VLOOKUP(D41,'Tarifario '!A:O,13,FALSE)),0),IF($F$10="M4: Atl, Bol, Guaj, Mag, Suc, SAnd",IFERROR((VLOOKUP(D41,'Tarifario '!A:O,14,FALSE)),0),IF($F$10="M5: Cés, Ara, Vic, Ama, NdS, San",IFERROR((VLOOKUP(D41,'Tarifario '!A:O,15,FALSE)),0),0)))))) -> 0 | K41: 0 | L41: SI | M41: 0 | N41: 0
A42: 0 | J42: =+IF($F$10="",0,IF($F$10="M1: SDG, Btá, Cun, Met, Guav, Cas, Boy",IFERROR((VLOOKUP(D42,'Tarifario '!A:O,11,FALSE)),0),IF($F$10="M2: Cau,VdC, Nar, Tol, Hui, Caq, Put, Vau",IFERROR((VLOOKUP(D42,'Tarifario '!A:O,12,FALSE)),0),IF($F$10="M3: Ant, Cal, Qui, Ris, Cho, Cór, Guai",IFERROR((VLOOKUP(D42,'Tarifario '!A:O,13,FALSE)),0),IF($F$10="M4: Atl, Bol, Guaj, Mag, Suc, SAnd",IFERROR((VLOOKUP(D42,'Tarifario '!A:O,14,FALSE)),0),IF($F$10="M5: Cés, Ara, Vic, Ama, NdS, San",IFERROR((VLOOKUP(D42,'Tarifario '!A:O,15,FALSE)),0),0)))))) -> 0 | K42: 0 | L42: SI | M42: 0 | N42: 0
A43: 0 | J43: =+IF($F$10="",0,IF($F$10="M1: SDG, Btá, Cun, Met, Guav, Cas, Boy",IFERROR((VLOOKUP(D43,'Tarifario '!A:O,11,FALSE)),0),IF($F$10="M2: Cau,VdC, Nar, Tol, Hui, Caq, Put, Vau",IFERROR((VLOOKUP(D43,'Tarifario '!A:O,12,FALSE)),0),IF($F$10="M3: Ant, Cal, Qui, Ris, Cho, Cór, Guai",IFERROR((VLOOKUP(D43,'Tarifario '!A:O,13,FALSE)),0),IF($F$10="M4: Atl, Bol, Guaj, Mag, Suc, SAnd",IFERROR((VLOOKUP(D43,'Tarifario '!A:O,14,FALSE)),0),IF($F$10="M5: Cés, Ara, Vic, Ama, NdS, San",IFERROR((VLOOKUP(D43,'Tarifario '!A:O,15,FALSE)),0),0)))))) -> 0 | K43: 0 | L43: SI | M43: 0 | N43: 0
A44: 0 | J44: =+IF($F$10="",0,IF($F$10="M1: SDG, Btá, Cun, Met, Guav, Cas, Boy",IFERROR((VLOOKUP(D44,'Tarifario '!A:O,11,FALSE)),0),IF($F$10="M2: Cau,VdC, Nar, Tol, Hui, Caq, Put, Vau",IFERROR((VLOOKUP(D44,'Tarifario '!A:O,12,FALSE)),0),IF($F$10="M3: Ant, Cal, Qui, Ris, Cho, Cór, Guai",IFERROR((VLOOKUP(D44,'Tarifario '!A:O,13,FALSE)),0),IF($F$10="M4: Atl, Bol, Guaj, Mag, Suc, SAnd",IFERROR((VLOOKUP(D44,'Tarifario '!A:O,14,FALSE)),0),IF($F$10="M5: Cés, Ara, Vic, Ama, NdS, San",IFERROR((VLOOKUP(D44,'Tarifario '!A:O,15,FALSE)),0),0)))))) -> 0 | K44: 0 | L44: SI | M44: 0 | N44: 0
A45: 0 | J45: =+IF($F$10="",0,IF($F$10="M1: SDG, Btá, Cun, Met, Guav, Cas, Boy",IFERROR((VLOOKUP(D45,'Tarifario '!A:O,11,FALSE)),0),IF($F$10="M2: Cau,VdC, Nar, Tol, Hui, Caq, Put, Vau",IFERROR((VLOOKUP(D45,'Tarifario '!A:O,12,FALSE)),0),IF($F$10="M3: Ant, Cal, Qui, Ris, Cho, Cór, Guai",IFERROR((VLOOKUP(D45,'Tarifario '!A:O,13,FALSE)),0),IF($F$10="M4: Atl, Bol, Guaj, Mag, Suc, SAnd",IFERROR((VLOOKUP(D45,'Tarifario '!A:O,14,FALSE)),0),IF($F$10="M5: Cés, Ara, Vic, Ama, NdS, San",IFERROR((VLOOKUP(D45,'Tarifario '!A:O,15,FALSE)),0),0)))))) -> 0 | K45: 0 | L45: SI | M45: 0 | N45: 0
A46: 0 | J46: =+IF($F$10="",0,IF($F$10="M1: SDG, Btá, Cun, Met, Guav, Cas, Boy",IFERROR((VLOOKUP(D46,'Tarifario '!A:O,11,FALSE)),0),IF($F$10="M2: Cau,VdC, Nar, Tol, Hui, Caq, Put, Vau",IFERROR((VLOOKUP(D46,'Tarifario '!A:O,12,FALSE)),0),IF($F$10="M3: Ant, Cal, Qui, Ris, Cho, Cór, Guai",IFERROR((VLOOKUP(D46,'Tarifario '!A:O,13,FALSE)),0),IF($F$10="M4: Atl, Bol, Guaj, Mag, Suc, SAnd",IFERROR((VLOOKUP(D46,'Tarifario '!A:O,14,FALSE)),0),IF($F$10="M5: Cés, Ara, Vic, Ama, NdS, San",IFERROR((VLOOKUP(D46,'Tarifario '!A:O,15,FALSE)),0),0)))))) -> 0 | K46: 0 | L46: SI | M46: 0 | N46: 0
A47: 0 | J47: =+IF($F$10="",0,IF($F$10="M1: SDG, Btá, Cun, Met, Guav, Cas, Boy",IFERROR((VLOOKUP(D47,'Tarifario '!A:O,11,FALSE)),0),IF($F$10="M2: Cau,VdC, Nar, Tol, Hui, Caq, Put, Vau",IFERROR((VLOOKUP(D47,'Tarifario '!A:O,12,FALSE)),0),IF($F$10="M3: Ant, Cal, Qui, Ris, Cho, Cór, Guai",IFERROR((VLOOKUP(D47,'Tarifario '!A:O,13,FALSE)),0),IF($F$10="M4: Atl, Bol, Guaj, Mag, Suc, SAnd",IFERROR((VLOOKUP(D47,'Tarifario '!A:O,14,FALSE)),0),IF($F$10="M5: Cés, Ara, Vic, Ama, NdS, San",IFERROR((VLOOKUP(D47,'Tarifario '!A:O,15,FALSE)),0),0)))))) -> 0 | K47: 0 | L47: SI | M47: 0 | N47: 0
A48: 0 | J48: =+IF($F$10="",0,IF($F$10="M1: SDG, Btá, Cun, Met, Guav, Cas, Boy",IFERROR((VLOOKUP(D48,'Tarifario '!A:O,11,FALSE)),0),IF($F$10="M2: Cau,VdC, Nar, Tol, Hui, Caq, Put, Vau",IFERROR((VLOOKUP(D48,'Tarifario '!A:O,12,FALSE)),0),IF($F$10="M3: Ant, Cal, Qui, Ris, Cho, Cór, Guai",IFERROR((VLOOKUP(D48,'Tarifario '!A:O,13,FALSE)),0),IF($F$10="M4: Atl, Bol, Guaj, Mag, Suc, SAnd",IFERROR((VLOOKUP(D48,'Tarifario '!A:O,14,FALSE)),0),IF($F$10="M5: Cés, Ara, Vic, Ama, NdS, San",IFERROR((VLOOKUP(D48,'Tarifario '!A:O,15,FALSE)),0),0)))))) -> 0 | K48: 0 | L48: SI | M48: 0 | N48: 0
A49: 0 | J49: =+IF($F$10="",0,IF($F$10="M1: SDG, Btá, Cun, Met, Guav, Cas, Boy",IFERROR((VLOOKUP(D49,'Tarifario '!A:O,11,FALSE)),0),IF($F$10="M2: Cau,VdC, Nar, Tol, Hui, Caq, Put, Vau",IFERROR((VLOOKUP(D49,'Tarifario '!A:O,12,FALSE)),0),IF($F$10="M3: Ant, Cal, Qui, Ris, Cho, Cór, Guai",IFERROR((VLOOKUP(D49,'Tarifario '!A:O,13,FALSE)),0),IF($F$10="M4: Atl, Bol, Guaj, Mag, Suc, SAnd",IFERROR((VLOOKUP(D49,'Tarifario '!A:O,14,FALSE)),0),IF($F$10="M5: Cés, Ara, Vic, Ama, NdS, San",IFERROR((VLOOKUP(D49,'Tarifario '!A:O,15,FALSE)),0),0)))))) -> 0 | K49: 0 | L49: SI | M49: 0 | N49: 0
A50: 0 | J50: =+IF($F$10="",0,IF($F$10="M1: SDG, Btá, Cun, Met, Guav, Cas, Boy",IFERROR((VLOOKUP(D50,'Tarifario '!A:O,11,FALSE)),0),IF($F$10="M2: Cau,VdC, Nar, Tol, Hui, Caq, Put, Vau",IFERROR((VLOOKUP(D50,'Tarifario '!A:O,12,FALSE)),0),IF($F$10="M3: Ant, Cal, Qui, Ris, Cho, Cór, Guai",IFERROR((VLOOKUP(D50,'Tarifario '!A:O,13,FALSE)),0),IF($F$10="M4: Atl, Bol, Guaj, Mag, Suc, SAnd",IFERROR((VLOOKUP(D50,'Tarifario '!A:O,14,FALSE)),0),IF($F$10="M5: Cés, Ara, Vic, Ama, NdS, San",IFERROR((VLOOKUP(D50,'Tarifario '!A:O,15,FALSE)),0),0)))))) -> 0 | K50: 0 | L50: SI | M50: 0 | N50: 0
A51: 0 | J51: =+IF($F$10="",0,IF($F$10="M1: SDG, Btá, Cun, Met, Guav, Cas, Boy",IFERROR((VLOOKUP(D51,'Tarifario '!A:O,11,FALSE)),0),IF($F$10="M2: Cau,VdC, Nar, Tol, Hui, Caq, Put, Vau",IFERROR((VLOOKUP(D51,'Tarifario '!A:O,12,FALSE)),0),IF($F$10="M3: Ant, Cal, Qui, Ris, Cho, Cór, Guai",IFERROR((VLOOKUP(D51,'Tarifario '!A:O,13,FALSE)),0),IF($F$10="M4: Atl, Bol, Guaj, Mag, Suc, SAnd",IFERROR((VLOOKUP(D51,'Tarifario '!A:O,14,FALSE)),0),IF($F$10="M5: Cés, Ara, Vic, Ama, NdS, San",IFERROR((VLOOKUP(D51,'Tarifario '!A:O,15,FALSE)),0),0)))))) -> 0 | K51: 0 | L51: SI | M51: 0 | N51: 0
A52: 0 | J52: =+IF($F$10="",0,IF($F$10="M1: SDG, Btá, Cun, Met, Guav, Cas, Boy",IFERROR((VLOOKUP(D52,'Tarifario '!A:O,11,FALSE)),0),IF($F$10="M2: Cau,VdC, Nar, Tol, Hui, Caq, Put, Vau",IFERROR((VLOOKUP(D52,'Tarifario '!A:O,12,FALSE)),0),IF($F$10="M3: Ant, Cal, Qui, Ris, Cho, Cór, Guai",IFERROR((VLOOKUP(D52,'Tarifario '!A:O,13,FALSE)),0),IF($F$10="M4: Atl, Bol, Guaj, Mag, Suc, SAnd",IFERROR((VLOOKUP(D52,'Tarifario '!A:O,14,FALSE)),0),IF($F$10="M5: Cés, Ara, Vic, Ama, NdS, San",IFERROR((VLOOKUP(D52,'Tarifario '!A:O,15,FALSE)),0),0)))))) -> 0 | K52: 0 | L52: SI | M52: 0 | N52: 0
A53: 0 | J53: =+IF($F$10="",0,IF($F$10="M1: SDG, Btá, Cun, Met, Guav, Cas, Boy",IFERROR((VLOOKUP(D53,'Tarifario '!A:O,11,FALSE)),0),IF($F$10="M2: Cau,VdC, Nar, Tol, Hui, Caq, Put, Vau",IFERROR((VLOOKUP(D53,'Tarifario '!A:O,12,FALSE)),0),IF($F$10="M3: Ant, Cal, Qui, Ris, Cho, Cór, Guai",IFERROR((VLOOKUP(D53,'Tarifario '!A:O,13,FALSE)),0),IF($F$10="M4: Atl, Bol, Guaj, Mag, Suc, SAnd",IFERROR((VLOOKUP(D53,'Tarifario '!A:O,14,FALSE)),0),IF($F$10="M5: Cés, Ara, Vic, Ama, NdS, San",IFERROR((VLOOKUP(D53,'Tarifario '!A:O,15,FALSE)),0),0)))))) -> 0 | K53: 0 | L53: SI | M53: 0 | N53: 0
A54: 0 | J54: =+IF($F$10="",0,IF($F$10="M1: SDG, Btá, Cun, Met, Guav, Cas, Boy",IFERROR((VLOOKUP(D54,'Tarifario '!A:O,11,FALSE)),0),IF($F$10="M2: Cau,VdC, Nar, Tol, Hui, Caq, Put, Vau",IFERROR((VLOOKUP(D54,'Tarifario '!A:O,12,FALSE)),0),IF($F$10="M3: Ant, Cal, Qui, Ris, Cho, Cór, Guai",IFERROR((VLOOKUP(D54,'Tarifario '!A:O,13,FALSE)),0),IF($F$10="M4: Atl, Bol, Guaj, Mag, Suc, SAnd",IFERROR((VLOOKUP(D54,'Tarifario '!A:O,14,FALSE)),0),IF($F$10="M5: Cés, Ara, Vic, Ama, NdS, San",IFERROR((VLOOKUP(D54,'Tarifario '!A:O,15,FALSE)),0),0)))))) -> 0 | K54: 0 | L54: SI | M54: 0 | N54: 0
A55: 0 | J55: =+IF($F$10="",0,IF($F$10="M1: SDG, Btá, Cun, Met, Guav, Cas, Boy",IFERROR((VLOOKUP(D55,'Tarifario '!A:O,11,FALSE)),0),IF($F$10="M2: Cau,VdC, Nar, Tol, Hui, Caq, Put, Vau",IFERROR((VLOOKUP(D55,'Tarifario '!A:O,12,FALSE)),0),IF($F$10="M3: Ant, Cal, Qui, Ris, Cho, Cór, Guai",IFERROR((VLOOKUP(D55,'Tarifario '!A:O,13,FALSE)),0),IF($F$10="M4: Atl, Bol, Guaj, Mag, Suc, SAnd",IFERROR((VLOOKUP(D55,'Tarifario '!A:O,14,FALSE)),0),IF($F$10="M5: Cés, Ara, Vic, Ama, NdS, San",IFERROR((VLOOKUP(D55,'Tarifario '!A:O,15,FALSE)),0),0)))))) -> 0 | K55: 0 | L55: SI | M55: 0 | N55: 0
A56: 0 | J56: =+IF($F$10="",0,IF($F$10="M1: SDG, Btá, Cun, Met, Guav, Cas, Boy",IFERROR((VLOOKUP(D56,'Tarifario '!A:O,11,FALSE)),0),IF($F$10="M2: Cau,VdC, Nar, Tol, Hui, Caq, Put, Vau",IFERROR((VLOOKUP(D56,'Tarifario '!A:O,12,FALSE)),0),IF($F$10="M3: Ant, Cal, Qui, Ris, Cho, Cór, Guai",IFERROR((VLOOKUP(D56,'Tarifario '!A:O,13,FALSE)),0),IF($F$10="M4: Atl, Bol, Guaj, Mag, Suc, SAnd",IFERROR((VLOOKUP(D56,'Tarifario '!A:O,14,FALSE)),0),IF($F$10="M5: Cés, Ara, Vic, Ama, NdS, San",IFERROR((VLOOKUP(D56,'Tarifario '!A:O,15,FALSE)),0),0)))))) -> 0 | K56: 0 | L56: SI | M56: 0 | N56: 0
A57: 0 | J57: =+IF($F$10="",0,IF($F$10="M1: SDG, Btá, Cun, Met, Guav, Cas, Boy",IFERROR((VLOOKUP(D57,'Tarifario '!A:O,11,FALSE)),0),IF($F$10="M2: Cau,VdC, Nar, Tol, Hui, Caq, Put, Vau",IFERROR((VLOOKUP(D57,'Tarifario '!A:O,12,FALSE)),0),IF($F$10="M3: Ant, Cal, Qui, Ris, Cho, Cór, Guai",IFERROR((VLOOKUP(D57,'Tarifario '!A:O,13,FALSE)),0),IF($F$10="M4: Atl, Bol, Guaj, Mag, Suc, SAnd",IFERROR((VLOOKUP(D57,'Tarifario '!A:O,14,FALSE)),0),IF($F$10="M5: Cés, Ara, Vic, Ama, NdS, San",IFERROR((VLOOKUP(D57,'Tarifario '!A:O,15,FALSE)),0),0)))))) -> 0 | K57: 0 | L57: SI | M57: 0 | N57: 0
A58: 0 | J58: =+IF($F$10="",0,IF($F$10="M1: SDG, Btá, Cun, Met, Guav, Cas, Boy",IFERROR((VLOOKUP(D58,'Tarifario '!A:O,11,FALSE)),0),IF($F$10="M2: Cau,VdC, Nar, Tol, Hui, Caq, Put, Vau",IFERROR((VLOOKUP(D58,'Tarifario '!A:O,12,FALSE)),0),IF($F$10="M3: Ant, Cal, Qui, Ris, Cho, Cór, Guai",IFERROR((VLOOKUP(D58,'Tarifario '!A:O,13,FALSE)),0),IF($F$10="M4: Atl, Bol, Guaj, Mag, Suc, SAnd",IFERROR((VLOOKUP(D58,'Tarifario '!A:O,14,FALSE)),0),IF($F$10="M5: Cés, Ara, Vic, Ama, NdS, San",IFERROR((VLOOKUP(D58,'Tarifario '!A:O,15,FALSE)),0),0)))))) -> 0 | K58: 0 | L58: SI | M58: 0 | N58: 0
A59: 0 | J59: =+IF($F$10="",0,IF($F$10="M1: SDG, Btá, Cun, Met, Guav, Cas, Boy",IFERROR((VLOOKUP(D59,'Tarifario '!A:O,11,FALSE)),0),IF($F$10="M2: Cau,VdC, Nar, Tol, Hui, Caq, Put, Vau",IFERROR((VLOOKUP(D59,'Tarifario '!A:O,12,FALSE)),0),IF($F$10="M3: Ant, Cal, Qui, Ris, Cho, Cór, Guai",IFERROR((VLOOKUP(D59,'Tarifario '!A:O,13,FALSE)),0),IF($F$10="M4: Atl, Bol, Guaj, Mag, Suc, SAnd",IFERROR((VLOOKUP(D59,'Tarifario '!A:O,14,FALSE)),0),IF($F$10="M5: Cés, Ara, Vic, Ama, NdS, San",IFERROR((VLOOKUP(D59,'Tarifario '!A:O,15,FALSE)),0),0)))))) -> 0 | K59: 0 | L59: SI | M59: 0 | N59: 0
A60: 0 | J60: =+IF($F$10="",0,IF($F$10="M1: SDG, Btá, Cun, Met, Guav, Cas, Boy",IFERROR((VLOOKUP(D60,'Tarifario '!A:O,11,FALSE)),0),IF($F$10="M2: Cau,VdC, Nar, Tol, Hui, Caq, Put, Vau",IFERROR((VLOOKUP(D60,'Tarifario '!A:O,12,FALSE)),0),IF($F$10="M3: Ant, Cal, Qui, Ris, Cho, Cór, Guai",IFERROR((VLOOKUP(D60,'Tarifario '!A:O,13,FALSE)),0),IF($F$10="M4: Atl, Bol, Guaj, Mag, Suc, SAnd",IFERROR((VLOOKUP(D60,'Tarifario '!A:O,14,FALSE)),0),IF($F$10="M5: Cés, Ara, Vic, Ama, NdS, San",IFERROR((VLOOKUP(D60,'Tarifario '!A:O,15,FALSE)),0),0)))))) -> 0 | K60: 0 | L60: SI | M60: 0 | N60: 0
A61: 0 | J61: =+IF($F$10="",0,IF($F$10="M1: SDG, Btá, Cun, Met, Guav, Cas, Boy",IFERROR((VLOOKUP(D61,'Tarifario '!A:O,11,FALSE)),0),IF($F$10="M2: Cau,VdC, Nar, Tol, Hui, Caq, Put, Vau",IFERROR((VLOOKUP(D61,'Tarifario '!A:O,12,FALSE)),0),IF($F$10="M3: Ant, Cal, Qui, Ris, Cho, Cór, Guai",IFERROR((VLOOKUP(D61,'Tarifario '!A:O,13,FALSE)),0),IF($F$10="M4: Atl, Bol, Guaj, Mag, Suc, SAnd",IFERROR((VLOOKUP(D61,'Tarifario '!A:O,14,FALSE)),0),IF($F$10="M5: Cés, Ara, Vic, Ama, NdS, San",IFERROR((VLOOKUP(D61,'Tarifario '!A:O,15,FALSE)),0),0)))))) -> 0 | K61: 0 | L61: SI | M61: 0 | N61: 0
A62: 0 | J62: =+IF($F$10="",0,IF($F$10="M1: SDG, Btá, Cun, Met, Guav, Cas, Boy",IFERROR((VLOOKUP(D62,'Tarifario '!A:O,11,FALSE)),0),IF($F$10="M2: Cau,VdC, Nar, Tol, Hui, Caq, Put, Vau",IFERROR((VLOOKUP(D62,'Tarifario '!A:O,12,FALSE)),0),IF($F$10="M3: Ant, Cal, Qui, Ris, Cho, Cór, Guai",IFERROR((VLOOKUP(D62,'Tarifario '!A:O,13,FALSE)),0),IF($F$10="M4: Atl, Bol, Guaj, Mag, Suc, SAnd",IFERROR((VLOOKUP(D62,'Tarifario '!A:O,14,FALSE)),0),IF($F$10="M5: Cés, Ara, Vic, Ama, NdS, San",IFERROR((VLOOKUP(D62,'Tarifario '!A:O,15,FALSE)),0),0)))))) -> 0 | K62: 0 | L62: SI | M62: 0 | N62: 0
A63: 0 | J63: =+IF($F$10="",0,IF($F$10="M1: SDG, Btá, Cun, Met, Guav, Cas, Boy",IFERROR((VLOOKUP(D63,'Tarifario '!A:O,11,FALSE)),0),IF($F$10="M2: Cau,VdC, Nar, Tol, Hui, Caq, Put, Vau",IFERROR((VLOOKUP(D63,'Tarifario '!A:O,12,FALSE)),0),IF($F$10="M3: Ant, Cal, Qui, Ris, Cho, Cór, Guai",IFERROR((VLOOKUP(D63,'Tarifario '!A:O,13,FALSE)),0),IF($F$10="M4: Atl, Bol, Guaj, Mag, Suc, SAnd",IFERROR((VLOOKUP(D63,'Tarifario '!A:O,14,FALSE)),0),IF($F$10="M5: Cés, Ara, Vic, Ama, NdS, San",IFERROR((VLOOKUP(D63,'Tarifario '!A:O,15,FALSE)),0),0)))))) -> 0 | K63: 0 | L63: SI | M63: 0 | N63: 0
A64: 0 | J64: =+IF($F$10="",0,IF($F$10="M1: SDG, Btá, Cun, Met, Guav, Cas, Boy",IFERROR((VLOOKUP(D64,'Tarifario '!A:O,11,FALSE)),0),IF($F$10="M2: Cau,VdC, Nar, Tol, Hui, Caq, Put, Vau",IFERROR((VLOOKUP(D64,'Tarifario '!A:O,12,FALSE)),0),IF($F$10="M3: Ant, Cal, Qui, Ris, Cho, Cór, Guai",IFERROR((VLOOKUP(D64,'Tarifario '!A:O,13,FALSE)),0),IF($F$10="M4: Atl, Bol, Guaj, Mag, Suc, SAnd",IFERROR((VLOOKUP(D64,'Tarifario '!A:O,14,FALSE)),0),IF($F$10="M5: Cés, Ara, Vic, Ama, NdS, San",IFERROR((VLOOKUP(D64,'Tarifario '!A:O,15,FALSE)),0),0)))))) -> 0 | K64: 0 | L64: SI | M64: 0 | N64: 0
A65: 0 | J65: =+IF($F$10="",0,IF($F$10="M1: SDG, Btá, Cun, Met, Guav, Cas, Boy",IFERROR((VLOOKUP(D65,'Tarifario '!A:O,11,FALSE)),0),IF($F$10="M2: Cau,VdC, Nar, Tol, Hui, Caq, Put, Vau",IFERROR((VLOOKUP(D65,'Tarifario '!A:O,12,FALSE)),0),IF($F$10="M3: Ant, Cal, Qui, Ris, Cho, Cór, Guai",IFERROR((VLOOKUP(D65,'Tarifario '!A:O,13,FALSE)),0),IF($F$10="M4: Atl, Bol, Guaj, Mag, Suc, SAnd",IFERROR((VLOOKUP(D65,'Tarifario '!A:O,14,FALSE)),0),IF($F$10="M5: Cés, Ara, Vic, Ama, NdS, San",IFERROR((VLOOKUP(D65,'Tarifario '!A:O,15,FALSE)),0),0)))))) -> 0 | K65: 0 | L65: SI | M65: 0 | N65: 0
A66: 0 | J66: =+IF($F$10="",0,IF($F$10="M1: SDG, Btá, Cun, Met, Guav, Cas, Boy",IFERROR((VLOOKUP(D66,'Tarifario '!A:O,11,FALSE)),0),IF($F$10="M2: Cau,VdC, Nar, Tol, Hui, Caq, Put, Vau",IFERROR((VLOOKUP(D66,'Tarifario '!A:O,12,FALSE)),0),IF($F$10="M3: Ant, Cal, Qui, Ris, Cho, Cór, Guai",IFERROR((VLOOKUP(D66,'Tarifario '!A:O,13,FALSE)),0),IF($F$10="M4: Atl, Bol, Guaj, Mag, Suc, SAnd",IFERROR((VLOOKUP(D66,'Tarifario '!A:O,14,FALSE)),0),IF($F$10="M5: Cés, Ara, Vic, Ama, NdS, San",IFERROR((VLOOKUP(D66,'Tarifario '!A:O,15,FALSE)),0),0)))))) -> 0 | K66: 0 | L66: SI | M66: 0 | N66: 0
A67: 0 | J67: =+IF($F$10="",0,IF($F$10="M1: SDG, Btá, Cun, Met, Guav, Cas, Boy",IFERROR((VLOOKUP(D67,'Tarifario '!A:O,11,FALSE)),0),IF($F$10="M2: Cau,VdC, Nar, Tol, Hui, Caq, Put, Vau",IFERROR((VLOOKUP(D67,'Tarifario '!A:O,12,FALSE)),0),IF($F$10="M3: Ant, Cal, Qui, Ris, Cho, Cór, Guai",IFERROR((VLOOKUP(D67,'Tarifario '!A:O,13,FALSE)),0),IF($F$10="M4: Atl, Bol, Guaj, Mag, Suc, SAnd",IFERROR((VLOOKUP(D67,'Tarifario '!A:O,14,FALSE)),0),IF($F$10="M5: Cés, Ara, Vic, Ama, NdS, San",IFERROR((VLOOKUP(D67,'Tarifario '!A:O,15,FALSE)),0),0)))))) -> 0 | K67: 0 | L67: SI | M67: 0 | N67: 0
A68: 0 | J68: =+IF($F$10="",0,IF($F$10="M1: SDG, Btá, Cun, Met, Guav, Cas, Boy",IFERROR((VLOOKUP(D68,'Tarifario '!A:O,11,FALSE)),0),IF($F$10="M2: Cau,VdC, Nar, Tol, Hui, Caq, Put, Vau",IFERROR((VLOOKUP(D68,'Tarifario '!A:O,12,FALSE)),0),IF($F$10="M3: Ant, Cal, Qui, Ris, Cho, Cór, Guai",IFERROR((VLOOKUP(D68,'Tarifario '!A:O,13,FALSE)),0),IF($F$10="M4: Atl, Bol, Guaj, Mag, Suc, SAnd",IFERROR((VLOOKUP(D68,'Tarifario '!A:O,14,FALSE)),0),IF($F$10="M5: Cés, Ara, Vic, Ama, NdS, San",IFERROR((VLOOKUP(D68,'Tarifario '!A:O,15,FALSE)),0),0)))))) -> 0 | K68: 0 | L68: SI | M68: 0 | N68: 0
A69: 0 | J69: =+IF($F$10="",0,IF($F$10="M1: SDG, Btá, Cun, Met, Guav, Cas, Boy",IFERROR((VLOOKUP(D69,'Tarifario '!A:O,11,FALSE)),0),IF($F$10="M2: Cau,VdC, Nar, Tol, Hui, Caq, Put, Vau",IFERROR((VLOOKUP(D69,'Tarifario '!A:O,12,FALSE)),0),IF($F$10="M3: Ant, Cal, Qui, Ris, Cho, Cór, Guai",IFERROR((VLOOKUP(D69,'Tarifario '!A:O,13,FALSE)),0),IF($F$10="M4: Atl, Bol, Guaj, Mag, Suc, SAnd",IFERROR((VLOOKUP(D69,'Tarifario '!A:O,14,FALSE)),0),IF($F$10="M5: Cés, Ara, Vic, Ama, NdS, San",IFERROR((VLOOKUP(D69,'Tarifario '!A:O,15,FALSE)),0),0)))))) -> 0 | K69: 0 | L69: SI | M69: 0 | N69: 0
A70: 0 | J70: =+IF($F$10="",0,IF($F$10="M1: SDG, Btá, Cun, Met, Guav, Cas, Boy",IFERROR((VLOOKUP(D70,'Tarifario '!A:O,11,FALSE)),0),IF($F$10="M2: Cau,VdC, Nar, Tol, Hui, Caq, Put, Vau",IFERROR((VLOOKUP(D70,'Tarifario '!A:O,12,FALSE)),0),IF($F$10="M3: Ant, Cal, Qui, Ris, Cho, Cór, Guai",IFERROR((VLOOKUP(D70,'Tarifario '!A:O,13,FALSE)),0),IF($F$10="M4: Atl, Bol, Guaj, Mag, Suc, SAnd",IFERROR((VLOOKUP(D70,'Tarifario '!A:O,14,FALSE)),0),IF($F$10="M5: Cés, Ara, Vic, Ama, NdS, San",IFERROR((VLOOKUP(D70,'Tarifario '!A:O,15,FALSE)),0),0)))))) -> 0 | K70: 0 | L70: SI | M70: 0 | N70: 0
A71: 0 | J71: =+IF($F$10="",0,IF($F$10="M1: SDG, Btá, Cun, Met, Guav, Cas, Boy",IFERROR((VLOOKUP(D71,'Tarifario '!A:O,11,FALSE)),0),IF($F$10="M2: Cau,VdC, Nar, Tol, Hui, Caq, Put, Vau",IFERROR((VLOOKUP(D71,'Tarifario '!A:O,12,FALSE)),0),IF($F$10="M3: Ant, Cal, Qui, Ris, Cho, Cór, Guai",IFERROR((VLOOKUP(D71,'Tarifario '!A:O,13,FALSE)),0),IF($F$10="M4: Atl, Bol, Guaj, Mag, Suc, SAnd",IFERROR((VLOOKUP(D71,'Tarifario '!A:O,14,FALSE)),0),IF($F$10="M5: Cés, Ara, Vic, Ama, NdS, San",IFERROR((VLOOKUP(D71,'Tarifario '!A:O,15,FALSE)),0),0)))))) -> 0 | K71: 0 | L71: SI | M71: 0 | N71: 0
A72: 0 | J72: =+IF($F$10="",0,IF($F$10="M1: SDG, Btá, Cun, Met, Guav, Cas, Boy",IFERROR((VLOOKUP(D72,'Tarifario '!A:O,11,FALSE)),0),IF($F$10="M2: Cau,VdC, Nar, Tol, Hui, Caq, Put, Vau",IFERROR((VLOOKUP(D72,'Tarifario '!A:O,12,FALSE)),0),IF($F$10="M3: Ant, Cal, Qui, Ris, Cho, Cór, Guai",IFERROR((VLOOKUP(D72,'Tarifario '!A:O,13,FALSE)),0),IF($F$10="M4: Atl, Bol, Guaj, Mag, Suc, SAnd",IFERROR((VLOOKUP(D72,'Tarifario '!A:O,14,FALSE)),0),IF($F$10="M5: Cés, Ara, Vic, Ama, NdS, San",IFERROR((VLOOKUP(D72,'Tarifario '!A:O,15,FALSE)),0),0)))))) -> 0 | K72: 0 | L72: SI | M72: 0 | N72: 0
A73: 0 | J73: =+IF($F$10="",0,IF($F$10="M1: SDG, Btá, Cun, Met, Guav, Cas, Boy",IFERROR((VLOOKUP(D73,'Tarifario '!A:O,11,FALSE)),0),IF($F$10="M2: Cau,VdC, Nar, Tol, Hui, Caq, Put, Vau",IFERROR((VLOOKUP(D73,'Tarifario '!A:O,12,FALSE)),0),IF($F$10="M3: Ant, Cal, Qui, Ris, Cho, Cór, Guai",IFERROR((VLOOKUP(D73,'Tarifario '!A:O,13,FALSE)),0),IF($F$10="M4: Atl, Bol, Guaj, Mag, Suc, SAnd",IFERROR((VLOOKUP(D73,'Tarifario '!A:O,14,FALSE)),0),IF($F$10="M5: Cés, Ara, Vic, Ama, NdS, San",IFERROR((VLOOKUP(D73,'Tarifario '!A:O,15,FALSE)),0),0)))))) -> 0 | K73: 0 | L73: SI | M73: 0 | N73: 0
A74: 0 | J74: =+IF($F$10="",0,IF($F$10="M1: SDG, Btá, Cun, Met, Guav, Cas, Boy",IFERROR((VLOOKUP(D74,'Tarifario '!A:O,11,FALSE)),0),IF($F$10="M2: Cau,VdC, Nar, Tol, Hui, Caq, Put, Vau",IFERROR((VLOOKUP(D74,'Tarifario '!A:O,12,FALSE)),0),IF($F$10="M3: Ant, Cal, Qui, Ris, Cho, Cór, Guai",IFERROR((VLOOKUP(D74,'Tarifario '!A:O,13,FALSE)),0),IF($F$10="M4: Atl, Bol, Guaj, Mag, Suc, SAnd",IFERROR((VLOOKUP(D74,'Tarifario '!A:O,14,FALSE)),0),IF($F$10="M5: Cés, Ara, Vic, Ama, NdS, San",IFERROR((VLOOKUP(D74,'Tarifario '!A:O,15,FALSE)),0),0)))))) -> 0 | K74: 0 | L74: SI | M74: 0 | N74: 0
A75: 0 | J75: =+IF($F$10="",0,IF($F$10="M1: SDG, Btá, Cun, Met, Guav, Cas, Boy",IFERROR((VLOOKUP(D75,'Tarifario '!A:O,11,FALSE)),0),IF($F$10="M2: Cau,VdC, Nar, Tol, Hui, Caq, Put, Vau",IFERROR((VLOOKUP(D75,'Tarifario '!A:O,12,FALSE)),0),IF($F$10="M3: Ant, Cal, Qui, Ris, Cho, Cór, Guai",IFERROR((VLOOKUP(D75,'Tarifario '!A:O,13,FALSE)),0),IF($F$10="M4: Atl, Bol, Guaj, Mag, Suc, SAnd",IFERROR((VLOOKUP(D75,'Tarifario '!A:O,14,FALSE)),0),IF($F$10="M5: Cés, Ara, Vic, Ama, NdS, San",IFERROR((VLOOKUP(D75,'Tarifario '!A:O,15,FALSE)),0),0)))))) -> 0 | K75: 0 | L75: SI | M75: 0 | N75: 0
A76: 0 | J76: =+IF($F$10="",0,IF($F$10="M1: SDG, Btá, Cun, Met, Guav, Cas, Boy",IFERROR((VLOOKUP(D76,'Tarifario '!A:O,11,FALSE)),0),IF($F$10="M2: Cau,VdC, Nar, Tol, Hui, Caq, Put, Vau",IFERROR((VLOOKUP(D76,'Tarifario '!A:O,12,FALSE)),0),IF($F$10="M3: Ant, Cal, Qui, Ris, Cho, Cór, Guai",IFERROR((VLOOKUP(D76,'Tarifario '!A:O,13,FALSE)),0),IF($F$10="M4: Atl, Bol, Guaj, Mag, Suc, SAnd",IFERROR((VLOOKUP(D76,'Tarifario '!A:O,14,FALSE)),0),IF($F$10="M5: Cés, Ara, Vic, Ama, NdS, San",IFERROR((VLOOKUP(D76,'Tarifario '!A:O,15,FALSE)),0),0)))))) -> 0 | K76: 0 | L76: SI | M76: 0 | N76: 0
A77: 0 | J77: =+IF($F$10="",0,IF($F$10="M1: SDG, Btá, Cun, Met, Guav, Cas, Boy",IFERROR((VLOOKUP(D77,'Tarifario '!A:O,11,FALSE)),0),IF($F$10="M2: Cau,VdC, Nar, Tol, Hui, Caq, Put, Vau",IFERROR((VLOOKUP(D77,'Tarifario '!A:O,12,FALSE)),0),IF($F$10="M3: Ant, Cal, Qui, Ris, Cho, Cór, Guai",IFERROR((VLOOKUP(D77,'Tarifario '!A:O,13,FALSE)),0),IF($F$10="M4: Atl, Bol, Guaj, Mag, Suc, SAnd",IFERROR((VLOOKUP(D77,'Tarifario '!A:O,14,FALSE)),0),IF($F$10="M5: Cés, Ara, Vic, Ama, NdS, San",IFERROR((VLOOKUP(D77,'Tarifario '!A:O,15,FALSE)),0),0)))))) -> 0 | K77: 0 | L77: SI | M77: 0 | N77: 0
A78: 0 | J78: =+IF($F$10="",0,IF($F$10="M1: SDG, Btá, Cun, Met, Guav, Cas, Boy",IFERROR((VLOOKUP(D78,'Tarifario '!A:O,11,FALSE)),0),IF($F$10="M2: Cau,VdC, Nar, Tol, Hui, Caq, Put, Vau",IFERROR((VLOOKUP(D78,'Tarifario '!A:O,12,FALSE)),0),IF($F$10="M3: Ant, Cal, Qui, Ris, Cho, Cór, Guai",IFERROR((VLOOKUP(D78,'Tarifario '!A:O,13,FALSE)),0),IF($F$10="M4: Atl, Bol, Guaj, Mag, Suc, SAnd",IFERROR((VLOOKUP(D78,'Tarifario '!A:O,14,FALSE)),0),IF($F$10="M5: Cés, Ara, Vic, Ama, NdS, San",IFERROR((VLOOKUP(D78,'Tarifario '!A:O,15,FALSE)),0),0)))))) -> 0 | K78: 0 | L78: SI | M78: 0 | N78: 0
A79: 0 | J79: =+IF($F$10="",0,IF($F$10="M1: SDG, Btá, Cun, Met, Guav, Cas, Boy",IFERROR((VLOOKUP(D79,'Tarifario '!A:O,11,FALSE)),0),IF($F$10="M2: Cau,VdC, Nar, Tol, Hui, Caq, Put, Vau",IFERROR((VLOOKUP(D79,'Tarifario '!A:O,12,FALSE)),0),IF($F$10="M3: Ant, Cal, Qui, Ris, Cho, Cór, Guai",IFERROR((VLOOKUP(D79,'Tarifario '!A:O,13,FALSE)),0),IF($F$10="M4: Atl, Bol, Guaj, Mag, Suc, SAnd",IFERROR((VLOOKUP(D79,'Tarifario '!A:O,14,FALSE)),0),IF($F$10="M5: Cés, Ara, Vic, Ama, NdS, San",IFERROR((VLOOKUP(D79,'Tarifario '!A:O,15,FALSE)),0),0)))))) -> 0 | K79: 0 | L79: SI | M79: =+IF(L79="SI",(K79*0.19),0) -> 0 | N79: 0
A80: =+IF(D80="",0,1) -> 0 | J80: =+IF($F$10="",0,IF($F$10="M1: SDG, Btá, Cun, Met, Guav, Cas, Boy",IFERROR((VLOOKUP(D80,'Tarifario '!A:O,11,FALSE)),0),IF($F$10="M2: Cau,VdC, Nar, Tol, Hui, Caq, Put, Vau",IFERROR((VLOOKUP(D80,'Tarifario '!A:O,12,FALSE)),0),IF($F$10="M3: Ant, Cal, Qui, Ris, Cho, Cór, Guai",IFERROR((VLOOKUP(D80,'Tarifario '!A:O,13,FALSE)),0),IF($F$10="M4: Atl, Bol, Guaj, Mag, Suc, SAnd",IFERROR((VLOOKUP(D80,'Tarifario '!A:O,14,FALSE)),0),IF($F$10="M5: Cés, Ara, Vic, Ama, NdS, San",IFERROR((VLOOKUP(D80,'Tarifario '!A:O,15,FALSE)),0),0)))))) -> 0 | K80: =+J80*I80 -> 0 | L80: SI | M80: 0 | N80: =+K80+M80 -> 0
A81: 0 | J81: =+IF($F$10="",0,IF($F$10="M1: SDG, Btá, Cun, Met, Guav, Cas, Boy",IFERROR((VLOOKUP(D81,'Tarifario '!A:O,11,FALSE)),0),IF($F$10="M2: Cau,VdC, Nar, Tol, Hui, Caq, Put, Vau",IFERROR((VLOOKUP(D81,'Tarifario '!A:O,12,FALSE)),0),IF($F$10="M3: Ant, Cal, Qui, Ris, Cho, Cór, Guai",IFERROR((VLOOKUP(D81,'Tarifario '!A:O,13,FALSE)),0),IF($F$10="M4: Atl, Bol, Guaj, Mag, Suc, SAnd",IFERROR((VLOOKUP(D81,'Tarifario '!A:O,14,FALSE)),0),IF($F$10="M5: Cés, Ara, Vic, Ama, NdS, San",IFERROR((VLOOKUP(D81,'Tarifario '!A:O,15,FALSE)),0),0)))))) -> 0 | K81: 0 | L81: SI | M81: 0 | N81: 0
A82: 0 | J82: =+IF($F$10="",0,IF($F$10="M1: SDG, Btá, Cun, Met, Guav, Cas, Boy",IFERROR((VLOOKUP(D82,'Tarifario '!A:O,11,FALSE)),0),IF($F$10="M2: Cau,VdC, Nar, Tol, Hui, Caq, Put, Vau",IFERROR((VLOOKUP(D82,'Tarifario '!A:O,12,FALSE)),0),IF($F$10="M3: Ant, Cal, Qui, Ris, Cho, Cór, Guai",IFERROR((VLOOKUP(D82,'Tarifario '!A:O,13,FALSE)),0),IF($F$10="M4: Atl, Bol, Guaj, Mag, Suc, SAnd",IFERROR((VLOOKUP(D82,'Tarifario '!A:O,14,FALSE)),0),IF($F$10="M5: Cés, Ara, Vic, Ama, NdS, San",IFERROR((VLOOKUP(D82,'Tarifario '!A:O,15,FALSE)),0),0)))))) -> 0 | K82: 0 | L82: SI | M82: 0 | N82: 0
A83: 0 | J83: =+IF($F$10="",0,IF($F$10="M1: SDG, Btá, Cun, Met, Guav, Cas, Boy",IFERROR((VLOOKUP(D83,'Tarifario '!A:O,11,FALSE)),0),IF($F$10="M2: Cau,VdC, Nar, Tol, Hui, Caq, Put, Vau",IFERROR((VLOOKUP(D83,'Tarifario '!A:O,12,FALSE)),0),IF($F$10="M3: Ant, Cal, Qui, Ris, Cho, Cór, Guai",IFERROR((VLOOKUP(D83,'Tarifario '!A:O,13,FALSE)),0),IF($F$10="M4: Atl, Bol, Guaj, Mag, Suc, SAnd",IFERROR((VLOOKUP(D83,'Tarifario '!A:O,14,FALSE)),0),IF($F$10="M5: Cés, Ara, Vic, Ama, NdS, San",IFERROR((VLOOKUP(D83,'Tarifario '!A:O,15,FALSE)),0),0)))))) -> 0 | K83: 0 | L83: SI | M83: 0 | N83: 0
A84: 0 | J84: =+IF($F$10="",0,IF($F$10="M1: SDG, Btá, Cun, Met, Guav, Cas, Boy",IFERROR((VLOOKUP(D84,'Tarifario '!A:O,11,FALSE)),0),IF($F$10="M2: Cau,VdC, Nar, Tol, Hui, Caq, Put, Vau",IFERROR((VLOOKUP(D84,'Tarifario '!A:O,12,FALSE)),0),IF($F$10="M3: Ant, Cal, Qui, Ris, Cho, Cór, Guai",IFERROR((VLOOKUP(D84,'Tarifario '!A:O,13,FALSE)),0),IF($F$10="M4: Atl, Bol, Guaj, Mag, Suc, SAnd",IFERROR((VLOOKUP(D84,'Tarifario '!A:O,14,FALSE)),0),IF($F$10="M5: Cés, Ara, Vic, Ama, NdS, San",IFERROR((VLOOKUP(D84,'Tarifario '!A:O,15,FALSE)),0),0)))))) -> 0 | K84: 0 | L84: SI | M84: 0 | N84: 0
A85: 0 | J85: =+IF($F$10="",0,IF($F$10="M1: SDG, Btá, Cun, Met, Guav, Cas, Boy",IFERROR((VLOOKUP(D85,'Tarifario '!A:O,11,FALSE)),0),IF($F$10="M2: Cau,VdC, Nar, Tol, Hui, Caq, Put, Vau",IFERROR((VLOOKUP(D85,'Tarifario '!A:O,12,FALSE)),0),IF($F$10="M3: Ant, Cal, Qui, Ris, Cho, Cór, Guai",IFERROR((VLOOKUP(D85,'Tarifario '!A:O,13,FALSE)),0),IF($F$10="M4: Atl, Bol, Guaj, Mag, Suc, SAnd",IFERROR((VLOOKUP(D85,'Tarifario '!A:O,14,FALSE)),0),IF($F$10="M5: Cés, Ara, Vic, Ama, NdS, San",IFERROR((VLOOKUP(D85,'Tarifario '!A:O,15,FALSE)),0),0)))))) -> 0 | K85: 0 | L85: SI | M85: 0 | N85: 0
A86: 0 | J86: =+IF($F$10="",0,IF($F$10="M1: SDG, Btá, Cun, Met, Guav, Cas, Boy",IFERROR((VLOOKUP(D86,'Tarifario '!A:O,11,FALSE)),0),IF($F$10="M2: Cau,VdC, Nar, Tol, Hui, Caq, Put, Vau",IFERROR((VLOOKUP(D86,'Tarifario '!A:O,12,FALSE)),0),IF($F$10="M3: Ant, Cal, Qui, Ris, Cho, Cór, Guai",IFERROR((VLOOKUP(D86,'Tarifario '!A:O,13,FALSE)),0),IF($F$10="M4: Atl, Bol, Guaj, Mag, Suc, SAnd",IFERROR((VLOOKUP(D86,'Tarifario '!A:O,14,FALSE)),0),IF($F$10="M5: Cés, Ara, Vic, Ama, NdS, San",IFERROR((VLOOKUP(D86,'Tarifario '!A:O,15,FALSE)),0),0)))))) -> 0 | K86: 0 | L86: SI | M86: 0 | N86: 0
A87: 0 | J87: =+IF($F$10="",0,IF($F$10="M1: SDG, Btá, Cun, Met, Guav, Cas, Boy",IFERROR((VLOOKUP(D87,'Tarifario '!A:O,11,FALSE)),0),IF($F$10="M2: Cau,VdC, Nar, Tol, Hui, Caq, Put, Vau",IFERROR((VLOOKUP(D87,'Tarifario '!A:O,12,FALSE)),0),IF($F$10="M3: Ant, Cal, Qui, Ris, Cho, Cór, Guai",IFERROR((VLOOKUP(D87,'Tarifario '!A:O,13,FALSE)),0),IF($F$10="M4: Atl, Bol, Guaj, Mag, Suc, SAnd",IFERROR((VLOOKUP(D87,'Tarifario '!A:O,14,FALSE)),0),IF($F$10="M5: Cés, Ara, Vic, Ama, NdS, San",IFERROR((VLOOKUP(D87,'Tarifario '!A:O,15,FALSE)),0),0)))))) -> 0 | K87: 0 | L87: SI | M87: 0 | N87: 0
A88: 0 | J88: =+IF($F$10="",0,IF($F$10="M1: SDG, Btá, Cun, Met, Guav, Cas, Boy",IFERROR((VLOOKUP(D88,'Tarifario '!A:O,11,FALSE)),0),IF($F$10="M2: Cau,VdC, Nar, Tol, Hui, Caq, Put, Vau",IFERROR((VLOOKUP(D88,'Tarifario '!A:O,12,FALSE)),0),IF($F$10="M3: Ant, Cal, Qui, Ris, Cho, Cór, Guai",IFERROR((VLOOKUP(D88,'Tarifario '!A:O,13,FALSE)),0),IF($F$10="M4: Atl, Bol, Guaj, Mag, Suc, SAnd",IFERROR((VLOOKUP(D88,'Tarifario '!A:O,14,FALSE)),0),IF($F$10="M5: Cés, Ara, Vic, Ama, NdS, San",IFERROR((VLOOKUP(D88,'Tarifario '!A:O,15,FALSE)),0),0)))))) -> 0 | K88: 0 | L88: SI | M88: 0 | N88: 0
A89: 0 | J89: =+IF($F$10="",0,IF($F$10="M1: SDG, Btá, Cun, Met, Guav, Cas, Boy",IFERROR((VLOOKUP(D89,'Tarifario '!A:O,11,FALSE)),0),IF($F$10="M2: Cau,VdC, Nar, Tol, Hui, Caq, Put, Vau",IFERROR((VLOOKUP(D89,'Tarifario '!A:O,12,FALSE)),0),IF($F$10="M3: Ant, Cal, Qui, Ris, Cho, Cór, Guai",IFERROR((VLOOKUP(D89,'Tarifario '!A:O,13,FALSE)),0),IF($F$10="M4: Atl, Bol, Guaj, Mag, Suc, SAnd",IFERROR((VLOOKUP(D89,'Tarifario '!A:O,14,FALSE)),0),IF($F$10="M5: Cés, Ara, Vic, Ama, NdS, San",IFERROR((VLOOKUP(D89,'Tarifario '!A:O,15,FALSE)),0),0)))))) -> 0 | K89: 0 | L89: SI | M89: 0 | N89: 0
A90: 0 | J90: =+IF($F$10="",0,IF($F$10="M1: SDG, Btá, Cun, Met, Guav, Cas, Boy",IFERROR((VLOOKUP(D90,'Tarifario '!A:O,11,FALSE)),0),IF($F$10="M2: Cau,VdC, Nar, Tol, Hui, Caq, Put, Vau",IFERROR((VLOOKUP(D90,'Tarifario '!A:O,12,FALSE)),0),IF($F$10="M3: Ant, Cal, Qui, Ris, Cho, Cór, Guai",IFERROR((VLOOKUP(D90,'Tarifario '!A:O,13,FALSE)),0),IF($F$10="M4: Atl, Bol, Guaj, Mag, Suc, SAnd",IFERROR((VLOOKUP(D90,'Tarifario '!A:O,14,FALSE)),0),IF($F$10="M5: Cés, Ara, Vic, Ama, NdS, San",IFERROR((VLOOKUP(D90,'Tarifario '!A:O,15,FALSE)),0),0)))))) -> 0 | K90: 0 | L90: SI | M90: 0 | N90: 0
A91: 0 | J91: =+IF($F$10="",0,IF($F$10="M1: SDG, Btá, Cun, Met, Guav, Cas, Boy",IFERROR((VLOOKUP(D91,'Tarifario '!A:O,11,FALSE)),0),IF($F$10="M2: Cau,VdC, Nar, Tol, Hui, Caq, Put, Vau",IFERROR((VLOOKUP(D91,'Tarifario '!A:O,12,FALSE)),0),IF($F$10="M3: Ant, Cal, Qui, Ris, Cho, Cór, Guai",IFERROR((VLOOKUP(D91,'Tarifario '!A:O,13,FALSE)),0),IF($F$10="M4: Atl, Bol, Guaj, Mag, Suc, SAnd",IFERROR((VLOOKUP(D91,'Tarifario '!A:O,14,FALSE)),0),IF($F$10="M5: Cés, Ara, Vic, Ama, NdS, San",IFERROR((VLOOKUP(D91,'Tarifario '!A:O,15,FALSE)),0),0)))))) -> 0 | K91: 0 | L91: SI | M91: 0 | N91: 0
A92: 0 | J92: =+IF($F$10="",0,IF($F$10="M1: SDG, Btá, Cun, Met, Guav, Cas, Boy",IFERROR((VLOOKUP(D92,'Tarifario '!A:O,11,FALSE)),0),IF($F$10="M2: Cau,VdC, Nar, Tol, Hui, Caq, Put, Vau",IFERROR((VLOOKUP(D92,'Tarifario '!A:O,12,FALSE)),0),IF($F$10="M3: Ant, Cal, Qui, Ris, Cho, Cór, Guai",IFERROR((VLOOKUP(D92,'Tarifario '!A:O,13,FALSE)),0),IF($F$10="M4: Atl, Bol, Guaj, Mag, Suc, SAnd",IFERROR((VLOOKUP(D92,'Tarifario '!A:O,14,FALSE)),0),IF($F$10="M5: Cés, Ara, Vic, Ama, NdS, San",IFERROR((VLOOKUP(D92,'Tarifario '!A:O,15,FALSE)),0),0)))))) -> 0 | K92: 0 | L92: SI | M92: 0 | N92: 0
A93: 0 | J93: =+IF($F$10="",0,IF($F$10="M1: SDG, Btá, Cun, Met, Guav, Cas, Boy",IFERROR((VLOOKUP(D93,'Tarifario '!A:O,11,FALSE)),0),IF($F$10="M2: Cau,VdC, Nar, Tol, Hui, Caq, Put, Vau",IFERROR((VLOOKUP(D93,'Tarifario '!A:O,12,FALSE)),0),IF($F$10="M3: Ant, Cal, Qui, Ris, Cho, Cór, Guai",IFERROR((VLOOKUP(D93,'Tarifario '!A:O,13,FALSE)),0),IF($F$10="M4: Atl, Bol, Guaj, Mag, Suc, SAnd",IFERROR((VLOOKUP(D93,'Tarifario '!A:O,14,FALSE)),0),IF($F$10="M5: Cés, Ara, Vic, Ama, NdS, San",IFERROR((VLOOKUP(D93,'Tarifario '!A:O,15,FALSE)),0),0)))))) -> 0 | K93: 0 | L93: SI | M93: 0 | N93: 0
A94: 0 | J94: =+IF($F$10="",0,IF($F$10="M1: SDG, Btá, Cun, Met, Guav, Cas, Boy",IFERROR((VLOOKUP(D94,'Tarifario '!A:O,11,FALSE)),0),IF($F$10="M2: Cau,VdC, Nar, Tol, Hui, Caq, Put, Vau",IFERROR((VLOOKUP(D94,'Tarifario '!A:O,12,FALSE)),0),IF($F$10="M3: Ant, Cal, Qui, Ris, Cho, Cór, Guai",IFERROR((VLOOKUP(D94,'Tarifario '!A:O,13,FALSE)),0),IF($F$10="M4: Atl, Bol, Guaj, Mag, Suc, SAnd",IFERROR((VLOOKUP(D94,'Tarifario '!A:O,14,FALSE)),0),IF($F$10="M5: Cés, Ara, Vic, Ama, NdS, San",IFERROR((VLOOKUP(D94,'Tarifario '!A:O,15,FALSE)),0),0)))))) -> 0 | K94: 0 | L94: SI | M94: 0 | N94: 0
A95: 0 | J95: =+IF($F$10="",0,IF($F$10="M1: SDG, Btá, Cun, Met, Guav, Cas, Boy",IFERROR((VLOOKUP(D95,'Tarifario '!A:O,11,FALSE)),0),IF($F$10="M2: Cau,VdC, Nar, Tol, Hui, Caq, Put, Vau",IFERROR((VLOOKUP(D95,'Tarifario '!A:O,12,FALSE)),0),IF($F$10="M3: Ant, Cal, Qui, Ris, Cho, Cór, Guai",IFERROR((VLOOKUP(D95,'Tarifario '!A:O,13,FALSE)),0),IF($F$10="M4: Atl, Bol, Guaj, Mag, Suc, SAnd",IFERROR((VLOOKUP(D95,'Tarifario '!A:O,14,FALSE)),0),IF($F$10="M5: Cés, Ara, Vic, Ama, NdS, San",IFERROR((VLOOKUP(D95,'Tarifario '!A:O,15,FALSE)),0),0)))))) -> 0 | K95: 0 | L95: SI | M95: 0 | N95: 0
A96: 0 | J96: =+IF($F$10="",0,IF($F$10="M1: SDG, Btá, Cun, Met, Guav, Cas, Boy",IFERROR((VLOOKUP(D96,'Tarifario '!A:O,11,FALSE)),0),IF($F$10="M2: Cau,VdC, Nar, Tol, Hui, Caq, Put, Vau",IFERROR((VLOOKUP(D96,'Tarifario '!A:O,12,FALSE)),0),IF($F$10="M3: Ant, Cal, Qui, Ris, Cho, Cór, Guai",IFERROR((VLOOKUP(D96,'Tarifario '!A:O,13,FALSE)),0),IF($F$10="M4: Atl, Bol, Guaj, Mag, Suc, SAnd",IFERROR((VLOOKUP(D96,'Tarifario '!A:O,14,FALSE)),0),IF($F$10="M5: Cés, Ara, Vic, Ama, NdS, San",IFERROR((VLOOKUP(D96,'Tarifario '!A:O,15,FALSE)),0),0)))))) -> 0 | K96: 0 | L96: SI | M96: 0 | N96: 0
A97: 0 | J97: =+IF($F$10="",0,IF($F$10="M1: SDG, Btá, Cun, Met, Guav, Cas, Boy",IFERROR((VLOOKUP(D97,'Tarifario '!A:O,11,FALSE)),0),IF($F$10="M2: Cau,VdC, Nar, Tol, Hui, Caq, Put, Vau",IFERROR((VLOOKUP(D97,'Tarifario '!A:O,12,FALSE)),0),IF($F$10="M3: Ant, Cal, Qui, Ris, Cho, Cór, Guai",IFERROR((VLOOKUP(D97,'Tarifario '!A:O,13,FALSE)),0),IF($F$10="M4: Atl, Bol, Guaj, Mag, Suc, SAnd",IFERROR((VLOOKUP(D97,'Tarifario '!A:O,14,FALSE)),0),IF($F$10="M5: Cés, Ara, Vic, Ama, NdS, San",IFERROR((VLOOKUP(D97,'Tarifario '!A:O,15,FALSE)),0),0)))))) -> 0 | K97: 0 | L97: SI | M97: 0 | N97: 0
A98: 0 | J98: =+IF($F$10="",0,IF($F$10="M1: SDG, Btá, Cun, Met, Guav, Cas, Boy",IFERROR((VLOOKUP(D98,'Tarifario '!A:O,11,FALSE)),0),IF($F$10="M2: Cau,VdC, Nar, Tol, Hui, Caq, Put, Vau",IFERROR((VLOOKUP(D98,'Tarifario '!A:O,12,FALSE)),0),IF($F$10="M3: Ant, Cal, Qui, Ris, Cho, Cór, Guai",IFERROR((VLOOKUP(D98,'Tarifario '!A:O,13,FALSE)),0),IF($F$10="M4: Atl, Bol, Guaj, Mag, Suc, SAnd",IFERROR((VLOOKUP(D98,'Tarifario '!A:O,14,FALSE)),0),IF($F$10="M5: Cés, Ara, Vic, Ama, NdS, San",IFERROR((VLOOKUP(D98,'Tarifario '!A:O,15,FALSE)),0),0)))))) -> 0 | K98: 0 | L98: SI | M98: 0 | N98: 0
A99: 0 | J99: =+IF($F$10="",0,IF($F$10="M1: SDG, Btá, Cun, Met, Guav, Cas, Boy",IFERROR((VLOOKUP(D99,'Tarifario '!A:O,11,FALSE)),0),IF($F$10="M2: Cau,VdC, Nar, Tol, Hui, Caq, Put, Vau",IFERROR((VLOOKUP(D99,'Tarifario '!A:O,12,FALSE)),0),IF($F$10="M3: Ant, Cal, Qui, Ris, Cho, Cór, Guai",IFERROR((VLOOKUP(D99,'Tarifario '!A:O,13,FALSE)),0),IF($F$10="M4: Atl, Bol, Guaj, Mag, Suc, SAnd",IFERROR((VLOOKUP(D99,'Tarifario '!A:O,14,FALSE)),0),IF($F$10="M5: Cés, Ara, Vic, Ama, NdS, San",IFERROR((VLOOKUP(D99,'Tarifario '!A:O,15,FALSE)),0),0)))))) -> 0 | K99: 0 | L99: SI | M99: 0 | N99: 0
A100: 0 | J100: =+IF($F$10="",0,IF($F$10="M1: SDG, Btá, Cun, Met, Guav, Cas, Boy",IFERROR((VLOOKUP(D100,'Tarifario '!A:O,11,FALSE)),0),IF($F$10="M2: Cau,VdC, Nar, Tol, Hui, Caq, Put, Vau",IFERROR((VLOOKUP(D100,'Tarifario '!A:O,12,FALSE)),0),IF($F$10="M3: Ant, Cal, Qui, Ris, Cho, Cór, Guai",IFERROR((VLOOKUP(D100,'Tarifario '!A:O,13,FALSE)),0),IF($F$10="M4: Atl, Bol, Guaj, Mag, Suc, SAnd",IFERROR((VLOOKUP(D100,'Tarifario '!A:O,14,FALSE)),0),IF($F$10="M5: Cés, Ara, Vic, Ama, NdS, San",IFERROR((VLOOKUP(D100,'Tarifario '!A:O,15,FALSE)),0),0)))))) -> 0 | K100: 0 | L100: SI | M100: 0 | N100: 0
A101: 0 | J101: =+IF($F$10="",0,IF($F$10="M1: SDG, Btá, Cun, Met, Guav, Cas, Boy",IFERROR((VLOOKUP(D101,'Tarifario '!A:O,11,FALSE)),0),IF($F$10="M2: Cau,VdC, Nar, Tol, Hui, Caq, Put, Vau",IFERROR((VLOOKUP(D101,'Tarifario '!A:O,12,FALSE)),0),IF($F$10="M3: Ant, Cal, Qui, Ris, Cho, Cór, Guai",IFERROR((VLOOKUP(D101,'Tarifario '!A:O,13,FALSE)),0),IF($F$10="M4: Atl, Bol, Guaj, Mag, Suc, SAnd",IFERROR((VLOOKUP(D101,'Tarifario '!A:O,14,FALSE)),0),IF($F$10="M5: Cés, Ara, Vic, Ama, NdS, San",IFERROR((VLOOKUP(D101,'Tarifario '!A:O,15,FALSE)),0),0)))))) -> 0 | K101: 0 | L101: SI | M101: 0 | N101: 0
A102: 0 | J102: =+IF($F$10="",0,IF($F$10="M1: SDG, Btá, Cun, Met, Guav, Cas, Boy",IFERROR((VLOOKUP(D102,'Tarifario '!A:O,11,FALSE)),0),IF($F$10="M2: Cau,VdC, Nar, Tol, Hui, Caq, Put, Vau",IFERROR((VLOOKUP(D102,'Tarifario '!A:O,12,FALSE)),0),IF($F$10="M3: Ant, Cal, Qui, Ris, Cho, Cór, Guai",IFERROR((VLOOKUP(D102,'Tarifario '!A:O,13,FALSE)),0),IF($F$10="M4: Atl, Bol, Guaj, Mag, Suc, SAnd",IFERROR((VLOOKUP(D102,'Tarifario '!A:O,14,FALSE)),0),IF($F$10="M5: Cés, Ara, Vic, Ama, NdS, San",IFERROR((VLOOKUP(D102,'Tarifario '!A:O,15,FALSE)),0),0)))))) -> 0 | K102: 0 | L102: SI | M102: 0 | N102: 0
A103: 0 | J103: =+IF($F$10="",0,IF($F$10="M1: SDG, Btá, Cun, Met, Guav, Cas, Boy",IFERROR((VLOOKUP(D103,'Tarifario '!A:O,11,FALSE)),0),IF($F$10="M2: Cau,VdC, Nar, Tol, Hui, Caq, Put, Vau",IFERROR((VLOOKUP(D103,'Tarifario '!A:O,12,FALSE)),0),IF($F$10="M3: Ant, Cal, Qui, Ris, Cho, Cór, Guai",IFERROR((VLOOKUP(D103,'Tarifario '!A:O,13,FALSE)),0),IF($F$10="M4: Atl, Bol, Guaj, Mag, Suc, SAnd",IFERROR((VLOOKUP(D103,'Tarifario '!A:O,14,FALSE)),0),IF($F$10="M5: Cés, Ara, Vic, Ama, NdS, San",IFERROR((VLOOKUP(D103,'Tarifario '!A:O,15,FALSE)),0),0)))))) -> 0 | K103: 0 | L103: SI | M103: 0 | N103: 0
A104: 0 | J104: =+IF($F$10="",0,IF($F$10="M1: SDG, Btá, Cun, Met, Guav, Cas, Boy",IFERROR((VLOOKUP(D104,'Tarifario '!A:O,11,FALSE)),0),IF($F$10="M2: Cau,VdC, Nar, Tol, Hui, Caq, Put, Vau",IFERROR((VLOOKUP(D104,'Tarifario '!A:O,12,FALSE)),0),IF($F$10="M3: Ant, Cal, Qui, Ris, Cho, Cór, Guai",IFERROR((VLOOKUP(D104,'Tarifario '!A:O,13,FALSE)),0),IF($F$10="M4: Atl, Bol, Guaj, Mag, Suc, SAnd",IFERROR((VLOOKUP(D104,'Tarifario '!A:O,14,FALSE)),0),IF($F$10="M5: Cés, Ara, Vic, Ama, NdS, San",IFERROR((VLOOKUP(D104,'Tarifario '!A:O,15,FALSE)),0),0)))))) -> 0 | K104: 0 | L104: SI | M104: 0 | N104: 0
A105: 0 | J105: =+IF($F$10="",0,IF($F$10="M1: SDG, Btá, Cun, Met, Guav, Cas, Boy",IFERROR((VLOOKUP(D105,'Tarifario '!A:O,11,FALSE)),0),IF($F$10="M2: Cau,VdC, Nar, Tol, Hui, Caq, Put, Vau",IFERROR((VLOOKUP(D105,'Tarifario '!A:O,12,FALSE)),0),IF($F$10="M3: Ant, Cal, Qui, Ris, Cho, Cór, Guai",IFERROR((VLOOKUP(D105,'Tarifario '!A:O,13,FALSE)),0),IF($F$10="M4: Atl, Bol, Guaj, Mag, Suc, SAnd",IFERROR((VLOOKUP(D105,'Tarifario '!A:O,14,FALSE)),0),IF($F$10="M5: Cés, Ara, Vic, Ama, NdS, San",IFERROR((VLOOKUP(D105,'Tarifario '!A:O,15,FALSE)),0),0)))))) -> 0 | K105: 0 | L105: SI | M105: 0 | N105: 0
A106: 0 | J106: =+IF($F$10="",0,IF($F$10="M1: SDG, Btá, Cun, Met, Guav, Cas, Boy",IFERROR((VLOOKUP(D106,'Tarifario '!A:O,11,FALSE)),0),IF($F$10="M2: Cau,VdC, Nar, Tol, Hui, Caq, Put, Vau",IFERROR((VLOOKUP(D106,'Tarifario '!A:O,12,FALSE)),0),IF($F$10="M3: Ant, Cal, Qui, Ris, Cho, Cór, Guai",IFERROR((VLOOKUP(D106,'Tarifario '!A:O,13,FALSE)),0),IF($F$10="M4: Atl, Bol, Guaj, Mag, Suc, SAnd",IFERROR((VLOOKUP(D106,'Tarifario '!A:O,14,FALSE)),0),IF($F$10="M5: Cés, Ara, Vic, Ama, NdS, San",IFERROR((VLOOKUP(D106,'Tarifario '!A:O,15,FALSE)),0),0)))))) -> 0 | K106: 0 | L106: SI | M106: 0 | N106: 0
A107: 0 | J107: =+IF($F$10="",0,IF($F$10="M1: SDG, Btá, Cun, Met, Guav, Cas, Boy",IFERROR((VLOOKUP(D107,'Tarifario '!A:O,11,FALSE)),0),IF($F$10="M2: Cau,VdC, Nar, Tol, Hui, Caq, Put, Vau",IFERROR((VLOOKUP(D107,'Tarifario '!A:O,12,FALSE)),0),IF($F$10="M3: Ant, Cal, Qui, Ris, Cho, Cór, Guai",IFERROR((VLOOKUP(D107,'Tarifario '!A:O,13,FALSE)),0),IF($F$10="M4: Atl, Bol, Guaj, Mag, Suc, SAnd",IFERROR((VLOOKUP(D107,'Tarifario '!A:O,14,FALSE)),0),IF($F$10="M5: Cés, Ara, Vic, Ama, NdS, San",IFERROR((VLOOKUP(D107,'Tarifario '!A:O,15,FALSE)),0),0)))))) -> 0 | K107: 0 | L107: SI | M107: 0 | N107: 0
A108: 0 | J108: =+IF($F$10="",0,IF($F$10="M1: SDG, Btá, Cun, Met, Guav, Cas, Boy",IFERROR((VLOOKUP(D108,'Tarifario '!A:O,11,FALSE)),0),IF($F$10="M2: Cau,VdC, Nar, Tol, Hui, Caq, Put, Vau",IFERROR((VLOOKUP(D108,'Tarifario '!A:O,12,FALSE)),0),IF($F$10="M3: Ant, Cal, Qui, Ris, Cho, Cór, Guai",IFERROR((VLOOKUP(D108,'Tarifario '!A:O,13,FALSE)),0),IF($F$10="M4: Atl, Bol, Guaj, Mag, Suc, SAnd",IFERROR((VLOOKUP(D108,'Tarifario '!A:O,14,FALSE)),0),IF($F$10="M5: Cés, Ara, Vic, Ama, NdS, San",IFERROR((VLOOKUP(D108,'Tarifario '!A:O,15,FALSE)),0),0)))))) -> 0 | K108: 0 | L108: SI | M108: 0 | N108: 0
A109: 0 | J109: =+IF($F$10="",0,IF($F$10="M1: SDG, Btá, Cun, Met, Guav, Cas, Boy",IFERROR((VLOOKUP(D109,'Tarifario '!A:O,11,FALSE)),0),IF($F$10="M2: Cau,VdC, Nar, Tol, Hui, Caq, Put, Vau",IFERROR((VLOOKUP(D109,'Tarifario '!A:O,12,FALSE)),0),IF($F$10="M3: Ant, Cal, Qui, Ris, Cho, Cór, Guai",IFERROR((VLOOKUP(D109,'Tarifario '!A:O,13,FALSE)),0),IF($F$10="M4: Atl, Bol, Guaj, Mag, Suc, SAnd",IFERROR((VLOOKUP(D109,'Tarifario '!A:O,14,FALSE)),0),IF($F$10="M5: Cés, Ara, Vic, Ama, NdS, San",IFERROR((VLOOKUP(D109,'Tarifario '!A:O,15,FALSE)),0),0)))))) -> 0 | K109: 0 | L109: SI | M109: 0 | N109: 0
A110: 0 | J110: =+IF($F$10="",0,IF($F$10="M1: SDG, Btá, Cun, Met, Guav, Cas, Boy",IFERROR((VLOOKUP(D110,'Tarifario '!A:O,11,FALSE)),0),IF($F$10="M2: Cau,VdC, Nar, Tol, Hui, Caq, Put, Vau",IFERROR((VLOOKUP(D110,'Tarifario '!A:O,12,FALSE)),0),IF($F$10="M3: Ant, Cal, Qui, Ris, Cho, Cór, Guai",IFERROR((VLOOKUP(D110,'Tarifario '!A:O,13,FALSE)),0),IF($F$10="M4: Atl, Bol, Guaj, Mag, Suc, SAnd",IFERROR((VLOOKUP(D110,'Tarifario '!A:O,14,FALSE)),0),IF($F$10="M5: Cés, Ara, Vic, Ama, NdS, San",IFERROR((VLOOKUP(D110,'Tarifario '!A:O,15,FALSE)),0),0)))))) -> 0 | K110: 0 | L110: SI | M110: 0 | N110: 0
A111: 0 | J111: =+IF($F$10="",0,IF($F$10="M1: SDG, Btá, Cun, Met, Guav, Cas, Boy",IFERROR((VLOOKUP(D111,'Tarifario '!A:O,11,FALSE)),0),IF($F$10="M2: Cau,VdC, Nar, Tol, Hui, Caq, Put, Vau",IFERROR((VLOOKUP(D111,'Tarifario '!A:O,12,FALSE)),0),IF($F$10="M3: Ant, Cal, Qui, Ris, Cho, Cór, Guai",IFERROR((VLOOKUP(D111,'Tarifario '!A:O,13,FALSE)),0),IF($F$10="M4: Atl, Bol, Guaj, Mag, Suc, SAnd",IFERROR((VLOOKUP(D111,'Tarifario '!A:O,14,FALSE)),0),IF($F$10="M5: Cés, Ara, Vic, Ama, NdS, San",IFERROR((VLOOKUP(D111,'Tarifario '!A:O,15,FALSE)),0),0)))))) -> 0 | K111: 0 | L111: SI | M111: 0 | N111: 0
A112: 0 | J112: =+IF($F$10="",0,IF($F$10="M1: SDG, Btá, Cun, Met, Guav, Cas, Boy",IFERROR((VLOOKUP(D112,'Tarifario '!A:O,11,FALSE)),0),IF($F$10="M2: Cau,VdC, Nar, Tol, Hui, Caq, Put, Vau",IFERROR((VLOOKUP(D112,'Tarifario '!A:O,12,FALSE)),0),IF($F$10="M3: Ant, Cal, Qui, Ris, Cho, Cór, Guai",IFERROR((VLOOKUP(D112,'Tarifario '!A:O,13,FALSE)),0),IF($F$10="M4: Atl, Bol, Guaj, Mag, Suc, SAnd",IFERROR((VLOOKUP(D112,'Tarifario '!A:O,14,FALSE)),0),IF($F$10="M5: Cés, Ara, Vic, Ama, NdS, San",IFERROR((VLOOKUP(D112,'Tarifario '!A:O,15,FALSE)),0),0)))))) -> 0 | K112: 0 | L112: SI | M112: 0 | N112: 0
A113: 0 | J113: =+IF($F$10="",0,IF($F$10="M1: SDG, Btá, Cun, Met, Guav, Cas, Boy",IFERROR((VLOOKUP(D113,'Tarifario '!A:O,11,FALSE)),0),IF($F$10="M2: Cau,VdC, Nar, Tol, Hui, Caq, Put, Vau",IFERROR((VLOOKUP(D113,'Tarifario '!A:O,12,FALSE)),0),IF($F$10="M3: Ant, Cal, Qui, Ris, Cho, Cór, Guai",IFERROR((VLOOKUP(D113,'Tarifario '!A:O,13,FALSE)),0),IF($F$10="M4: Atl, Bol, Guaj, Mag, Suc, SAnd",IFERROR((VLOOKUP(D113,'Tarifario '!A:O,14,FALSE)),0),IF($F$10="M5: Cés, Ara, Vic, Ama, NdS, San",IFERROR((VLOOKUP(D113,'Tarifario '!A:O,15,FALSE)),0),0)))))) -> 0 | K113: 0 | L113: SI | M113: 0 | N113: 0
A114: 0 | J114: =+IF($F$10="",0,IF($F$10="M1: SDG, Btá, Cun, Met, Guav, Cas, Boy",IFERROR((VLOOKUP(D114,'Tarifario '!A:O,11,FALSE)),0),IF($F$10="M2: Cau,VdC, Nar, Tol, Hui, Caq, Put, Vau",IFERROR((VLOOKUP(D114,'Tarifario '!A:O,12,FALSE)),0),IF($F$10="M3: Ant, Cal, Qui, Ris, Cho, Cór, Guai",IFERROR((VLOOKUP(D114,'Tarifario '!A:O,13,FALSE)),0),IF($F$10="M4: Atl, Bol, Guaj, Mag, Suc, SAnd",IFERROR((VLOOKUP(D114,'Tarifario '!A:O,14,FALSE)),0),IF($F$10="M5: Cés, Ara, Vic, Ama, NdS, San",IFERROR((VLOOKUP(D114,'Tarifario '!A:O,15,FALSE)),0),0)))))) -> 0 | K114: 0 | L114: SI | M114: 0 | N114: 0
A115: 0 | J115: =+IF($F$10="",0,IF($F$10="M1: SDG, Btá, Cun, Met, Guav, Cas, Boy",IFERROR((VLOOKUP(D115,'Tarifario '!A:O,11,FALSE)),0),IF($F$10="M2: Cau,VdC, Nar, Tol, Hui, Caq, Put, Vau",IFERROR((VLOOKUP(D115,'Tarifario '!A:O,12,FALSE)),0),IF($F$10="M3: Ant, Cal, Qui, Ris, Cho, Cór, Guai",IFERROR((VLOOKUP(D115,'Tarifario '!A:O,13,FALSE)),0),IF($F$10="M4: Atl, Bol, Guaj, Mag, Suc, SAnd",IFERROR((VLOOKUP(D115,'Tarifario '!A:O,14,FALSE)),0),IF($F$10="M5: Cés, Ara, Vic, Ama, NdS, San",IFERROR((VLOOKUP(D115,'Tarifario '!A:O,15,FALSE)),0),0)))))) -> 0 | K115: 0 | L115: SI | M115: 0 | N115: 0
A116: 0 | J116: =+IF($F$10="",0,IF($F$10="M1: SDG, Btá, Cun, Met, Guav, Cas, Boy",IFERROR((VLOOKUP(D116,'Tarifario '!A:O,11,FALSE)),0),IF($F$10="M2: Cau,VdC, Nar, Tol, Hui, Caq, Put, Vau",IFERROR((VLOOKUP(D116,'Tarifario '!A:O,12,FALSE)),0),IF($F$10="M3: Ant, Cal, Qui, Ris, Cho, Cór, Guai",IFERROR((VLOOKUP(D116,'Tarifario '!A:O,13,FALSE)),0),IF($F$10="M4: Atl, Bol, Guaj, Mag, Suc, SAnd",IFERROR((VLOOKUP(D116,'Tarifario '!A:O,14,FALSE)),0),IF($F$10="M5: Cés, Ara, Vic, Ama, NdS, San",IFERROR((VLOOKUP(D116,'Tarifario '!A:O,15,FALSE)),0),0)))))) -> 0 | K116: 0 | L116: SI | M116: 0 | N116: 0
A117: 0 | J117: =+IF($F$10="",0,IF($F$10="M1: SDG, Btá, Cun, Met, Guav, Cas, Boy",IFERROR((VLOOKUP(D117,'Tarifario '!A:O,11,FALSE)),0),IF($F$10="M2: Cau,VdC, Nar, Tol, Hui, Caq, Put, Vau",IFERROR((VLOOKUP(D117,'Tarifario '!A:O,12,FALSE)),0),IF($F$10="M3: Ant, Cal, Qui, Ris, Cho, Cór, Guai",IFERROR((VLOOKUP(D117,'Tarifario '!A:O,13,FALSE)),0),IF($F$10="M4: Atl, Bol, Guaj, Mag, Suc, SAnd",IFERROR((VLOOKUP(D117,'Tarifario '!A:O,14,FALSE)),0),IF($F$10="M5: Cés, Ara, Vic, Ama, NdS, San",IFERROR((VLOOKUP(D117,'Tarifario '!A:O,15,FALSE)),0),0)))))) -> 0 | K117: 0 | L117: SI | M117: 0 | N117: 0
A118: 0 | J118: =+IF($F$10="",0,IF($F$10="M1: SDG, Btá, Cun, Met, Guav, Cas, Boy",IFERROR((VLOOKUP(D118,'Tarifario '!A:O,11,FALSE)),0),IF($F$10="M2: Cau,VdC, Nar, Tol, Hui, Caq, Put, Vau",IFERROR((VLOOKUP(D118,'Tarifario '!A:O,12,FALSE)),0),IF($F$10="M3: Ant, Cal, Qui, Ris, Cho, Cór, Guai",IFERROR((VLOOKUP(D118,'Tarifario '!A:O,13,FALSE)),0),IF($F$10="M4: Atl, Bol, Guaj, Mag, Suc, SAnd",IFERROR((VLOOKUP(D118,'Tarifario '!A:O,14,FALSE)),0),IF($F$10="M5: Cés, Ara, Vic, Ama, NdS, San",IFERROR((VLOOKUP(D118,'Tarifario '!A:O,15,FALSE)),0),0)))))) -> 0 | K118: 0 | L118: SI | M118: 0 | N118: 0
A119: 0 | J119: =+IF($F$10="",0,IF($F$10="M1: SDG, Btá, Cun, Met, Guav, Cas, Boy",IFERROR((VLOOKUP(D119,'Tarifario '!A:O,11,FALSE)),0),IF($F$10="M2: Cau,VdC, Nar, Tol, Hui, Caq, Put, Vau",IFERROR((VLOOKUP(D119,'Tarifario '!A:O,12,FALSE)),0),IF($F$10="M3: Ant, Cal, Qui, Ris, Cho, Cór, Guai",IFERROR((VLOOKUP(D119,'Tarifario '!A:O,13,FALSE)),0),IF($F$10="M4: Atl, Bol, Guaj, Mag, Suc, SAnd",IFERROR((VLOOKUP(D119,'Tarifario '!A:O,14,FALSE)),0),IF($F$10="M5: Cés, Ara, Vic, Ama, NdS, San",IFERROR((VLOOKUP(D119,'Tarifario '!A:O,15,FALSE)),0),0)))))) -> 0 | K119: 0 | L119: SI | M119: 0 | N119: 0
A120: 0 | J120: =+IF($F$10="",0,IF($F$10="M1: SDG, Btá, Cun, Met, Guav, Cas, Boy",IFERROR((VLOOKUP(D120,'Tarifario '!A:O,11,FALSE)),0),IF($F$10="M2: Cau,VdC, Nar, Tol, Hui, Caq, Put, Vau",IFERROR((VLOOKUP(D120,'Tarifario '!A:O,12,FALSE)),0),IF($F$10="M3: Ant, Cal, Qui, Ris, Cho, Cór, Guai",IFERROR((VLOOKUP(D120,'Tarifario '!A:O,13,FALSE)),0),IF($F$10="M4: Atl, Bol, Guaj, Mag, Suc, SAnd",IFERROR((VLOOKUP(D120,'Tarifario '!A:O,14,FALSE)),0),IF($F$10="M5: Cés, Ara, Vic, Ama, NdS, San",IFERROR((VLOOKUP(D120,'Tarifario '!A:O,15,FALSE)),0),0)))))) -> 0 | K120: 0 | L120: SI | M120: 0 | N120: 0
A121: 0 | J121: =+IF($F$10="",0,IF($F$10="M1: SDG, Btá, Cun, Met, Guav, Cas, Boy",IFERROR((VLOOKUP(D121,'Tarifario '!A:O,11,FALSE)),0),IF($F$10="M2: Cau,VdC, Nar, Tol, Hui, Caq, Put, Vau",IFERROR((VLOOKUP(D121,'Tarifario '!A:O,12,FALSE)),0),IF($F$10="M3: Ant, Cal, Qui, Ris, Cho, Cór, Guai",IFERROR((VLOOKUP(D121,'Tarifario '!A:O,13,FALSE)),0),IF($F$10="M4: Atl, Bol, Guaj, Mag, Suc, SAnd",IFERROR((VLOOKUP(D121,'Tarifario '!A:O,14,FALSE)),0),IF($F$10="M5: Cés, Ara, Vic, Ama, NdS, San",IFERROR((VLOOKUP(D121,'Tarifario '!A:O,15,FALSE)),0),0)))))) -> 0 | K121: 0 | L121: SI | M121: 0 | N121: 0
A122: 0 | J122: =+IF($F$10="",0,IF($F$10="M1: SDG, Btá, Cun, Met, Guav, Cas, Boy",IFERROR((VLOOKUP(D122,'Tarifario '!A:O,11,FALSE)),0),IF($F$10="M2: Cau,VdC, Nar, Tol, Hui, Caq, Put, Vau",IFERROR((VLOOKUP(D122,'Tarifario '!A:O,12,FALSE)),0),IF($F$10="M3: Ant, Cal, Qui, Ris, Cho, Cór, Guai",IFERROR((VLOOKUP(D122,'Tarifario '!A:O,13,FALSE)),0),IF($F$10="M4: Atl, Bol, Guaj, Mag, Suc, SAnd",IFERROR((VLOOKUP(D122,'Tarifario '!A:O,14,FALSE)),0),IF($F$10="M5: Cés, Ara, Vic, Ama, NdS, San",IFERROR((VLOOKUP(D122,'Tarifario '!A:O,15,FALSE)),0),0)))))) -> 0 | K122: 0 | L122: SI | M122: 0 | N122: 0
A123: 0 | J123: =+IF($F$10="",0,IF($F$10="M1: SDG, Btá, Cun, Met, Guav, Cas, Boy",IFERROR((VLOOKUP(D123,'Tarifario '!A:O,11,FALSE)),0),IF($F$10="M2: Cau,VdC, Nar, Tol, Hui, Caq, Put, Vau",IFERROR((VLOOKUP(D123,'Tarifario '!A:O,12,FALSE)),0),IF($F$10="M3: Ant, Cal, Qui, Ris, Cho, Cór, Guai",IFERROR((VLOOKUP(D123,'Tarifario '!A:O,13,FALSE)),0),IF($F$10="M4: Atl, Bol, Guaj, Mag, Suc, SAnd",IFERROR((VLOOKUP(D123,'Tarifario '!A:O,14,FALSE)),0),IF($F$10="M5: Cés, Ara, Vic, Ama, NdS, San",IFERROR((VLOOKUP(D123,'Tarifario '!A:O,15,FALSE)),0),0)))))) -> 0 | K123: 0 | L123: SI | M123: 0 | N123: 0
A124: 0 | J124: =+IF($F$10="",0,IF($F$10="M1: SDG, Btá, Cun, Met, Guav, Cas, Boy",IFERROR((VLOOKUP(D124,'Tarifario '!A:O,11,FALSE)),0),IF($F$10="M2: Cau,VdC, Nar, Tol, Hui, Caq, Put, Vau",IFERROR((VLOOKUP(D124,'Tarifario '!A:O,12,FALSE)),0),IF($F$10="M3: Ant, Cal, Qui, Ris, Cho, Cór, Guai",IFERROR((VLOOKUP(D124,'Tarifario '!A:O,13,FALSE)),0),IF($F$10="M4: Atl, Bol, Guaj, Mag, Suc, SAnd",IFERROR((VLOOKUP(D124,'Tarifario '!A:O,14,FALSE)),0),IF($F$10="M5: Cés, Ara, Vic, Ama, NdS, San",IFERROR((VLOOKUP(D124,'Tarifario '!A:O,15,FALSE)),0),0)))))) -> 0 | K124: 0 | L124: SI | M124: 0 | N124: 0
A125: 0 | J125: =+IF($F$10="",0,IF($F$10="M1: SDG, Btá, Cun, Met, Guav, Cas, Boy",IFERROR((VLOOKUP(D125,'Tarifario '!A:O,11,FALSE)),0),IF($F$10="M2: Cau,VdC, Nar, Tol, Hui, Caq, Put, Vau",IFERROR((VLOOKUP(D125,'Tarifario '!A:O,12,FALSE)),0),IF($F$10="M3: Ant, Cal, Qui, Ris, Cho, Cór, Guai",IFERROR((VLOOKUP(D125,'Tarifario '!A:O,13,FALSE)),0),IF($F$10="M4: Atl, Bol, Guaj, Mag, Suc, SAnd",IFERROR((VLOOKUP(D125,'Tarifario '!A:O,14,FALSE)),0),IF($F$10="M5: Cés, Ara, Vic, Ama, NdS, San",IFERROR((VLOOKUP(D125,'Tarifario '!A:O,15,FALSE)),0),0)))))) -> 0 | K125: 0 | L125: SI | M125: 0 | N125: 0
A126: 0 | J126: =+IF($F$10="",0,IF($F$10="M1: SDG, Btá, Cun, Met, Guav, Cas, Boy",IFERROR((VLOOKUP(D126,'Tarifario '!A:O,11,FALSE)),0),IF($F$10="M2: Cau,VdC, Nar, Tol, Hui, Caq, Put, Vau",IFERROR((VLOOKUP(D126,'Tarifario '!A:O,12,FALSE)),0),IF($F$10="M3: Ant, Cal, Qui, Ris, Cho, Cór, Guai",IFERROR((VLOOKUP(D126,'Tarifario '!A:O,13,FALSE)),0),IF($F$10="M4: Atl, Bol, Guaj, Mag, Suc, SAnd",IFERROR((VLOOKUP(D126,'Tarifario '!A:O,14,FALSE)),0),IF($F$10="M5: Cés, Ara, Vic, Ama, NdS, San",IFERROR((VLOOKUP(D126,'Tarifario '!A:O,15,FALSE)),0),0)))))) -> 0 | K126: 0 | L126: SI | M126: 0 | N126: 0
A127: 0 | J127: =+IF($F$10="",0,IF($F$10="M1: SDG, Btá, Cun, Met, Guav, Cas, Boy",IFERROR((VLOOKUP(D127,'Tarifario '!A:O,11,FALSE)),0),IF($F$10="M2: Cau,VdC, Nar, Tol, Hui, Caq, Put, Vau",IFERROR((VLOOKUP(D127,'Tarifario '!A:O,12,FALSE)),0),IF($F$10="M3: Ant, Cal, Qui, Ris, Cho, Cór, Guai",IFERROR((VLOOKUP(D127,'Tarifario '!A:O,13,FALSE)),0),IF($F$10="M4: Atl, Bol, Guaj, Mag, Suc, SAnd",IFERROR((VLOOKUP(D127,'Tarifario '!A:O,14,FALSE)),0),IF($F$10="M5: Cés, Ara, Vic, Ama, NdS, San",IFERROR((VLOOKUP(D127,'Tarifario '!A:O,15,FALSE)),0),0)))))) -> 0 | K127: 0 | L127: SI | M127: 0 | N127: 0
A128: 0 | J128: =+IF($F$10="",0,IF($F$10="M1: SDG, Btá, Cun, Met, Guav, Cas, Boy",IFERROR((VLOOKUP(D128,'Tarifario '!A:O,11,FALSE)),0),IF($F$10="M2: Cau,VdC, Nar, Tol, Hui, Caq, Put, Vau",IFERROR((VLOOKUP(D128,'Tarifario '!A:O,12,FALSE)),0),IF($F$10="M3: Ant, Cal, Qui, Ris, Cho, Cór, Guai",IFERROR((VLOOKUP(D128,'Tarifario '!A:O,13,FALSE)),0),IF($F$10="M4: Atl, Bol, Guaj, Mag, Suc, SAnd",IFERROR((VLOOKUP(D128,'Tarifario '!A:O,14,FALSE)),0),IF($F$10="M5: Cés, Ara, Vic, Ama, NdS, San",IFERROR((VLOOKUP(D128,'Tarifario '!A:O,15,FALSE)),0),0)))))) -> 0 | K128: 0 | L128: SI | M128: 0 | N128: 0
A129: 0 | J129: =+IF($F$10="",0,IF($F$10="M1: SDG, Btá, Cun, Met, Guav, Cas, Boy",IFERROR((VLOOKUP(D129,'Tarifario '!A:O,11,FALSE)),0),IF($F$10="M2: Cau,VdC, Nar, Tol, Hui, Caq, Put, Vau",IFERROR((VLOOKUP(D129,'Tarifario '!A:O,12,FALSE)),0),IF($F$10="M3: Ant, Cal, Qui, Ris, Cho, Cór, Guai",IFERROR((VLOOKUP(D129,'Tarifario '!A:O,13,FALSE)),0),IF($F$10="M4: Atl, Bol, Guaj, Mag, Suc, SAnd",IFERROR((VLOOKUP(D129,'Tarifario '!A:O,14,FALSE)),0),IF($F$10="M5: Cés, Ara, Vic, Ama, NdS, San",IFERROR((VLOOKUP(D129,'Tarifario '!A:O,15,FALSE)),0),0)))))) -> 0 | K129: 0 | L129: SI | M129: 0 | N129: 0
A130: 0 | J130: =+IF($F$10="",0,IF($F$10="M1: SDG, Btá, Cun, Met, Guav, Cas, Boy",IFERROR((VLOOKUP(D130,'Tarifario '!A:O,11,FALSE)),0),IF($F$10="M2: Cau,VdC, Nar, Tol, Hui, Caq, Put, Vau",IFERROR((VLOOKUP(D130,'Tarifario '!A:O,12,FALSE)),0),IF($F$10="M3: Ant, Cal, Qui, Ris, Cho, Cór, Guai",IFERROR((VLOOKUP(D130,'Tarifario '!A:O,13,FALSE)),0),IF($F$10="M4: Atl, Bol, Guaj, Mag, Suc, SAnd",IFERROR((VLOOKUP(D130,'Tarifario '!A:O,14,FALSE)),0),IF($F$10="M5: Cés, Ara, Vic, Ama, NdS, San",IFERROR((VLOOKUP(D130,'Tarifario '!A:O,15,FALSE)),0),0)))))) -> 0 | K130: 0 | L130: SI | M130: 0 | N130: 0
A131: 0 | J131: =+IF($F$10="",0,IF($F$10="M1: SDG, Btá, Cun, Met, Guav, Cas, Boy",IFERROR((VLOOKUP(D131,'Tarifario '!A:O,11,FALSE)),0),IF($F$10="M2: Cau,VdC, Nar, Tol, Hui, Caq, Put, Vau",IFERROR((VLOOKUP(D131,'Tarifario '!A:O,12,FALSE)),0),IF($F$10="M3: Ant, Cal, Qui, Ris, Cho, Cór, Guai",IFERROR((VLOOKUP(D131,'Tarifario '!A:O,13,FALSE)),0),IF($F$10="M4: Atl, Bol, Guaj, Mag, Suc, SAnd",IFERROR((VLOOKUP(D131,'Tarifario '!A:O,14,FALSE)),0),IF($F$10="M5: Cés, Ara, Vic, Ama, NdS, San",IFERROR((VLOOKUP(D131,'Tarifario '!A:O,15,FALSE)),0),0)))))) -> 0 | K131: 0 | L131: SI | M131: 0 | N131: 0
A132: 0 | J132: =+IF($F$10="",0,IF($F$10="M1: SDG, Btá, Cun, Met, Guav, Cas, Boy",IFERROR((VLOOKUP(D132,'Tarifario '!A:O,11,FALSE)),0),IF($F$10="M2: Cau,VdC, Nar, Tol, Hui, Caq, Put, Vau",IFERROR((VLOOKUP(D132,'Tarifario '!A:O,12,FALSE)),0),IF($F$10="M3: Ant, Cal, Qui, Ris, Cho, Cór, Guai",IFERROR((VLOOKUP(D132,'Tarifario '!A:O,13,FALSE)),0),IF($F$10="M4: Atl, Bol, Guaj, Mag, Suc, SAnd",IFERROR((VLOOKUP(D132,'Tarifario '!A:O,14,FALSE)),0),IF($F$10="M5: Cés, Ara, Vic, Ama, NdS, San",IFERROR((VLOOKUP(D132,'Tarifario '!A:O,15,FALSE)),0),0)))))) -> 0 | K132: 0 | L132: SI | M132: 0 | N132: 0
A133: 0 | J133: =+IF($F$10="",0,IF($F$10="M1: SDG, Btá, Cun, Met, Guav, Cas, Boy",IFERROR((VLOOKUP(D133,'Tarifario '!A:O,11,FALSE)),0),IF($F$10="M2: Cau,VdC, Nar, Tol, Hui, Caq, Put, Vau",IFERROR((VLOOKUP(D133,'Tarifario '!A:O,12,FALSE)),0),IF($F$10="M3: Ant, Cal, Qui, Ris, Cho, Cór, Guai",IFERROR((VLOOKUP(D133,'Tarifario '!A:O,13,FALSE)),0),IF($F$10="M4: Atl, Bol, Guaj, Mag, Suc, SAnd",IFERROR((VLOOKUP(D133,'Tarifario '!A:O,14,FALSE)),0),IF($F$10="M5: Cés, Ara, Vic, Ama, NdS, San",IFERROR((VLOOKUP(D133,'Tarifario '!A:O,15,FALSE)),0),0)))))) -> 0 | K133: 0 | L133: SI | M133: 0 | N133: 0
A134: 0 | J134: =+IF($F$10="",0,IF($F$10="M1: SDG, Btá, Cun, Met, Guav, Cas, Boy",IFERROR((VLOOKUP(D134,'Tarifario '!A:O,11,FALSE)),0),IF($F$10="M2: Cau,VdC, Nar, Tol, Hui, Caq, Put, Vau",IFERROR((VLOOKUP(D134,'Tarifario '!A:O,12,FALSE)),0),IF($F$10="M3: Ant, Cal, Qui, Ris, Cho, Cór, Guai",IFERROR((VLOOKUP(D134,'Tarifario '!A:O,13,FALSE)),0),IF($F$10="M4: Atl, Bol, Guaj, Mag, Suc, SAnd",IFERROR((VLOOKUP(D134,'Tarifario '!A:O,14,FALSE)),0),IF($F$10="M5: Cés, Ara, Vic, Ama, NdS, San",IFERROR((VLOOKUP(D134,'Tarifario '!A:O,15,FALSE)),0),0)))))) -> 0 | K134: 0 | L134: SI | M134: 0 | N134: 0
A135: 0 | J135: =+IF($F$10="",0,IF($F$10="M1: SDG, Btá, Cun, Met, Guav, Cas, Boy",IFERROR((VLOOKUP(D135,'Tarifario '!A:O,11,FALSE)),0),IF($F$10="M2: Cau,VdC, Nar, Tol, Hui, Caq, Put, Vau",IFERROR((VLOOKUP(D135,'Tarifario '!A:O,12,FALSE)),0),IF($F$10="M3: Ant, Cal, Qui, Ris, Cho, Cór, Guai",IFERROR((VLOOKUP(D135,'Tarifario '!A:O,13,FALSE)),0),IF($F$10="M4: Atl, Bol, Guaj, Mag, Suc, SAnd",IFERROR((VLOOKUP(D135,'Tarifario '!A:O,14,FALSE)),0),IF($F$10="M5: Cés, Ara, Vic, Ama, NdS, San",IFERROR((VLOOKUP(D135,'Tarifario '!A:O,15,FALSE)),0),0)))))) -> 0 | K135: 0 | L135: SI | M135: 0 | N135: 0
A136: 0 | J136: =+IF($F$10="",0,IF($F$10="M1: SDG, Btá, Cun, Met, Guav, Cas, Boy",IFERROR((VLOOKUP(D136,'Tarifario '!A:O,11,FALSE)),0),IF($F$10="M2: Cau,VdC, Nar, Tol, Hui, Caq, Put, Vau",IFERROR((VLOOKUP(D136,'Tarifario '!A:O,12,FALSE)),0),IF($F$10="M3: Ant, Cal, Qui, Ris, Cho, Cór, Guai",IFERROR((VLOOKUP(D136,'Tarifario '!A:O,13,FALSE)),0),IF($F$10="M4: Atl, Bol, Guaj, Mag, Suc, SAnd",IFERROR((VLOOKUP(D136,'Tarifario '!A:O,14,FALSE)),0),IF($F$10="M5: Cés, Ara, Vic, Ama, NdS, San",IFERROR((VLOOKUP(D136,'Tarifario '!A:O,15,FALSE)),0),0)))))) -> 0 | K136: 0 | L136: SI | M136: 0 | N136: 0
A137: 0 | J137: =+IF($F$10="",0,IF($F$10="M1: SDG, Btá, Cun, Met, Guav, Cas, Boy",IFERROR((VLOOKUP(D137,'Tarifario '!A:O,11,FALSE)),0),IF($F$10="M2: Cau,VdC, Nar, Tol, Hui, Caq, Put, Vau",IFERROR((VLOOKUP(D137,'Tarifario '!A:O,12,FALSE)),0),IF($F$10="M3: Ant, Cal, Qui, Ris, Cho, Cór, Guai",IFERROR((VLOOKUP(D137,'Tarifario '!A:O,13,FALSE)),0),IF($F$10="M4: Atl, Bol, Guaj, Mag, Suc, SAnd",IFERROR((VLOOKUP(D137,'Tarifario '!A:O,14,FALSE)),0),IF($F$10="M5: Cés, Ara, Vic, Ama, NdS, San",IFERROR((VLOOKUP(D137,'Tarifario '!A:O,15,FALSE)),0),0)))))) -> 0 | K137: 0 | L137: SI | M137: 0 | N137: 0
A138: 0 | J138: =+IF($F$10="",0,IF($F$10="M1: SDG, Btá, Cun, Met, Guav, Cas, Boy",IFERROR((VLOOKUP(D138,'Tarifario '!A:O,11,FALSE)),0),IF($F$10="M2: Cau,VdC, Nar, Tol, Hui, Caq, Put, Vau",IFERROR((VLOOKUP(D138,'Tarifario '!A:O,12,FALSE)),0),IF($F$10="M3: Ant, Cal, Qui, Ris, Cho, Cór, Guai",IFERROR((VLOOKUP(D138,'Tarifario '!A:O,13,FALSE)),0),IF($F$10="M4: Atl, Bol, Guaj, Mag, Suc, SAnd",IFERROR((VLOOKUP(D138,'Tarifario '!A:O,14,FALSE)),0),IF($F$10="M5: Cés, Ara, Vic, Ama, NdS, San",IFERROR((VLOOKUP(D138,'Tarifario '!A:O,15,FALSE)),0),0)))))) -> 0 | K138: 0 | L138: SI | M138: 0 | N138: 0
A139: 0 | J139: =+IF($F$10="",0,IF($F$10="M1: SDG, Btá, Cun, Met, Guav, Cas, Boy",IFERROR((VLOOKUP(D139,'Tarifario '!A:O,11,FALSE)),0),IF($F$10="M2: Cau,VdC, Nar, Tol, Hui, Caq, Put, Vau",IFERROR((VLOOKUP(D139,'Tarifario '!A:O,12,FALSE)),0),IF($F$10="M3: Ant, Cal, Qui, Ris, Cho, Cór, Guai",IFERROR((VLOOKUP(D139,'Tarifario '!A:O,13,FALSE)),0),IF($F$10="M4: Atl, Bol, Guaj, Mag, Suc, SAnd",IFERROR((VLOOKUP(D139,'Tarifario '!A:O,14,FALSE)),0),IF($F$10="M5: Cés, Ara, Vic, Ama, NdS, San",IFERROR((VLOOKUP(D139,'Tarifario '!A:O,15,FALSE)),0),0)))))) -> 0 | K139: 0 | L139: SI | M139: 0 | N139: 0
A140: 0 | J140: =+IF($F$10="",0,IF($F$10="M1: SDG, Btá, Cun, Met, Guav, Cas, Boy",IFERROR((VLOOKUP(D140,'Tarifario '!A:O,11,FALSE)),0),IF($F$10="M2: Cau,VdC, Nar, Tol, Hui, Caq, Put, Vau",IFERROR((VLOOKUP(D140,'Tarifario '!A:O,12,FALSE)),0),IF($F$10="M3: Ant, Cal, Qui, Ris, Cho, Cór, Guai",IFERROR((VLOOKUP(D140,'Tarifario '!A:O,13,FALSE)),0),IF($F$10="M4: Atl, Bol, Guaj, Mag, Suc, SAnd",IFERROR((VLOOKUP(D140,'Tarifario '!A:O,14,FALSE)),0),IF($F$10="M5: Cés, Ara, Vic, Ama, NdS, San",IFERROR((VLOOKUP(D140,'Tarifario '!A:O,15,FALSE)),0),0)))))) -> 0 | K140: 0 | L140: SI | M140: 0 | N140: 0
A141: 0 | J141: =+IF($F$10="",0,IF($F$10="M1: SDG, Btá, Cun, Met, Guav, Cas, Boy",IFERROR((VLOOKUP(D141,'Tarifario '!A:O,11,FALSE)),0),IF($F$10="M2: Cau,VdC, Nar, Tol, Hui, Caq, Put, Vau",IFERROR((VLOOKUP(D141,'Tarifario '!A:O,12,FALSE)),0),IF($F$10="M3: Ant, Cal, Qui, Ris, Cho, Cór, Guai",IFERROR((VLOOKUP(D141,'Tarifario '!A:O,13,FALSE)),0),IF($F$10="M4: Atl, Bol, Guaj, Mag, Suc, SAnd",IFERROR((VLOOKUP(D141,'Tarifario '!A:O,14,FALSE)),0),IF($F$10="M5: Cés, Ara, Vic, Ama, NdS, San",IFERROR((VLOOKUP(D141,'Tarifario '!A:O,15,FALSE)),0),0)))))) -> 0 | K141: 0 | L141: SI | M141: 0 | N141: 0
A142: 0 | J142: =+IF($F$10="",0,IF($F$10="M1: SDG, Btá, Cun, Met, Guav, Cas, Boy",IFERROR((VLOOKUP(D142,'Tarifario '!A:O,11,FALSE)),0),IF($F$10="M2: Cau,VdC, Nar, Tol, Hui, Caq, Put, Vau",IFERROR((VLOOKUP(D142,'Tarifario '!A:O,12,FALSE)),0),IF($F$10="M3: Ant, Cal, Qui, Ris, Cho, Cór, Guai",IFERROR((VLOOKUP(D142,'Tarifario '!A:O,13,FALSE)),0),IF($F$10="M4: Atl, Bol, Guaj, Mag, Suc, SAnd",IFERROR((VLOOKUP(D142,'Tarifario '!A:O,14,FALSE)),0),IF($F$10="M5: Cés, Ara, Vic, Ama, NdS, San",IFERROR((VLOOKUP(D142,'Tarifario '!A:O,15,FALSE)),0),0)))))) -> 0 | K142: 0 | L142: SI | M142: 0 | N142: 0
A143: 0 | J143: =+IF($F$10="",0,IF($F$10="M1: SDG, Btá, Cun, Met, Guav, Cas, Boy",IFERROR((VLOOKUP(D143,'Tarifario '!A:O,11,FALSE)),0),IF($F$10="M2: Cau,VdC, Nar, Tol, Hui, Caq, Put, Vau",IFERROR((VLOOKUP(D143,'Tarifario '!A:O,12,FALSE)),0),IF($F$10="M3: Ant, Cal, Qui, Ris, Cho, Cór, Guai",IFERROR((VLOOKUP(D143,'Tarifario '!A:O,13,FALSE)),0),IF($F$10="M4: Atl, Bol, Guaj, Mag, Suc, SAnd",IFERROR((VLOOKUP(D143,'Tarifario '!A:O,14,FALSE)),0),IF($F$10="M5: Cés, Ara, Vic, Ama, NdS, San",IFERROR((VLOOKUP(D143,'Tarifario '!A:O,15,FALSE)),0),0)))))) -> 0 | K143: 0 | L143: SI | M143: =+IF(L143="SI",(K143*0.19),0) -> 0 | N143: 0
A144: =+IF(D144="",0,1) -> 0 | J144: =+IF($F$10="",0,IF($F$10="M1: SDG, Btá, Cun, Met, Guav, Cas, Boy",IFERROR((VLOOKUP(D144,'Tarifario '!A:O,11,FALSE)),0),IF($F$10="M2: Cau,VdC, Nar, Tol, Hui, Caq, Put, Vau",IFERROR((VLOOKUP(D144,'Tarifario '!A:O,12,FALSE)),0),IF($F$10="M3: Ant, Cal, Qui, Ris, Cho, Cór, Guai",IFERROR((VLOOKUP(D144,'Tarifario '!A:O,13,FALSE)),0),IF($F$10="M4: Atl, Bol, Guaj, Mag, Suc, SAnd",IFERROR((VLOOKUP(D144,'Tarifario '!A:O,14,FALSE)),0),IF($F$10="M5: Cés, Ara, Vic, Ama, NdS, San",IFERROR((VLOOKUP(D144,'Tarifario '!A:O,15,FALSE)),0),0)))))) -> 0 | K144: =+J144*I144 -> 0 | L144: SI | M144: 0 | N144: =+K144+M144 -> 0
A145: 0 | J145: =+IF($F$10="",0,IF($F$10="M1: SDG, Btá, Cun, Met, Guav, Cas, Boy",IFERROR((VLOOKUP(D145,'Tarifario '!A:O,11,FALSE)),0),IF($F$10="M2: Cau,VdC, Nar, Tol, Hui, Caq, Put, Vau",IFERROR((VLOOKUP(D145,'Tarifario '!A:O,12,FALSE)),0),IF($F$10="M3: Ant, Cal, Qui, Ris, Cho, Cór, Guai",IFERROR((VLOOKUP(D145,'Tarifario '!A:O,13,FALSE)),0),IF($F$10="M4: Atl, Bol, Guaj, Mag, Suc, SAnd",IFERROR((VLOOKUP(D145,'Tarifario '!A:O,14,FALSE)),0),IF($F$10="M5: Cés, Ara, Vic, Ama, NdS, San",IFERROR((VLOOKUP(D145,'Tarifario '!A:O,15,FALSE)),0),0)))))) -> 0 | K145: 0 | L145: SI | M145: 0 | N145: 0
A146: 0 | J146: =+IF($F$10="",0,IF($F$10="M1: SDG, Btá, Cun, Met, Guav, Cas, Boy",IFERROR((VLOOKUP(D146,'Tarifario '!A:O,11,FALSE)),0),IF($F$10="M2: Cau,VdC, Nar, Tol, Hui, Caq, Put, Vau",IFERROR((VLOOKUP(D146,'Tarifario '!A:O,12,FALSE)),0),IF($F$10="M3: Ant, Cal, Qui, Ris, Cho, Cór, Guai",IFERROR((VLOOKUP(D146,'Tarifario '!A:O,13,FALSE)),0),IF($F$10="M4: Atl, Bol, Guaj, Mag, Suc, SAnd",IFERROR((VLOOKUP(D146,'Tarifario '!A:O,14,FALSE)),0),IF($F$10="M5: Cés, Ara, Vic, Ama, NdS, San",IFERROR((VLOOKUP(D146,'Tarifario '!A:O,15,FALSE)),0),0)))))) -> 0 | K146: 0 | L146: SI | M146: 0 | N146: 0
A147: 0 | J147: =+IF($F$10="",0,IF($F$10="M1: SDG, Btá, Cun, Met, Guav, Cas, Boy",IFERROR((VLOOKUP(D147,'Tarifario '!A:O,11,FALSE)),0),IF($F$10="M2: Cau,VdC, Nar, Tol, Hui, Caq, Put, Vau",IFERROR((VLOOKUP(D147,'Tarifario '!A:O,12,FALSE)),0),IF($F$10="M3: Ant, Cal, Qui, Ris, Cho, Cór, Guai",IFERROR((VLOOKUP(D147,'Tarifario '!A:O,13,FALSE)),0),IF($F$10="M4: Atl, Bol, Guaj, Mag, Suc, SAnd",IFERROR((VLOOKUP(D147,'Tarifario '!A:O,14,FALSE)),0),IF($F$10="M5: Cés, Ara, Vic, Ama, NdS, San",IFERROR((VLOOKUP(D147,'Tarifario '!A:O,15,FALSE)),0),0)))))) -> 0 | K147: 0 | L147: SI | M147: 0 | N147: 0
A148: 0 | J148: =+IF($F$10="",0,IF($F$10="M1: SDG, Btá, Cun, Met, Guav, Cas, Boy",IFERROR((VLOOKUP(D148,'Tarifario '!A:O,11,FALSE)),0),IF($F$10="M2: Cau,VdC, Nar, Tol, Hui, Caq, Put, Vau",IFERROR((VLOOKUP(D148,'Tarifario '!A:O,12,FALSE)),0),IF($F$10="M3: Ant, Cal, Qui, Ris, Cho, Cór, Guai",IFERROR((VLOOKUP(D148,'Tarifario '!A:O,13,FALSE)),0),IF($F$10="M4: Atl, Bol, Guaj, Mag, Suc, SAnd",IFERROR((VLOOKUP(D148,'Tarifario '!A:O,14,FALSE)),0),IF($F$10="M5: Cés, Ara, Vic, Ama, NdS, San",IFERROR((VLOOKUP(D148,'Tarifario '!A:O,15,FALSE)),0),0)))))) -> 0 | K148: 0 | L148: SI | M148: 0 | N148: 0
A149: 0 | J149: =+IF($F$10="",0,IF($F$10="M1: SDG, Btá, Cun, Met, Guav, Cas, Boy",IFERROR((VLOOKUP(D149,'Tarifario '!A:O,11,FALSE)),0),IF($F$10="M2: Cau,VdC, Nar, Tol, Hui, Caq, Put, Vau",IFERROR((VLOOKUP(D149,'Tarifario '!A:O,12,FALSE)),0),IF($F$10="M3: Ant, Cal, Qui, Ris, Cho, Cór, Guai",IFERROR((VLOOKUP(D149,'Tarifario '!A:O,13,FALSE)),0),IF($F$10="M4: Atl, Bol, Guaj, Mag, Suc, SAnd",IFERROR((VLOOKUP(D149,'Tarifario '!A:O,14,FALSE)),0),IF($F$10="M5: Cés, Ara, Vic, Ama, NdS, San",IFERROR((VLOOKUP(D149,'Tarifario '!A:O,15,FALSE)),0),0)))))) -> 0 | K149: 0 | L149: SI | M149: 0 | N149: 0
A150: 0 | J150: =+IF($F$10="",0,IF($F$10="M1: SDG, Btá, Cun, Met, Guav, Cas, Boy",IFERROR((VLOOKUP(D150,'Tarifario '!A:O,11,FALSE)),0),IF($F$10="M2: Cau,VdC, Nar, Tol, Hui, Caq, Put, Vau",IFERROR((VLOOKUP(D150,'Tarifario '!A:O,12,FALSE)),0),IF($F$10="M3: Ant, Cal, Qui, Ris, Cho, Cór, Guai",IFERROR((VLOOKUP(D150,'Tarifario '!A:O,13,FALSE)),0),IF($F$10="M4: Atl, Bol, Guaj, Mag, Suc, SAnd",IFERROR((VLOOKUP(D150,'Tarifario '!A:O,14,FALSE)),0),IF($F$10="M5: Cés, Ara, Vic, Ama, NdS, San",IFERROR((VLOOKUP(D150,'Tarifario '!A:O,15,FALSE)),0),0)))))) -> 0 | K150: 0 | L150: SI | M150: 0 | N150: 0
A151: 0 | J151: =+IF($F$10="",0,IF($F$10="M1: SDG, Btá, Cun, Met, Guav, Cas, Boy",IFERROR((VLOOKUP(D151,'Tarifario '!A:O,11,FALSE)),0),IF($F$10="M2: Cau,VdC, Nar, Tol, Hui, Caq, Put, Vau",IFERROR((VLOOKUP(D151,'Tarifario '!A:O,12,FALSE)),0),IF($F$10="M3: Ant, Cal, Qui, Ris, Cho, Cór, Guai",IFERROR((VLOOKUP(D151,'Tarifario '!A:O,13,FALSE)),0),IF($F$10="M4: Atl, Bol, Guaj, Mag, Suc, SAnd",IFERROR((VLOOKUP(D151,'Tarifario '!A:O,14,FALSE)),0),IF($F$10="M5: Cés, Ara, Vic, Ama, NdS, San",IFERROR((VLOOKUP(D151,'Tarifario '!A:O,15,FALSE)),0),0)))))) -> 0 | K151: 0 | L151: SI | M151: 0 | N151: 0
A152: 0 | J152: =+IF($F$10="",0,IF($F$10="M1: SDG, Btá, Cun, Met, Guav, Cas, Boy",IFERROR((VLOOKUP(D152,'Tarifario '!A:O,11,FALSE)),0),IF($F$10="M2: Cau,VdC, Nar, Tol, Hui, Caq, Put, Vau",IFERROR((VLOOKUP(D152,'Tarifario '!A:O,12,FALSE)),0),IF($F$10="M3: Ant, Cal, Qui, Ris, Cho, Cór, Guai",IFERROR((VLOOKUP(D152,'Tarifario '!A:O,13,FALSE)),0),IF($F$10="M4: Atl, Bol, Guaj, Mag, Suc, SAnd",IFERROR((VLOOKUP(D152,'Tarifario '!A:O,14,FALSE)),0),IF($F$10="M5: Cés, Ara, Vic, Ama, NdS, San",IFERROR((VLOOKUP(D152,'Tarifario '!A:O,15,FALSE)),0),0)))))) -> 0 | K152: 0 | L152: SI | M152: 0 | N152: 0
A153: 0 | J153: =+IF($F$10="",0,IF($F$10="M1: SDG, Btá, Cun, Met, Guav, Cas, Boy",IFERROR((VLOOKUP(D153,'Tarifario '!A:O,11,FALSE)),0),IF($F$10="M2: Cau,VdC, Nar, Tol, Hui, Caq, Put, Vau",IFERROR((VLOOKUP(D153,'Tarifario '!A:O,12,FALSE)),0),IF($F$10="M3: Ant, Cal, Qui, Ris, Cho, Cór, Guai",IFERROR((VLOOKUP(D153,'Tarifario '!A:O,13,FALSE)),0),IF($F$10="M4: Atl, Bol, Guaj, Mag, Suc, SAnd",IFERROR((VLOOKUP(D153,'Tarifario '!A:O,14,FALSE)),0),IF($F$10="M5: Cés, Ara, Vic, Ama, NdS, San",IFERROR((VLOOKUP(D153,'Tarifario '!A:O,15,FALSE)),0),0)))))) -> 0 | K153: 0 | L153: SI | M153: 0 | N153: 0
A154: 0 | J154: =+IF($F$10="",0,IF($F$10="M1: SDG, Btá, Cun, Met, Guav, Cas, Boy",IFERROR((VLOOKUP(D154,'Tarifario '!A:O,11,FALSE)),0),IF($F$10="M2: Cau,VdC, Nar, Tol, Hui, Caq, Put, Vau",IFERROR((VLOOKUP(D154,'Tarifario '!A:O,12,FALSE)),0),IF($F$10="M3: Ant, Cal, Qui, Ris, Cho, Cór, Guai",IFERROR((VLOOKUP(D154,'Tarifario '!A:O,13,FALSE)),0),IF($F$10="M4: Atl, Bol, Guaj, Mag, Suc, SAnd",IFERROR((VLOOKUP(D154,'Tarifario '!A:O,14,FALSE)),0),IF($F$10="M5: Cés, Ara, Vic, Ama, NdS, San",IFERROR((VLOOKUP(D154,'Tarifario '!A:O,15,FALSE)),0),0)))))) -> 0 | K154: 0 | L154: SI | M154: 0 | N154: 0
A155: 0 | J155: =+IF($F$10="",0,IF($F$10="M1: SDG, Btá, Cun, Met, Guav, Cas, Boy",IFERROR((VLOOKUP(D155,'Tarifario '!A:O,11,FALSE)),0),IF($F$10="M2: Cau,VdC, Nar, Tol, Hui, Caq, Put, Vau",IFERROR((VLOOKUP(D155,'Tarifario '!A:O,12,FALSE)),0),IF($F$10="M3: Ant, Cal, Qui, Ris, Cho, Cór, Guai",IFERROR((VLOOKUP(D155,'Tarifario '!A:O,13,FALSE)),0),IF($F$10="M4: Atl, Bol, Guaj, Mag, Suc, SAnd",IFERROR((VLOOKUP(D155,'Tarifario '!A:O,14,FALSE)),0),IF($F$10="M5: Cés, Ara, Vic, Ama, NdS, San",IFERROR((VLOOKUP(D155,'Tarifario '!A:O,15,FALSE)),0),0)))))) -> 0 | K155: 0 | L155: SI | M155: 0 | N155: 0
A156: 0 | J156: =+IF($F$10="",0,IF($F$10="M1: SDG, Btá, Cun, Met, Guav, Cas, Boy",IFERROR((VLOOKUP(D156,'Tarifario '!A:O,11,FALSE)),0),IF($F$10="M2: Cau,VdC, Nar, Tol, Hui, Caq, Put, Vau",IFERROR((VLOOKUP(D156,'Tarifario '!A:O,12,FALSE)),0),IF($F$10="M3: Ant, Cal, Qui, Ris, Cho, Cór, Guai",IFERROR((VLOOKUP(D156,'Tarifario '!A:O,13,FALSE)),0),IF($F$10="M4: Atl, Bol, Guaj, Mag, Suc, SAnd",IFERROR((VLOOKUP(D156,'Tarifario '!A:O,14,FALSE)),0),IF($F$10="M5: Cés, Ara, Vic, Ama, NdS, San",IFERROR((VLOOKUP(D156,'Tarifario '!A:O,15,FALSE)),0),0)))))) -> 0 | K156: 0 | L156: SI | M156: 0 | N156: 0
A157: 0 | J157: =+IF($F$10="",0,IF($F$10="M1: SDG, Btá, Cun, Met, Guav, Cas, Boy",IFERROR((VLOOKUP(D157,'Tarifario '!A:O,11,FALSE)),0),IF($F$10="M2: Cau,VdC, Nar, Tol, Hui, Caq, Put, Vau",IFERROR((VLOOKUP(D157,'Tarifario '!A:O,12,FALSE)),0),IF($F$10="M3: Ant, Cal, Qui, Ris, Cho, Cór, Guai",IFERROR((VLOOKUP(D157,'Tarifario '!A:O,13,FALSE)),0),IF($F$10="M4: Atl, Bol, Guaj, Mag, Suc, SAnd",IFERROR((VLOOKUP(D157,'Tarifario '!A:O,14,FALSE)),0),IF($F$10="M5: Cés, Ara, Vic, Ama, NdS, San",IFERROR((VLOOKUP(D157,'Tarifario '!A:O,15,FALSE)),0),0)))))) -> 0 | K157: 0 | L157: SI | M157: 0 | N157: 0
A158: 0 | J158: =+IF($F$10="",0,IF($F$10="M1: SDG, Btá, Cun, Met, Guav, Cas, Boy",IFERROR((VLOOKUP(D158,'Tarifario '!A:O,11,FALSE)),0),IF($F$10="M2: Cau,VdC, Nar, Tol, Hui, Caq, Put, Vau",IFERROR((VLOOKUP(D158,'Tarifario '!A:O,12,FALSE)),0),IF($F$10="M3: Ant, Cal, Qui, Ris, Cho, Cór, Guai",IFERROR((VLOOKUP(D158,'Tarifario '!A:O,13,FALSE)),0),IF($F$10="M4: Atl, Bol, Guaj, Mag, Suc, SAnd",IFERROR((VLOOKUP(D158,'Tarifario '!A:O,14,FALSE)),0),IF($F$10="M5: Cés, Ara, Vic, Ama, NdS, San",IFERROR((VLOOKUP(D158,'Tarifario '!A:O,15,FALSE)),0),0)))))) -> 0 | K158: 0 | L158: SI | M158: 0 | N158: 0
A159: 0 | J159: =+IF($F$10="",0,IF($F$10="M1: SDG, Btá, Cun, Met, Guav, Cas, Boy",IFERROR((VLOOKUP(D159,'Tarifario '!A:O,11,FALSE)),0),IF($F$10="M2: Cau,VdC, Nar, Tol, Hui, Caq, Put, Vau",IFERROR((VLOOKUP(D159,'Tarifario '!A:O,12,FALSE)),0),IF($F$10="M3: Ant, Cal, Qui, Ris, Cho, Cór, Guai",IFERROR((VLOOKUP(D159,'Tarifario '!A:O,13,FALSE)),0),IF($F$10="M4: Atl, Bol, Guaj, Mag, Suc, SAnd",IFERROR((VLOOKUP(D159,'Tarifario '!A:O,14,FALSE)),0),IF($F$10="M5: Cés, Ara, Vic, Ama, NdS, San",IFERROR((VLOOKUP(D159,'Tarifario '!A:O,15,FALSE)),0),0)))))) -> 0 | K159: 0 | L159: SI | M159: 0 | N159: 0
A160: 0 | J160: =+IF($F$10="",0,IF($F$10="M1: SDG, Btá, Cun, Met, Guav, Cas, Boy",IFERROR((VLOOKUP(D160,'Tarifario '!A:O,11,FALSE)),0),IF($F$10="M2: Cau,VdC, Nar, Tol, Hui, Caq, Put, Vau",IFERROR((VLOOKUP(D160,'Tarifario '!A:O,12,FALSE)),0),IF($F$10="M3: Ant, Cal, Qui, Ris, Cho, Cór, Guai",IFERROR((VLOOKUP(D160,'Tarifario '!A:O,13,FALSE)),0),IF($F$10="M4: Atl, Bol, Guaj, Mag, Suc, SAnd",IFERROR((VLOOKUP(D160,'Tarifario '!A:O,14,FALSE)),0),IF($F$10="M5: Cés, Ara, Vic, Ama, NdS, San",IFERROR((VLOOKUP(D160,'Tarifario '!A:O,15,FALSE)),0),0)))))) -> 0 | K160: 0 | L160: SI | M160: 0 | N160: 0
A161: 0 | J161: =+IF($F$10="",0,IF($F$10="M1: SDG, Btá, Cun, Met, Guav, Cas, Boy",IFERROR((VLOOKUP(D161,'Tarifario '!A:O,11,FALSE)),0),IF($F$10="M2: Cau,VdC, Nar, Tol, Hui, Caq, Put, Vau",IFERROR((VLOOKUP(D161,'Tarifario '!A:O,12,FALSE)),0),IF($F$10="M3: Ant, Cal, Qui, Ris, Cho, Cór, Guai",IFERROR((VLOOKUP(D161,'Tarifario '!A:O,13,FALSE)),0),IF($F$10="M4: Atl, Bol, Guaj, Mag, Suc, SAnd",IFERROR((VLOOKUP(D161,'Tarifario '!A:O,14,FALSE)),0),IF($F$10="M5: Cés, Ara, Vic, Ama, NdS, San",IFERROR((VLOOKUP(D161,'Tarifario '!A:O,15,FALSE)),0),0)))))) -> 0 | K161: 0 | L161: SI | M161: 0 | N161: 0
A162: 0 | J162: =+IF($F$10="",0,IF($F$10="M1: SDG, Btá, Cun, Met, Guav, Cas, Boy",IFERROR((VLOOKUP(D162,'Tarifario '!A:O,11,FALSE)),0),IF($F$10="M2: Cau,VdC, Nar, Tol, Hui, Caq, Put, Vau",IFERROR((VLOOKUP(D162,'Tarifario '!A:O,12,FALSE)),0),IF($F$10="M3: Ant, Cal, Qui, Ris, Cho, Cór, Guai",IFERROR((VLOOKUP(D162,'Tarifario '!A:O,13,FALSE)),0),IF($F$10="M4: Atl, Bol, Guaj, Mag, Suc, SAnd",IFERROR((VLOOKUP(D162,'Tarifario '!A:O,14,FALSE)),0),IF($F$10="M5: Cés, Ara, Vic, Ama, NdS, San",IFERROR((VLOOKUP(D162,'Tarifario '!A:O,15,FALSE)),0),0)))))) -> 0 | K162: 0 | L162: SI | M162: 0 | N162: 0
A163: 0 | J163: =+IF($F$10="",0,IF($F$10="M1: SDG, Btá, Cun, Met, Guav, Cas, Boy",IFERROR((VLOOKUP(D163,'Tarifario '!A:O,11,FALSE)),0),IF($F$10="M2: Cau,VdC, Nar, Tol, Hui, Caq, Put, Vau",IFERROR((VLOOKUP(D163,'Tarifario '!A:O,12,FALSE)),0),IF($F$10="M3: Ant, Cal, Qui, Ris, Cho, Cór, Guai",IFERROR((VLOOKUP(D163,'Tarifario '!A:O,13,FALSE)),0),IF($F$10="M4: Atl, Bol, Guaj, Mag, Suc, SAnd",IFERROR((VLOOKUP(D163,'Tarifario '!A:O,14,FALSE)),0),IF($F$10="M5: Cés, Ara, Vic, Ama, NdS, San",IFERROR((VLOOKUP(D163,'Tarifario '!A:O,15,FALSE)),0),0)))))) -> 0 | K163: 0 | L163: SI | M163: 0 | N163: 0
A164: 0 | J164: =+IF($F$10="",0,IF($F$10="M1: SDG, Btá, Cun, Met, Guav, Cas, Boy",IFERROR((VLOOKUP(D164,'Tarifario '!A:O,11,FALSE)),0),IF($F$10="M2: Cau,VdC, Nar, Tol, Hui, Caq, Put, Vau",IFERROR((VLOOKUP(D164,'Tarifario '!A:O,12,FALSE)),0),IF($F$10="M3: Ant, Cal, Qui, Ris, Cho, Cór, Guai",IFERROR((VLOOKUP(D164,'Tarifario '!A:O,13,FALSE)),0),IF($F$10="M4: Atl, Bol, Guaj, Mag, Suc, SAnd",IFERROR((VLOOKUP(D164,'Tarifario '!A:O,14,FALSE)),0),IF($F$10="M5: Cés, Ara, Vic, Ama, NdS, San",IFERROR((VLOOKUP(D164,'Tarifario '!A:O,15,FALSE)),0),0)))))) -> 0 | K164: 0 | L164: SI | M164: 0 | N164: 0
A165: 0 | J165: =+IF($F$10="",0,IF($F$10="M1: SDG, Btá, Cun, Met, Guav, Cas, Boy",IFERROR((VLOOKUP(D165,'Tarifario '!A:O,11,FALSE)),0),IF($F$10="M2: Cau,VdC, Nar, Tol, Hui, Caq, Put, Vau",IFERROR((VLOOKUP(D165,'Tarifario '!A:O,12,FALSE)),0),IF($F$10="M3: Ant, Cal, Qui, Ris, Cho, Cór, Guai",IFERROR((VLOOKUP(D165,'Tarifario '!A:O,13,FALSE)),0),IF($F$10="M4: Atl, Bol, Guaj, Mag, Suc, SAnd",IFERROR((VLOOKUP(D165,'Tarifario '!A:O,14,FALSE)),0),IF($F$10="M5: Cés, Ara, Vic, Ama, NdS, San",IFERROR((VLOOKUP(D165,'Tarifario '!A:O,15,FALSE)),0),0)))))) -> 0 | K165: 0 | L165: SI | M165: 0 | N165: 0
A166: 0 | J166: =+IF($F$10="",0,IF($F$10="M1: SDG, Btá, Cun, Met, Guav, Cas, Boy",IFERROR((VLOOKUP(D166,'Tarifario '!A:O,11,FALSE)),0),IF($F$10="M2: Cau,VdC, Nar, Tol, Hui, Caq, Put, Vau",IFERROR((VLOOKUP(D166,'Tarifario '!A:O,12,FALSE)),0),IF($F$10="M3: Ant, Cal, Qui, Ris, Cho, Cór, Guai",IFERROR((VLOOKUP(D166,'Tarifario '!A:O,13,FALSE)),0),IF($F$10="M4: Atl, Bol, Guaj, Mag, Suc, SAnd",IFERROR((VLOOKUP(D166,'Tarifario '!A:O,14,FALSE)),0),IF($F$10="M5: Cés, Ara, Vic, Ama, NdS, San",IFERROR((VLOOKUP(D166,'Tarifario '!A:O,15,FALSE)),0),0)))))) -> 0 | K166: 0 | L166: SI | M166: 0 | N166: 0
A167: 0 | J167: =+IF($F$10="",0,IF($F$10="M1: SDG, Btá, Cun, Met, Guav, Cas, Boy",IFERROR((VLOOKUP(D167,'Tarifario '!A:O,11,FALSE)),0),IF($F$10="M2: Cau,VdC, Nar, Tol, Hui, Caq, Put, Vau",IFERROR((VLOOKUP(D167,'Tarifario '!A:O,12,FALSE)),0),IF($F$10="M3: Ant, Cal, Qui, Ris, Cho, Cór, Guai",IFERROR((VLOOKUP(D167,'Tarifario '!A:O,13,FALSE)),0),IF($F$10="M4: Atl, Bol, Guaj, Mag, Suc, SAnd",IFERROR((VLOOKUP(D167,'Tarifario '!A:O,14,FALSE)),0),IF($F$10="M5: Cés, Ara, Vic, Ama, NdS, San",IFERROR((VLOOKUP(D167,'Tarifario '!A:O,15,FALSE)),0),0)))))) -> 0 | K167: 0 | L167: SI | M167: 0 | N167: 0
A168: 0 | J168: =+IF($F$10="",0,IF($F$10="M1: SDG, Btá, Cun, Met, Guav, Cas, Boy",IFERROR((VLOOKUP(D168,'Tarifario '!A:O,11,FALSE)),0),IF($F$10="M2: Cau,VdC, Nar, Tol, Hui, Caq, Put, Vau",IFERROR((VLOOKUP(D168,'Tarifario '!A:O,12,FALSE)),0),IF($F$10="M3: Ant, Cal, Qui, Ris, Cho, Cór, Guai",IFERROR((VLOOKUP(D168,'Tarifario '!A:O,13,FALSE)),0),IF($F$10="M4: Atl, Bol, Guaj, Mag, Suc, SAnd",IFERROR((VLOOKUP(D168,'Tarifario '!A:O,14,FALSE)),0),IF($F$10="M5: Cés, Ara, Vic, Ama, NdS, San",IFERROR((VLOOKUP(D168,'Tarifario '!A:O,15,FALSE)),0),0)))))) -> 0 | K168: 0 | L168: SI | M168: 0 | N168: 0
A169: 0 | J169: =+IF($F$10="",0,IF($F$10="M1: SDG, Btá, Cun, Met, Guav, Cas, Boy",IFERROR((VLOOKUP(D169,'Tarifario '!A:O,11,FALSE)),0),IF($F$10="M2: Cau,VdC, Nar, Tol, Hui, Caq, Put, Vau",IFERROR((VLOOKUP(D169,'Tarifario '!A:O,12,FALSE)),0),IF($F$10="M3: Ant, Cal, Qui, Ris, Cho, Cór, Guai",IFERROR((VLOOKUP(D169,'Tarifario '!A:O,13,FALSE)),0),IF($F$10="M4: Atl, Bol, Guaj, Mag, Suc, SAnd",IFERROR((VLOOKUP(D169,'Tarifario '!A:O,14,FALSE)),0),IF($F$10="M5: Cés, Ara, Vic, Ama, NdS, San",IFERROR((VLOOKUP(D169,'Tarifario '!A:O,15,FALSE)),0),0)))))) -> 0 | K169: 0 | L169: SI | M169: 0 | N169: 0
A170: 0 | J170: =+IF($F$10="",0,IF($F$10="M1: SDG, Btá, Cun, Met, Guav, Cas, Boy",IFERROR((VLOOKUP(D170,'Tarifario '!A:O,11,FALSE)),0),IF($F$10="M2: Cau,VdC, Nar, Tol, Hui, Caq, Put, Vau",IFERROR((VLOOKUP(D170,'Tarifario '!A:O,12,FALSE)),0),IF($F$10="M3: Ant, Cal, Qui, Ris, Cho, Cór, Guai",IFERROR((VLOOKUP(D170,'Tarifario '!A:O,13,FALSE)),0),IF($F$10="M4: Atl, Bol, Guaj, Mag, Suc, SAnd",IFERROR((VLOOKUP(D170,'Tarifario '!A:O,14,FALSE)),0),IF($F$10="M5: Cés, Ara, Vic, Ama, NdS, San",IFERROR((VLOOKUP(D170,'Tarifario '!A:O,15,FALSE)),0),0)))))) -> 0 | K170: 0 | L170: SI | M170: 0 | N170: 0
A171: 0 | J171: =+IF($F$10="",0,IF($F$10="M1: SDG, Btá, Cun, Met, Guav, Cas, Boy",IFERROR((VLOOKUP(D171,'Tarifario '!A:O,11,FALSE)),0),IF($F$10="M2: Cau,VdC, Nar, Tol, Hui, Caq, Put, Vau",IFERROR((VLOOKUP(D171,'Tarifario '!A:O,12,FALSE)),0),IF($F$10="M3: Ant, Cal, Qui, Ris, Cho, Cór, Guai",IFERROR((VLOOKUP(D171,'Tarifario '!A:O,13,FALSE)),0),IF($F$10="M4: Atl, Bol, Guaj, Mag, Suc, SAnd",IFERROR((VLOOKUP(D171,'Tarifario '!A:O,14,FALSE)),0),IF($F$10="M5: Cés, Ara, Vic, Ama, NdS, San",IFERROR((VLOOKUP(D171,'Tarifario '!A:O,15,FALSE)),0),0)))))) -> 0 | K171: 0 | L171: SI | M171: 0 | N171: 0
A172: 0 | J172: =+IF($F$10="",0,IF($F$10="M1: SDG, Btá, Cun, Met, Guav, Cas, Boy",IFERROR((VLOOKUP(D172,'Tarifario '!A:O,11,FALSE)),0),IF($F$10="M2: Cau,VdC, Nar, Tol, Hui, Caq, Put, Vau",IFERROR((VLOOKUP(D172,'Tarifario '!A:O,12,FALSE)),0),IF($F$10="M3: Ant, Cal, Qui, Ris, Cho, Cór, Guai",IFERROR((VLOOKUP(D172,'Tarifario '!A:O,13,FALSE)),0),IF($F$10="M4: Atl, Bol, Guaj, Mag, Suc, SAnd",IFERROR((VLOOKUP(D172,'Tarifario '!A:O,14,FALSE)),0),IF($F$10="M5: Cés, Ara, Vic, Ama, NdS, San",IFERROR((VLOOKUP(D172,'Tarifario '!A:O,15,FALSE)),0),0)))))) -> 0 | K172: 0 | L172: SI | M172: 0 | N172: 0
A173: 0 | J173: =+IF($F$10="",0,IF($F$10="M1: SDG, Btá, Cun, Met, Guav, Cas, Boy",IFERROR((VLOOKUP(D173,'Tarifario '!A:O,11,FALSE)),0),IF($F$10="M2: Cau,VdC, Nar, Tol, Hui, Caq, Put, Vau",IFERROR((VLOOKUP(D173,'Tarifario '!A:O,12,FALSE)),0),IF($F$10="M3: Ant, Cal, Qui, Ris, Cho, Cór, Guai",IFERROR((VLOOKUP(D173,'Tarifario '!A:O,13,FALSE)),0),IF($F$10="M4: Atl, Bol, Guaj, Mag, Suc, SAnd",IFERROR((VLOOKUP(D173,'Tarifario '!A:O,14,FALSE)),0),IF($F$10="M5: Cés, Ara, Vic, Ama, NdS, San",IFERROR((VLOOKUP(D173,'Tarifario '!A:O,15,FALSE)),0),0)))))) -> 0 | K173: 0 | L173: SI | M173: 0 | N173: 0
A174: 0 | J174: =+IF($F$10="",0,IF($F$10="M1: SDG, Btá, Cun, Met, Guav, Cas, Boy",IFERROR((VLOOKUP(D174,'Tarifario '!A:O,11,FALSE)),0),IF($F$10="M2: Cau,VdC, Nar, Tol, Hui, Caq, Put, Vau",IFERROR((VLOOKUP(D174,'Tarifario '!A:O,12,FALSE)),0),IF($F$10="M3: Ant, Cal, Qui, Ris, Cho, Cór, Guai",IFERROR((VLOOKUP(D174,'Tarifario '!A:O,13,FALSE)),0),IF($F$10="M4: Atl, Bol, Guaj, Mag, Suc, SAnd",IFERROR((VLOOKUP(D174,'Tarifario '!A:O,14,FALSE)),0),IF($F$10="M5: Cés, Ara, Vic, Ama, NdS, San",IFERROR((VLOOKUP(D174,'Tarifario '!A:O,15,FALSE)),0),0)))))) -> 0 | K174: 0 | L174: SI | M174: 0 | N174: 0
A175: 0 | J175: =+IF($F$10="",0,IF($F$10="M1: SDG, Btá, Cun, Met, Guav, Cas, Boy",IFERROR((VLOOKUP(D175,'Tarifario '!A:O,11,FALSE)),0),IF($F$10="M2: Cau,VdC, Nar, Tol, Hui, Caq, Put, Vau",IFERROR((VLOOKUP(D175,'Tarifario '!A:O,12,FALSE)),0),IF($F$10="M3: Ant, Cal, Qui, Ris, Cho, Cór, Guai",IFERROR((VLOOKUP(D175,'Tarifario '!A:O,13,FALSE)),0),IF($F$10="M4: Atl, Bol, Guaj, Mag, Suc, SAnd",IFERROR((VLOOKUP(D175,'Tarifario '!A:O,14,FALSE)),0),IF($F$10="M5: Cés, Ara, Vic, Ama, NdS, San",IFERROR((VLOOKUP(D175,'Tarifario '!A:O,15,FALSE)),0),0)))))) -> 0 | K175: 0 | L175: SI | M175: 0 | N175: 0
A176: 0 | J176: =+IF($F$10="",0,IF($F$10="M1: SDG, Btá, Cun, Met, Guav, Cas, Boy",IFERROR((VLOOKUP(D176,'Tarifario '!A:O,11,FALSE)),0),IF($F$10="M2: Cau,VdC, Nar, Tol, Hui, Caq, Put, Vau",IFERROR((VLOOKUP(D176,'Tarifario '!A:O,12,FALSE)),0),IF($F$10="M3: Ant, Cal, Qui, Ris, Cho, Cór, Guai",IFERROR((VLOOKUP(D176,'Tarifario '!A:O,13,FALSE)),0),IF($F$10="M4: Atl, Bol, Guaj, Mag, Suc, SAnd",IFERROR((VLOOKUP(D176,'Tarifario '!A:O,14,FALSE)),0),IF($F$10="M5: Cés, Ara, Vic, Ama, NdS, San",IFERROR((VLOOKUP(D176,'Tarifario '!A:O,15,FALSE)),0),0)))))) -> 0 | K176: 0 | L176: SI | M176: 0 | N176: 0
A177: 0 | J177: =+IF($F$10="",0,IF($F$10="M1: SDG, Btá, Cun, Met, Guav, Cas, Boy",IFERROR((VLOOKUP(D177,'Tarifario '!A:O,11,FALSE)),0),IF($F$10="M2: Cau,VdC, Nar, Tol, Hui, Caq, Put, Vau",IFERROR((VLOOKUP(D177,'Tarifario '!A:O,12,FALSE)),0),IF($F$10="M3: Ant, Cal, Qui, Ris, Cho, Cór, Guai",IFERROR((VLOOKUP(D177,'Tarifario '!A:O,13,FALSE)),0),IF($F$10="M4: Atl, Bol, Guaj, Mag, Suc, SAnd",IFERROR((VLOOKUP(D177,'Tarifario '!A:O,14,FALSE)),0),IF($F$10="M5: Cés, Ara, Vic, Ama, NdS, San",IFERROR((VLOOKUP(D177,'Tarifario '!A:O,15,FALSE)),0),0)))))) -> 0 | K177: 0 | L177: SI | M177: 0 | N177: 0
A178: 0 | J178: =+IF($F$10="",0,IF($F$10="M1: SDG, Btá, Cun, Met, Guav, Cas, Boy",IFERROR((VLOOKUP(D178,'Tarifario '!A:O,11,FALSE)),0),IF($F$10="M2: Cau,VdC, Nar, Tol, Hui, Caq, Put, Vau",IFERROR((VLOOKUP(D178,'Tarifario '!A:O,12,FALSE)),0),IF($F$10="M3: Ant, Cal, Qui, Ris, Cho, Cór, Guai",IFERROR((VLOOKUP(D178,'Tarifario '!A:O,13,FALSE)),0),IF($F$10="M4: Atl, Bol, Guaj, Mag, Suc, SAnd",IFERROR((VLOOKUP(D178,'Tarifario '!A:O,14,FALSE)),0),IF($F$10="M5: Cés, Ara, Vic, Ama, NdS, San",IFERROR((VLOOKUP(D178,'Tarifario '!A:O,15,FALSE)),0),0)))))) -> 0 | K178: 0 | L178: SI | M178: 0 | N178: 0
A179: 0 | J179: =+IF($F$10="",0,IF($F$10="M1: SDG, Btá, Cun, Met, Guav, Cas, Boy",IFERROR((VLOOKUP(D179,'Tarifario '!A:O,11,FALSE)),0),IF($F$10="M2: Cau,VdC, Nar, Tol, Hui, Caq, Put, Vau",IFERROR((VLOOKUP(D179,'Tarifario '!A:O,12,FALSE)),0),IF($F$10="M3: Ant, Cal, Qui, Ris, Cho, Cór, Guai",IFERROR((VLOOKUP(D179,'Tarifario '!A:O,13,FALSE)),0),IF($F$10="M4: Atl, Bol, Guaj, Mag, Suc, SAnd",IFERROR((VLOOKUP(D179,'Tarifario '!A:O,14,FALSE)),0),IF($F$10="M5: Cés, Ara, Vic, Ama, NdS, San",IFERROR((VLOOKUP(D179,'Tarifario '!A:O,15,FALSE)),0),0)))))) -> 0 | K179: 0 | L179: SI | M179: 0 | N179: 0
A180: 0 | J180: =+IF($F$10="",0,IF($F$10="M1: SDG, Btá, Cun, Met, Guav, Cas, Boy",IFERROR((VLOOKUP(D180,'Tarifario '!A:O,11,FALSE)),0),IF($F$10="M2: Cau,VdC, Nar, Tol, Hui, Caq, Put, Vau",IFERROR((VLOOKUP(D180,'Tarifario '!A:O,12,FALSE)),0),IF($F$10="M3: Ant, Cal, Qui, Ris, Cho, Cór, Guai",IFERROR((VLOOKUP(D180,'Tarifario '!A:O,13,FALSE)),0),IF($F$10="M4: Atl, Bol, Guaj, Mag, Suc, SAnd",IFERROR((VLOOKUP(D180,'Tarifario '!A:O,14,FALSE)),0),IF($F$10="M5: Cés, Ara, Vic, Ama, NdS, San",IFERROR((VLOOKUP(D180,'Tarifario '!A:O,15,FALSE)),0),0)))))) -> 0 | K180: 0 | L180: SI | M180: 0 | N180: 0
A181: 0 | J181: =+IF($F$10="",0,IF($F$10="M1: SDG, Btá, Cun, Met, Guav, Cas, Boy",IFERROR((VLOOKUP(D181,'Tarifario '!A:O,11,FALSE)),0),IF($F$10="M2: Cau,VdC, Nar, Tol, Hui, Caq, Put, Vau",IFERROR((VLOOKUP(D181,'Tarifario '!A:O,12,FALSE)),0),IF($F$10="M3: Ant, Cal, Qui, Ris, Cho, Cór, Guai",IFERROR((VLOOKUP(D181,'Tarifario '!A:O,13,FALSE)),0),IF($F$10="M4: Atl, Bol, Guaj, Mag, Suc, SAnd",IFERROR((VLOOKUP(D181,'Tarifario '!A:O,14,FALSE)),0),IF($F$10="M5: Cés, Ara, Vic, Ama, NdS, San",IFERROR((VLOOKUP(D181,'Tarifario '!A:O,15,FALSE)),0),0)))))) -> 0 | K181: 0 | L181: SI | M181: 0 | N181: 0
A182: 0 | J182: =+IF($F$10="",0,IF($F$10="M1: SDG, Btá, Cun, Met, Guav, Cas, Boy",IFERROR((VLOOKUP(D182,'Tarifario '!A:O,11,FALSE)),0),IF($F$10="M2: Cau,VdC, Nar, Tol, Hui, Caq, Put, Vau",IFERROR((VLOOKUP(D182,'Tarifario '!A:O,12,FALSE)),0),IF($F$10="M3: Ant, Cal, Qui, Ris, Cho, Cór, Guai",IFERROR((VLOOKUP(D182,'Tarifario '!A:O,13,FALSE)),0),IF($F$10="M4: Atl, Bol, Guaj, Mag, Suc, SAnd",IFERROR((VLOOKUP(D182,'Tarifario '!A:O,14,FALSE)),0),IF($F$10="M5: Cés, Ara, Vic, Ama, NdS, San",IFERROR((VLOOKUP(D182,'Tarifario '!A:O,15,FALSE)),0),0)))))) -> 0 | K182: 0 | L182: SI | M182: 0 | N182: 0
A183: 0 | J183: =+IF($F$10="",0,IF($F$10="M1: SDG, Btá, Cun, Met, Guav, Cas, Boy",IFERROR((VLOOKUP(D183,'Tarifario '!A:O,11,FALSE)),0),IF($F$10="M2: Cau,VdC, Nar, Tol, Hui, Caq, Put, Vau",IFERROR((VLOOKUP(D183,'Tarifario '!A:O,12,FALSE)),0),IF($F$10="M3: Ant, Cal, Qui, Ris, Cho, Cór, Guai",IFERROR((VLOOKUP(D183,'Tarifario '!A:O,13,FALSE)),0),IF($F$10="M4: Atl, Bol, Guaj, Mag, Suc, SAnd",IFERROR((VLOOKUP(D183,'Tarifario '!A:O,14,FALSE)),0),IF($F$10="M5: Cés, Ara, Vic, Ama, NdS, San",IFERROR((VLOOKUP(D183,'Tarifario '!A:O,15,FALSE)),0),0)))))) -> 0 | K183: 0 | L183: SI | M183: 0 | N183: 0
A184: 0 | J184: =+IF($F$10="",0,IF($F$10="M1: SDG, Btá, Cun, Met, Guav, Cas, Boy",IFERROR((VLOOKUP(D184,'Tarifario '!A:O,11,FALSE)),0),IF($F$10="M2: Cau,VdC, Nar, Tol, Hui, Caq, Put, Vau",IFERROR((VLOOKUP(D184,'Tarifario '!A:O,12,FALSE)),0),IF($F$10="M3: Ant, Cal, Qui, Ris, Cho, Cór, Guai",IFERROR((VLOOKUP(D184,'Tarifario '!A:O,13,FALSE)),0),IF($F$10="M4: Atl, Bol, Guaj, Mag, Suc, SAnd",IFERROR((VLOOKUP(D184,'Tarifario '!A:O,14,FALSE)),0),IF($F$10="M5: Cés, Ara, Vic, Ama, NdS, San",IFERROR((VLOOKUP(D184,'Tarifario '!A:O,15,FALSE)),0),0)))))) -> 0 | K184: 0 | L184: SI | M184: 0 | N184: 0
A185: 0 | J185: =+IF($F$10="",0,IF($F$10="M1: SDG, Btá, Cun, Met, Guav, Cas, Boy",IFERROR((VLOOKUP(D185,'Tarifario '!A:O,11,FALSE)),0),IF($F$10="M2: Cau,VdC, Nar, Tol, Hui, Caq, Put, Vau",IFERROR((VLOOKUP(D185,'Tarifario '!A:O,12,FALSE)),0),IF($F$10="M3: Ant, Cal, Qui, Ris, Cho, Cór, Guai",IFERROR((VLOOKUP(D185,'Tarifario '!A:O,13,FALSE)),0),IF($F$10="M4: Atl, Bol, Guaj, Mag, Suc, SAnd",IFERROR((VLOOKUP(D185,'Tarifario '!A:O,14,FALSE)),0),IF($F$10="M5: Cés, Ara, Vic, Ama, NdS, San",IFERROR((VLOOKUP(D185,'Tarifario '!A:O,15,FALSE)),0),0)))))) -> 0 | K185: 0 | L185: SI | M185: 0 | N185: 0
A186: 0 | J186: =+IF($F$10="",0,IF($F$10="M1: SDG, Btá, Cun, Met, Guav, Cas, Boy",IFERROR((VLOOKUP(D186,'Tarifario '!A:O,11,FALSE)),0),IF($F$10="M2: Cau,VdC, Nar, Tol, Hui, Caq, Put, Vau",IFERROR((VLOOKUP(D186,'Tarifario '!A:O,12,FALSE)),0),IF($F$10="M3: Ant, Cal, Qui, Ris, Cho, Cór, Guai",IFERROR((VLOOKUP(D186,'Tarifario '!A:O,13,FALSE)),0),IF($F$10="M4: Atl, Bol, Guaj, Mag, Suc, SAnd",IFERROR((VLOOKUP(D186,'Tarifario '!A:O,14,FALSE)),0),IF($F$10="M5: Cés, Ara, Vic, Ama, NdS, San",IFERROR((VLOOKUP(D186,'Tarifario '!A:O,15,FALSE)),0),0)))))) -> 0 | K186: 0 | L186: SI | M186: 0 | N186: 0
A187: 0 | J187: =+IF($F$10="",0,IF($F$10="M1: SDG, Btá, Cun, Met, Guav, Cas, Boy",IFERROR((VLOOKUP(D187,'Tarifario '!A:O,11,FALSE)),0),IF($F$10="M2: Cau,VdC, Nar, Tol, Hui, Caq, Put, Vau",IFERROR((VLOOKUP(D187,'Tarifario '!A:O,12,FALSE)),0),IF($F$10="M3: Ant, Cal, Qui, Ris, Cho, Cór, Guai",IFERROR((VLOOKUP(D187,'Tarifario '!A:O,13,FALSE)),0),IF($F$10="M4: Atl, Bol, Guaj, Mag, Suc, SAnd",IFERROR((VLOOKUP(D187,'Tarifario '!A:O,14,FALSE)),0),IF($F$10="M5: Cés, Ara, Vic, Ama, NdS, San",IFERROR((VLOOKUP(D187,'Tarifario '!A:O,15,FALSE)),0),0)))))) -> 0 | K187: 0 | L187: SI | M187: 0 | N187: 0
A188: 0 | J188: =+IF($F$10="",0,IF($F$10="M1: SDG, Btá, Cun, Met, Guav, Cas, Boy",IFERROR((VLOOKUP(D188,'Tarifario '!A:O,11,FALSE)),0),IF($F$10="M2: Cau,VdC, Nar, Tol, Hui, Caq, Put, Vau",IFERROR((VLOOKUP(D188,'Tarifario '!A:O,12,FALSE)),0),IF($F$10="M3: Ant, Cal, Qui, Ris, Cho, Cór, Guai",IFERROR((VLOOKUP(D188,'Tarifario '!A:O,13,FALSE)),0),IF($F$10="M4: Atl, Bol, Guaj, Mag, Suc, SAnd",IFERROR((VLOOKUP(D188,'Tarifario '!A:O,14,FALSE)),0),IF($F$10="M5: Cés, Ara, Vic, Ama, NdS, San",IFERROR((VLOOKUP(D188,'Tarifario '!A:O,15,FALSE)),0),0)))))) -> 0 | K188: 0 | L188: SI | M188: 0 | N188: 0
A189: 0 | J189: =+IF($F$10="",0,IF($F$10="M1: SDG, Btá, Cun, Met, Guav, Cas, Boy",IFERROR((VLOOKUP(D189,'Tarifario '!A:O,11,FALSE)),0),IF($F$10="M2: Cau,VdC, Nar, Tol, Hui, Caq, Put, Vau",IFERROR((VLOOKUP(D189,'Tarifario '!A:O,12,FALSE)),0),IF($F$10="M3: Ant, Cal, Qui, Ris, Cho, Cór, Guai",IFERROR((VLOOKUP(D189,'Tarifario '!A:O,13,FALSE)),0),IF($F$10="M4: Atl, Bol, Guaj, Mag, Suc, SAnd",IFERROR((VLOOKUP(D189,'Tarifario '!A:O,14,FALSE)),0),IF($F$10="M5: Cés, Ara, Vic, Ama, NdS, San",IFERROR((VLOOKUP(D189,'Tarifario '!A:O,15,FALSE)),0),0)))))) -> 0 | K189: 0 | L189: SI | M189: 0 | N189: 0
A190: 0 | J190: =+IF($F$10="",0,IF($F$10="M1: SDG, Btá, Cun, Met, Guav, Cas, Boy",IFERROR((VLOOKUP(D190,'Tarifario '!A:O,11,FALSE)),0),IF($F$10="M2: Cau,VdC, Nar, Tol, Hui, Caq, Put, Vau",IFERROR((VLOOKUP(D190,'Tarifario '!A:O,12,FALSE)),0),IF($F$10="M3: Ant, Cal, Qui, Ris, Cho, Cór, Guai",IFERROR((VLOOKUP(D190,'Tarifario '!A:O,13,FALSE)),0),IF($F$10="M4: Atl, Bol, Guaj, Mag, Suc, SAnd",IFERROR((VLOOKUP(D190,'Tarifario '!A:O,14,FALSE)),0),IF($F$10="M5: Cés, Ara, Vic, Ama, NdS, San",IFERROR((VLOOKUP(D190,'Tarifario '!A:O,15,FALSE)),0),0)))))) -> 0 | K190: 0 | L190: SI | M190: 0 | N190: 0
A191: 0 | J191: =+IF($F$10="",0,IF($F$10="M1: SDG, Btá, Cun, Met, Guav, Cas, Boy",IFERROR((VLOOKUP(D191,'Tarifario '!A:O,11,FALSE)),0),IF($F$10="M2: Cau,VdC, Nar, Tol, Hui, Caq, Put, Vau",IFERROR((VLOOKUP(D191,'Tarifario '!A:O,12,FALSE)),0),IF($F$10="M3: Ant, Cal, Qui, Ris, Cho, Cór, Guai",IFERROR((VLOOKUP(D191,'Tarifario '!A:O,13,FALSE)),0),IF($F$10="M4: Atl, Bol, Guaj, Mag, Suc, SAnd",IFERROR((VLOOKUP(D191,'Tarifario '!A:O,14,FALSE)),0),IF($F$10="M5: Cés, Ara, Vic, Ama, NdS, San",IFERROR((VLOOKUP(D191,'Tarifario '!A:O,15,FALSE)),0),0)))))) -> 0 | K191: 0 | L191: SI | M191: 0 | N191: 0
A192: 0 | J192: =+IF($F$10="",0,IF($F$10="M1: SDG, Btá, Cun, Met, Guav, Cas, Boy",IFERROR((VLOOKUP(D192,'Tarifario '!A:O,11,FALSE)),0),IF($F$10="M2: Cau,VdC, Nar, Tol, Hui, Caq, Put, Vau",IFERROR((VLOOKUP(D192,'Tarifario '!A:O,12,FALSE)),0),IF($F$10="M3: Ant, Cal, Qui, Ris, Cho, Cór, Guai",IFERROR((VLOOKUP(D192,'Tarifario '!A:O,13,FALSE)),0),IF($F$10="M4: Atl, Bol, Guaj, Mag, Suc, SAnd",IFERROR((VLOOKUP(D192,'Tarifario '!A:O,14,FALSE)),0),IF($F$10="M5: Cés, Ara, Vic, Ama, NdS, San",IFERROR((VLOOKUP(D192,'Tarifario '!A:O,15,FALSE)),0),0)))))) -> 0 | K192: 0 | L192: SI | M192: 0 | N192: 0
A193: 0 | J193: =+IF($F$10="",0,IF($F$10="M1: SDG, Btá, Cun, Met, Guav, Cas, Boy",IFERROR((VLOOKUP(D193,'Tarifario '!A:O,11,FALSE)),0),IF($F$10="M2: Cau,VdC, Nar, Tol, Hui, Caq, Put, Vau",IFERROR((VLOOKUP(D193,'Tarifario '!A:O,12,FALSE)),0),IF($F$10="M3: Ant, Cal, Qui, Ris, Cho, Cór, Guai",IFERROR((VLOOKUP(D193,'Tarifario '!A:O,13,FALSE)),0),IF($F$10="M4: Atl, Bol, Guaj, Mag, Suc, SAnd",IFERROR((VLOOKUP(D193,'Tarifario '!A:O,14,FALSE)),0),IF($F$10="M5: Cés, Ara, Vic, Ama, NdS, San",IFERROR((VLOOKUP(D193,'Tarifario '!A:O,15,FALSE)),0),0)))))) -> 0 | K193: 0 | L193: SI | M193: 0 | N193: 0
A194: 0 | J194: =+IF($F$10="",0,IF($F$10="M1: SDG, Btá, Cun, Met, Guav, Cas, Boy",IFERROR((VLOOKUP(D194,'Tarifario '!A:O,11,FALSE)),0),IF($F$10="M2: Cau,VdC, Nar, Tol, Hui, Caq, Put, Vau",IFERROR((VLOOKUP(D194,'Tarifario '!A:O,12,FALSE)),0),IF($F$10="M3: Ant, Cal, Qui, Ris, Cho, Cór, Guai",IFERROR((VLOOKUP(D194,'Tarifario '!A:O,13,FALSE)),0),IF($F$10="M4: Atl, Bol, Guaj, Mag, Suc, SAnd",IFERROR((VLOOKUP(D194,'Tarifario '!A:O,14,FALSE)),0),IF($F$10="M5: Cés, Ara, Vic, Ama, NdS, San",IFERROR((VLOOKUP(D194,'Tarifario '!A:O,15,FALSE)),0),0)))))) -> 0 | K194: 0 | L194: SI | M194: 0 | N194: 0
A195: 0 | J195: =+IF($F$10="",0,IF($F$10="M1: SDG, Btá, Cun, Met, Guav, Cas, Boy",IFERROR((VLOOKUP(D195,'Tarifario '!A:O,11,FALSE)),0),IF($F$10="M2: Cau,VdC, Nar, Tol, Hui, Caq, Put, Vau",IFERROR((VLOOKUP(D195,'Tarifario '!A:O,12,FALSE)),0),IF($F$10="M3: Ant, Cal, Qui, Ris, Cho, Cór, Guai",IFERROR((VLOOKUP(D195,'Tarifario '!A:O,13,FALSE)),0),IF($F$10="M4: Atl, Bol, Guaj, Mag, Suc, SAnd",IFERROR((VLOOKUP(D195,'Tarifario '!A:O,14,FALSE)),0),IF($F$10="M5: Cés, Ara, Vic, Ama, NdS, San",IFERROR((VLOOKUP(D195,'Tarifario '!A:O,15,FALSE)),0),0)))))) -> 0 | K195: 0 | L195: SI | M195: 0 | N195: 0
A196: 0 | J196: =+IF($F$10="",0,IF($F$10="M1: SDG, Btá, Cun, Met, Guav, Cas, Boy",IFERROR((VLOOKUP(D196,'Tarifario '!A:O,11,FALSE)),0),IF($F$10="M2: Cau,VdC, Nar, Tol, Hui, Caq, Put, Vau",IFERROR((VLOOKUP(D196,'Tarifario '!A:O,12,FALSE)),0),IF($F$10="M3: Ant, Cal, Qui, Ris, Cho, Cór, Guai",IFERROR((VLOOKUP(D196,'Tarifario '!A:O,13,FALSE)),0),IF($F$10="M4: Atl, Bol, Guaj, Mag, Suc, SAnd",IFERROR((VLOOKUP(D196,'Tarifario '!A:O,14,FALSE)),0),IF($F$10="M5: Cés, Ara, Vic, Ama, NdS, San",IFERROR((VLOOKUP(D196,'Tarifario '!A:O,15,FALSE)),0),0)))))) -> 0 | K196: 0 | L196: SI | M196: 0 | N196: 0
A197: 0 | J197: =+IF($F$10="",0,IF($F$10="M1: SDG, Btá, Cun, Met, Guav, Cas, Boy",IFERROR((VLOOKUP(D197,'Tarifario '!A:O,11,FALSE)),0),IF($F$10="M2: Cau,VdC, Nar, Tol, Hui, Caq, Put, Vau",IFERROR((VLOOKUP(D197,'Tarifario '!A:O,12,FALSE)),0),IF($F$10="M3: Ant, Cal, Qui, Ris, Cho, Cór, Guai",IFERROR((VLOOKUP(D197,'Tarifario '!A:O,13,FALSE)),0),IF($F$10="M4: Atl, Bol, Guaj, Mag, Suc, SAnd",IFERROR((VLOOKUP(D197,'Tarifario '!A:O,14,FALSE)),0),IF($F$10="M5: Cés, Ara, Vic, Ama, NdS, San",IFERROR((VLOOKUP(D197,'Tarifario '!A:O,15,FALSE)),0),0)))))) -> 0 | K197: 0 | L197: SI | M197: 0 | N197: 0
A198: 0 | J198: =+IF($F$10="",0,IF($F$10="M1: SDG, Btá, Cun, Met, Guav, Cas, Boy",IFERROR((VLOOKUP(D198,'Tarifario '!A:O,11,FALSE)),0),IF($F$10="M2: Cau,VdC, Nar, Tol, Hui, Caq, Put, Vau",IFERROR((VLOOKUP(D198,'Tarifario '!A:O,12,FALSE)),0),IF($F$10="M3: Ant, Cal, Qui, Ris, Cho, Cór, Guai",IFERROR((VLOOKUP(D198,'Tarifario '!A:O,13,FALSE)),0),IF($F$10="M4: Atl, Bol, Guaj, Mag, Suc, SAnd",IFERROR((VLOOKUP(D198,'Tarifario '!A:O,14,FALSE)),0),IF($F$10="M5: Cés, Ara, Vic, Ama, NdS, San",IFERROR((VLOOKUP(D198,'Tarifario '!A:O,15,FALSE)),0),0)))))) -> 0 | K198: 0 | L198: SI | M198: 0 | N198: 0
A199: 0 | J199: =+IF($F$10="",0,IF($F$10="M1: SDG, Btá, Cun, Met, Guav, Cas, Boy",IFERROR((VLOOKUP(D199,'Tarifario '!A:O,11,FALSE)),0),IF($F$10="M2: Cau,VdC, Nar, Tol, Hui, Caq, Put, Vau",IFERROR((VLOOKUP(D199,'Tarifario '!A:O,12,FALSE)),0),IF($F$10="M3: Ant, Cal, Qui, Ris, Cho, Cór, Guai",IFERROR((VLOOKUP(D199,'Tarifario '!A:O,13,FALSE)),0),IF($F$10="M4: Atl, Bol, Guaj, Mag, Suc, SAnd",IFERROR((VLOOKUP(D199,'Tarifario '!A:O,14,FALSE)),0),IF($F$10="M5: Cés, Ara, Vic, Ama, NdS, San",IFERROR((VLOOKUP(D199,'Tarifario '!A:O,15,FALSE)),0),0)))))) -> 0 | K199: 0 | L199: SI | M199: 0 | N199: 0
A200: 0 | J200: =+IF($F$10="",0,IF($F$10="M1: SDG, Btá, Cun, Met, Guav, Cas, Boy",IFERROR((VLOOKUP(D200,'Tarifario '!A:O,11,FALSE)),0),IF($F$10="M2: Cau,VdC, Nar, Tol, Hui, Caq, Put, Vau",IFERROR((VLOOKUP(D200,'Tarifario '!A:O,12,FALSE)),0),IF($F$10="M3: Ant, Cal, Qui, Ris, Cho, Cór, Guai",IFERROR((VLOOKUP(D200,'Tarifario '!A:O,13,FALSE)),0),IF($F$10="M4: Atl, Bol, Guaj, Mag, Suc, SAnd",IFERROR((VLOOKUP(D200,'Tarifario '!A:O,14,FALSE)),0),IF($F$10="M5: Cés, Ara, Vic, Ama, NdS, San",IFERROR((VLOOKUP(D200,'Tarifario '!A:O,15,FALSE)),0),0)))))) -> 0 | K200: 0 | L200: SI | M200: 0 | N200: 0
... 373 more rows

Sheet pdf (2) (hidden)
D2: PROCESO DE ADQUISICION DE BIENES Y SERVICIO SOLICITUD DE SERVICIO - CERTIFICACIÓN DE EJECUCIÓN Y CIERRE | G2: F2.P4.ABS | H2: 2025-05-12
G3: Versión 8 | H3: Página 1
G4: Clasificación de la Información: CLASIFICADA
C5: # De solicitud | D5: Nombre del evento: | E5: =+Registro!S8 -> 0 | G5: # de Participantes: | H5: =+Registro!Y16 -> 0
C6: =+PPTO!F6 -> 0
D7: Tipo de solicitud: | E7: =+Registro!I8 -> 0 | F7: Fecha inicio: | G7: =+Registro!S12 -> 00:00:00
D8: Fecha de solicitud: | E8: =+Registro!I10 -> 00:00:00 | F8: Fecha fin: | G8: =+Registro!S14 -> 00:00:00
D9: Dependencia / Regional: | E9: =+Registro!I12 -> 0 | F9: Hora inicio: | G9: =+Registro!X12 -> 00:00:00
D10: Nombres enlace del evento: | E10: =+Registro!I14 -> 0 | F10: Hora fin: | G10: =+Registro!X14 -> 00:00:00
D11: Teléfono de Contacto: | E11: =+Registro!I16 -> 0 | F11: Ciudad del Evento : | G11: =+Registro!S16 -> 0
D12: Correo Institucional: | E12: =+Registro!I18 -> 0 | F12: Lugar de Realización: | G12: =+Registro!S18 -> 0
D13: Jefe o Director Area / Regional: | E13: =+Registro!I20 -> 0 | F13: Objetivo del Evento: | G13: =+Registro!S20 -> 0
D14: Cargo: | E14: =+Registro!I22 -> 0
D15: Macroregión: | E15: =+PPTO!F10 -> 0 | F15: Operador: | G15: =+IFERROR((VLOOKUP(E15,Parametros!I2:J6,2,FALSE)),"") -> 
D18: Servicios requeridos - items tarifario | F18: =+PPTO!M7 -> 0
D19: ítems no previstos tarifario (iva incluido) | F19: =+PPTO!M8 -> 0
D20: =+PPTO!I9 -> Comisión de Admon ( 0,00% ): | F20: =+PPTO!M9 -> 0
D21: IVA Comisión de admon: | F21: =+PPTO!M10 -> 0
D22: Valor Total Evento | F22: =+PPTO!M11 -> 0
D25: En mi calidad Director o Jefe del area solicitante, Certifico la ejecución del evento, así como también el cumplimiento de los servicios requeridos y estipulados en la documentación adjunta y, en consecuencia, presento mi visto bueno para que se adelanten los trámites tendientes al pago de los servicios realmente prestados.
D29: OBSERVACIONES:
D30: =+IF(Registro!V41="","",Registro!V41) -> 
D37: =+"Se firma a los "&DAY(TODAY())&" dias del mes de "&TEXT((TODAY()),"MMMM")&" del año "&YEAR(TODAY())&"." -> Se firma a los 29 dias del mes de mayo del año 2025.
C40: Nombre y Apellidos | E40: Cargo | F40: Dependencia / Regional | G40: Firma
C41: =+E13 -> 0 | E41: =+E14 -> 0 | F41: =+E9 -> 0
